Department Family,Entity,Date,Expense Type,Expense Area,Supplier,Transaction Number,Amount,VAT Registration Number
Department of Health,East Sussex Hospitals NHS Trust,02/10/2013,YEAR END NRVS JV GENERAL CRS,NHS Creditors,SUSSEX PARTNERSHIP NHS FOUNDATION TRUST,0000135241,14133.50,
Department of Health,East Sussex Hospitals NHS Trust,02/10/2013,YEAR END NRVS JV GENERAL CRS,NHS Creditors,SUSSEX PARTNERSHIP NHS FOUNDATION TRUST,0000135252,7066.75,
Department of Health,East Sussex Hospitals NHS Trust,02/10/2013,YEAR END NRVS JV GENERAL CRS,NHS Creditors,SUSSEX PARTNERSHIP NHS FOUNDATION TRUST,0000136062,7066.75,
Department of Health,East Sussex Hospitals NHS Trust,02/10/2013,RENT,Planned Care,SUSSEX PARTNERSHIP NHS FOUNDATION TRUST,0000136789,7066.75,
Department of Health,East Sussex Hospitals NHS Trust,02/10/2013,SR SUSSEX PARTNERSHIP FT,Commercial,SUSSEX PARTNERSHIP NHS FOUNDATION TRUST,0000136790,19599.00,
Department of Health,East Sussex Hospitals NHS Trust,02/10/2013,POSTAGE - FRANKING MACHINE,Commercial,SUSSEX PARTNERSHIP NHS FOUNDATION TRUST,0000137063,1224.52,
Department of Health,East Sussex Hospitals NHS Trust,02/10/2013,SR SUSSEX PARTNERSHIP FT,Commercial,SUSSEX PARTNERSHIP NHS FOUNDATION TRUST,0000137233,3871.15,
Department of Health,East Sussex Hospitals NHS Trust,02/10/2013,POSTAGE - FRANKING MACHINE,Commercial,SUSSEX PARTNERSHIP NHS FOUNDATION TRUST,0000137243,1257.13,
Department of Health,East Sussex Hospitals NHS Trust,02/10/2013,SR SUSSEX PARTNERSHIP FT,Commercial,SUSSEX PARTNERSHIP NHS FOUNDATION TRUST,0000137248,2152.56,
Department of Health,East Sussex Hospitals NHS Trust,02/10/2013,SR SUSSEX PARTNERSHIP FT,Commercial,SUSSEX PARTNERSHIP NHS FOUNDATION TRUST,0000137249,6106.78,
Department of Health,East Sussex Hospitals NHS Trust,02/10/2013,SLA WITH SUSSEX PARTNERSHIP,Planned Care,SUSSEX PARTNERSHIP NHS FOUNDATION TRUST,0000137337,46224.25,
Department of Health,East Sussex Hospitals NHS Trust,02/10/2013,POSTAGE - FRANKING MACHINE,Commercial,SUSSEX PARTNERSHIP NHS FOUNDATION TRUST,0000137338,1154.66,
Department of Health,East Sussex Hospitals NHS Trust,02/10/2013,SLA WITH SUSSEX PARTNERSHIP,Corporate Services,SUSSEX PARTNERSHIP NHS FOUNDATION TRUST,0000137339,18577.50,
Department of Health,East Sussex Hospitals NHS Trust,02/10/2013,SR SUSSEX PARTNERSHIP FT,Commercial,SUSSEX PARTNERSHIP NHS FOUNDATION TRUST,0000137365,3885.95,
Department of Health,East Sussex Hospitals NHS Trust,02/10/2013,SR SUSSEX PARTNERSHIP FT,Commercial,SUSSEX PARTNERSHIP NHS FOUNDATION TRUST,0000137366,5110.00,
Department of Health,East Sussex Hospitals NHS Trust,02/10/2013,SR SUSSEX PARTNERSHIP FT,Commercial,SUSSEX PARTNERSHIP NHS FOUNDATION TRUST,0000137367,2078.52,
Department of Health,East Sussex Hospitals NHS Trust,02/10/2013,SR SUSSEX PARTNERSHIP FT,Commercial,SUSSEX PARTNERSHIP NHS FOUNDATION TRUST,0000137382,3871.15,
Department of Health,East Sussex Hospitals NHS Trust,02/10/2013,SR SUSSEX PARTNERSHIP FT,Commercial,SUSSEX PARTNERSHIP NHS FOUNDATION TRUST,0000137383,2152.56,
Department of Health,East Sussex Hospitals NHS Trust,02/10/2013,HIRE OF ACCOMMODATION,Planned Care,SUSSEX PARTNERSHIP NHS FOUNDATION TRUST,0000137466,7066.75,
Department of Health,East Sussex Hospitals NHS Trust,02/10/2013,SR SUSSEX PARTNERSHIP FT,Commercial,SUSSEX PARTNERSHIP NHS FOUNDATION TRUST,0000137467,19599.00,
Department of Health,East Sussex Hospitals NHS Trust,02/10/2013,SR SUSSEX PARTNERSHIP FT,Commercial,SUSSEX PARTNERSHIP NHS FOUNDATION TRUST,0000137620,4532.86,
Department of Health,East Sussex Hospitals NHS Trust,02/10/2013,SR SUSSEX PARTNERSHIP FT,Commercial,SUSSEX PARTNERSHIP NHS FOUNDATION TRUST,0000137621,4860.40,
Department of Health,East Sussex Hospitals NHS Trust,02/10/2013,SR SUSSEX PARTNERSHIP FT,Commercial,SUSSEX PARTNERSHIP NHS FOUNDATION TRUST,0000137623,2142.72,
Department of Health,East Sussex Hospitals NHS Trust,02/10/2013,POSTAGE - FRANKING MACHINE,Commercial,SUSSEX PARTNERSHIP NHS FOUNDATION TRUST,0000137640,1504.13,
Department of Health,East Sussex Hospitals NHS Trust,02/10/2013,NHS SUPPLY CHAIN,Planned Care,NHS SUPPLY CHAIN (MAIDSTONE),0000137749,6975.00,
Department of Health,East Sussex Hospitals NHS Trust,02/10/2013,CAPITAL EXPENDITURE,Other Central,NHS SUPPLY CHAIN (ALFRETON),0000137801,6984.67,
Department of Health,East Sussex Hospitals NHS Trust,02/10/2013,YEAR END NRVS JV GENERAL CRS,NHS Creditors,SUSSEX PARTNERSHIP NHS FOUNDATION TRUST,0000137829,1119.07,
Department of Health,East Sussex Hospitals NHS Trust,02/10/2013,SR SUSSEX PARTNERSHIP FT,Commercial,SUSSEX PARTNERSHIP NHS FOUNDATION TRUST,0000137832,-3871.15,
Department of Health,East Sussex Hospitals NHS Trust,02/10/2013,SR SUSSEX PARTNERSHIP FT,Commercial,SUSSEX PARTNERSHIP NHS FOUNDATION TRUST,0000137833,-2152.56,
Department of Health,East Sussex Hospitals NHS Trust,02/10/2013,GE HEALTHCARE,Integrated Care,NHS SUPPLY CHAIN (MAIDSTONE),0000137907,-7342.68,
Department of Health,East Sussex Hospitals NHS Trust,02/10/2013,ACCREDITATION FEES,Integrated Care,HUMAN TISSUE AUTHORITY,0000137955,7200.00,
Department of Health,East Sussex Hospitals NHS Trust,02/10/2013,SR SUSSEX PARTNERSHIP FT,Commercial,SUSSEX PARTNERSHIP NHS FOUNDATION TRUST,0000137957,2211.84,
Department of Health,East Sussex Hospitals NHS Trust,02/10/2013,SR SUSSEX PARTNERSHIP FT,Commercial,SUSSEX PARTNERSHIP NHS FOUNDATION TRUST,0000137958,4000.56,
Department of Health,East Sussex Hospitals NHS Trust,02/10/2013,SR SUSSEX PARTNERSHIP FT,Commercial,SUSSEX PARTNERSHIP NHS FOUNDATION TRUST,0000137959,4971.84,
Department of Health,East Sussex Hospitals NHS Trust,02/10/2013,AGENCY SPEECH THERAPIST,Integrated Care,YOUR WORLD RECRUITMENT LTD,0000289715,1363.12,
Department of Health,East Sussex Hospitals NHS Trust,02/10/2013,AGENCY SPEECH THERAPIST,Integrated Care,YOUR WORLD RECRUITMENT LTD,0000289716,1118.48,
Department of Health,East Sussex Hospitals NHS Trust,02/10/2013,AGENCY SPEECH THERAPIST,Integrated Care,YOUR WORLD RECRUITMENT LTD,0000289819,946.06,
Department of Health,East Sussex Hospitals NHS Trust,02/10/2013,AGENCY DIETICIAN,Integrated Care,YOUR WORLD RECRUITMENT LTD,0000290080,520.20,
Department of Health,East Sussex Hospitals NHS Trust,02/10/2013,AGENCY SPEECH THERAPIST,Integrated Care,YOUR WORLD RECRUITMENT LTD,0000290091,1057.60,
Department of Health,East Sussex Hospitals NHS Trust,02/10/2013,AGENCY SHO,Urgent Care,DR-LOCUMS,0000290489,561.00,
Department of Health,East Sussex Hospitals NHS Trust,02/10/2013,AGENCY SPEECH THERAPIST,Integrated Care,YOUR WORLD RECRUITMENT LTD,0000290497,1057.60,
Department of Health,East Sussex Hospitals NHS Trust,02/10/2013,AGENCY MTO,Planned Care,YOUR WORLD RECRUITMENT LTD,0000290509,1069.50,
Department of Health,East Sussex Hospitals NHS Trust,02/10/2013,AGENCY SPEECH THERAPIST,Integrated Care,YOUR WORLD RECRUITMENT LTD,0000290511,1068.14,
Department of Health,East Sussex Hospitals NHS Trust,02/10/2013,AGENCY SPEECH THERAPIST,Integrated Care,YOUR WORLD RECRUITMENT LTD,0000290512,2225.70,
Department of Health,East Sussex Hospitals NHS Trust,02/10/2013,AGENCY TECHNICIAN,Planned Care,YOUR WORLD RECRUITMENT LTD,0000290513,1719.48,
Department of Health,East Sussex Hospitals NHS Trust,02/10/2013,AGENCY TECHNICIAN,Planned Care,YOUR WORLD RECRUITMENT LTD,0000290514,1633.02,
Department of Health,East Sussex Hospitals NHS Trust,02/10/2013,AGENCY TECHNICIAN,Planned Care,YOUR WORLD RECRUITMENT LTD,0000290515,1440.90,
Department of Health,East Sussex Hospitals NHS Trust,02/10/2013,AGENCY MTO,Planned Care,YOUR WORLD RECRUITMENT LTD,0000290527,1627.50,
Department of Health,East Sussex Hospitals NHS Trust,02/10/2013,AGENCY MTO,Planned Care,YOUR WORLD RECRUITMENT LTD,0000290528,2046.00,
Department of Health,East Sussex Hospitals NHS Trust,02/10/2013,AGENCY SPEECH THERAPIST,Integrated Care,YOUR WORLD RECRUITMENT LTD,0000290588,1347.67,
Department of Health,East Sussex Hospitals NHS Trust,02/10/2013,AGENCY RADIOGRAPHY STAFF,Integrated Care,YOUR WORLD RECRUITMENT LTD,0000290589,1102.50,
Department of Health,East Sussex Hospitals NHS Trust,02/10/2013,AGENCY RADIOGRAPHY STAFF,Integrated Care,YOUR WORLD RECRUITMENT LTD,0000290590,840.00,
Department of Health,East Sussex Hospitals NHS Trust,02/10/2013,AGENCY SPEECH THERAPIST,Integrated Care,YOUR WORLD RECRUITMENT LTD,0000290594,1335.42,
Department of Health,East Sussex Hospitals NHS Trust,02/10/2013,AGENCY MTO,Planned Care,YOUR WORLD RECRUITMENT LTD,0000290595,1767.00,
Department of Health,East Sussex Hospitals NHS Trust,02/10/2013,AGENCY MTO,Planned Care,YOUR WORLD RECRUITMENT LTD,0000290596,2023.60,
Department of Health,East Sussex Hospitals NHS Trust,02/10/2013,AGENCY MTO,Planned Care,YOUR WORLD RECRUITMENT LTD,0000290597,1662.37,
Department of Health,East Sussex Hospitals NHS Trust,02/10/2013,AGENCY MTO,Planned Care,YOUR WORLD RECRUITMENT LTD,0000290598,1860.00,
Department of Health,East Sussex Hospitals NHS Trust,02/10/2013,AGENCY DIETICIAN,Integrated Care,YOUR WORLD RECRUITMENT LTD,0000290599,1300.50,
Department of Health,East Sussex Hospitals NHS Trust,02/10/2013,AGENCY MTO,Planned Care,YOUR WORLD RECRUITMENT LTD,0000290600,2825.92,
Department of Health,East Sussex Hospitals NHS Trust,02/10/2013,AGENCY DIETICIAN,Integrated Care,YOUR WORLD RECRUITMENT LTD,0000290610,1300.50,
Department of Health,East Sussex Hospitals NHS Trust,02/10/2013,AGENCY MTO,Planned Care,YOUR WORLD RECRUITMENT LTD,0000290697,1860.00,
Department of Health,East Sussex Hospitals NHS Trust,02/10/2013,AGENCY MTO,Planned Care,YOUR WORLD RECRUITMENT LTD,0000290698,1650.76,
Department of Health,East Sussex Hospitals NHS Trust,02/10/2013,AGENCY DIETICIAN,Integrated Care,YOUR WORLD RECRUITMENT LTD,0000290699,1300.50,
Department of Health,East Sussex Hospitals NHS Trust,02/10/2013,AGENCY NURSE - QUALIFIED,Urgent Care,AMBITION,0000290715,528.04,
Department of Health,East Sussex Hospitals NHS Trust,02/10/2013,AGENCY MTO,Planned Care,YOUR WORLD RECRUITMENT LTD,0000290792,2115.76,
Department of Health,East Sussex Hospitals NHS Trust,02/10/2013,AGENCY RADIOGRAPHY STAFF,Integrated Care,YOUR WORLD RECRUITMENT LTD,0000290793,1102.50,
Department of Health,East Sussex Hospitals NHS Trust,02/10/2013,AGENCY SPEECH THERAPIST,Integrated Care,YOUR WORLD RECRUITMENT LTD,0000290801,1335.42,
Department of Health,East Sussex Hospitals NHS Trust,02/10/2013,AGENCY SPEECH THERAPIST,Integrated Care,YOUR WORLD RECRUITMENT LTD,0000290802,1338.76,
Department of Health,East Sussex Hospitals NHS Trust,02/10/2013,AGENCY MTO,Planned Care,YOUR WORLD RECRUITMENT LTD,0000290803,1534.50,
Department of Health,East Sussex Hospitals NHS Trust,02/10/2013,AGENCY MTO,Planned Care,YOUR WORLD RECRUITMENT LTD,0000290804,2082.13,
Department of Health,East Sussex Hospitals NHS Trust,02/10/2013,AGENCY MTO,Planned Care,YOUR WORLD RECRUITMENT LTD,0000290805,1743.76,
Department of Health,East Sussex Hospitals NHS Trust,02/10/2013,AGENCY MTO,Planned Care,YOUR WORLD RECRUITMENT LTD,0000290806,1238.88,
Department of Health,East Sussex Hospitals NHS Trust,02/10/2013,AGENCY DIETICIAN,Integrated Care,YOUR WORLD RECRUITMENT LTD,0000290854,1300.50,
Department of Health,East Sussex Hospitals NHS Trust,02/10/2013,AGENCY OCC THERAPY STAFF,Integrated Care,THE ID GROUP LTD (MEDICAL),0000290879,1743.76,
Department of Health,East Sussex Hospitals NHS Trust,02/10/2013,AGENCY NURSE - QUALIFIED,Urgent Care,AMBITION,0000290918,2094.13,
Department of Health,East Sussex Hospitals NHS Trust,02/10/2013,AGENCY NURSE - QUALIFIED,Urgent Care,AMBITION,0000290927,803.80,
Department of Health,East Sussex Hospitals NHS Trust,02/10/2013,AGENCY MTO,Planned Care,YOUR WORLD RECRUITMENT LTD,0000290963,1492.46,
Department of Health,East Sussex Hospitals NHS Trust,02/10/2013,AGENCY MTO,Planned Care,YOUR WORLD RECRUITMENT LTD,0000290964,3081.66,
Department of Health,East Sussex Hospitals NHS Trust,02/10/2013,AGENCY MTO,Planned Care,YOUR WORLD RECRUITMENT LTD,0000290965,1336.87,
Department of Health,East Sussex Hospitals NHS Trust,02/10/2013,AGENCY MTO,Planned Care,YOUR WORLD RECRUITMENT LTD,0000290966,2378.56,
Department of Health,East Sussex Hospitals NHS Trust,02/10/2013,AGENCY MTO,Planned Care,YOUR WORLD RECRUITMENT LTD,0000290967,1936.20,
Department of Health,East Sussex Hospitals NHS Trust,02/10/2013,AGENCY MTO,Planned Care,YOUR WORLD RECRUITMENT LTD,0000290968,2301.76,
Department of Health,East Sussex Hospitals NHS Trust,02/10/2013,AGENCY SPEECH THERAPIST,Integrated Care,YOUR WORLD RECRUITMENT LTD,0000290969,1338.76,
Department of Health,East Sussex Hospitals NHS Trust,02/10/2013,AGENCY SPEECH THERAPIST,Integrated Care,YOUR WORLD RECRUITMENT LTD,0000290971,2225.70,
Department of Health,East Sussex Hospitals NHS Trust,02/10/2013,AGENCY RADIOGRAPHY STAFF,Integrated Care,YOUR WORLD RECRUITMENT LTD,0000290973,882.00,
Department of Health,East Sussex Hospitals NHS Trust,02/10/2013,AGENCY DIETICIAN,Integrated Care,YOUR WORLD RECRUITMENT LTD,0000291012,1300.50,
Department of Health,East Sussex Hospitals NHS Trust,02/10/2013,AGENCY SPECIALIST REG,Planned Care,MEDILINK CONSULTING LIMITED,0000291019,1034.56,
Department of Health,East Sussex Hospitals NHS Trust,02/10/2013,AGENCY DIETICIAN,Integrated Care,YOUR WORLD RECRUITMENT LTD,0000291024,1300.50,
Department of Health,East Sussex Hospitals NHS Trust,02/10/2013,AGENCY MTO,Planned Care,YOUR WORLD RECRUITMENT LTD,0000291117,1767.00,
Department of Health,East Sussex Hospitals NHS Trust,02/10/2013,AGENCY MTO,Planned Care,YOUR WORLD RECRUITMENT LTD,0000291118,2041.16,
Department of Health,East Sussex Hospitals NHS Trust,02/10/2013,AGENCY DIETICIAN,Integrated Care,YOUR WORLD RECRUITMENT LTD,0000291119,1265.82,
Department of Health,East Sussex Hospitals NHS Trust,02/10/2013,AGENCY RADIOGRAPHY STAFF,Integrated Care,YOUR WORLD RECRUITMENT LTD,0000291120,1102.50,
Department of Health,East Sussex Hospitals NHS Trust,02/10/2013,AGENCY MTO,Planned Care,YOUR WORLD RECRUITMENT LTD,0000291130,1813.50,
Department of Health,East Sussex Hospitals NHS Trust,02/10/2013,AGENCY MTO,Planned Care,YOUR WORLD RECRUITMENT LTD,0000291131,2208.76,
Department of Health,East Sussex Hospitals NHS Trust,02/10/2013,AGENCY NURSE - QUALIFIED,Urgent Care,AMBITION,0000291142,963.45,
Department of Health,East Sussex Hospitals NHS Trust,02/10/2013,AGENCY NURSE - QUALIFIED,Urgent Care,AMBITION,0000291143,1164.15,
Department of Health,East Sussex Hospitals NHS Trust,02/10/2013,AGENCY MTO,Planned Care,YOUR WORLD RECRUITMENT LTD,0000291161,2394.76,
Department of Health,East Sussex Hospitals NHS Trust,02/10/2013,AGENCY SPECIALIST REG,Integrated Care,TOTAL ASSIST RECRUITMENT LTD,0000291172,2462.05,
Department of Health,East Sussex Hospitals NHS Trust,02/10/2013,AGENCY SPEECH THERAPIST,Integrated Care,YOUR WORLD RECRUITMENT LTD,0000291180,970.66,
Department of Health,East Sussex Hospitals NHS Trust,02/10/2013,AGENCY MTO,Planned Care,YOUR WORLD RECRUITMENT LTD,0000291181,2394.76,
Department of Health,East Sussex Hospitals NHS Trust,02/10/2013,AGENCY SPEECH THERAPIST,Integrated Care,YOUR WORLD RECRUITMENT LTD,0000291182,514.22,
Department of Health,East Sussex Hospitals NHS Trust,02/10/2013,AGENCY SPEECH THERAPIST,Integrated Care,YOUR WORLD RECRUITMENT LTD,0000291183,1320.90,
Department of Health,East Sussex Hospitals NHS Trust,02/10/2013,AGENCY TECHNICIAN,Planned Care,YOUR WORLD RECRUITMENT LTD,0000291184,1767.50,
Department of Health,East Sussex Hospitals NHS Trust,02/10/2013,AGENCY TECHNICIAN,Planned Care,YOUR WORLD RECRUITMENT LTD,0000291185,1162.33,
Department of Health,East Sussex Hospitals NHS Trust,02/10/2013,AGENCY TECHNICIAN,Planned Care,YOUR WORLD RECRUITMENT LTD,0000291186,1729.08,
Department of Health,East Sussex Hospitals NHS Trust,02/10/2013,AGENCY TECHNICIAN,Planned Care,YOUR WORLD RECRUITMENT LTD,0000291187,528.34,
Department of Health,East Sussex Hospitals NHS Trust,02/10/2013,AGENCY NURSE - UNQUALIFIED,Urgent Care,PREMIERCARE NETWORK LTD,0000291285,2528.00,
Department of Health,East Sussex Hospitals NHS Trust,02/10/2013,AGENCY DIETICIAN,Integrated Care,YOUR WORLD RECRUITMENT LTD,0000291315,1300.50,
Department of Health,East Sussex Hospitals NHS Trust,02/10/2013,AGENCY NURSE - QUALIFIED,Urgent Care,AMBITION,0000291360,779.16,
Department of Health,East Sussex Hospitals NHS Trust,02/10/2013,AGENCY NURSE - QUALIFIED,Urgent Care,AMBITION,0000291361,1647.09,
Department of Health,East Sussex Hospitals NHS Trust,02/10/2013,AGENCY NURSE - QUALIFIED,Urgent Care,AMBITION,0000291372,524.26,
Department of Health,East Sussex Hospitals NHS Trust,02/10/2013,AGENCY PODIATRY,Integrated Care,MAXXIMA LTD 2,0000291374,1341.00,
Department of Health,East Sussex Hospitals NHS Trust,02/10/2013,AGENCY OCC THERAPY STAFF,Integrated Care,MEDICONNECT RECRUITMENT,0000291428,1482.76,
Department of Health,East Sussex Hospitals NHS Trust,02/10/2013,AGENCY PODIATRY,Integrated Care,MAXXIMA LTD 2,0000291635,1341.00,
Department of Health,East Sussex Hospitals NHS Trust,02/10/2013,AGENCY TECHNICIAN,Planned Care,THE PLACEMENT GROUP,0000291693,1533.64,
Department of Health,East Sussex Hospitals NHS Trust,02/10/2013,AGENCY TECHNICIAN,Planned Care,THE PLACEMENT GROUP,0000291694,1474.66,
Department of Health,East Sussex Hospitals NHS Trust,02/10/2013,AGENCY TECHNICIAN,Urgent Care,THE PLACEMENT GROUP,0000291695,1959.76,
Department of Health,East Sussex Hospitals NHS Trust,02/10/2013,AGENCY OCC THERAPY STAFF,Integrated Care,THE PLACEMENT GROUP,0000291696,964.44,
Department of Health,East Sussex Hospitals NHS Trust,02/10/2013,AGENCY NURSE - QUALIFIED,Urgent Care,AMBITION,0000291749,1554.81,
Department of Health,East Sussex Hospitals NHS Trust,02/10/2013,AGENCY NURSE - QUALIFIED,Urgent Care,AMBITION,0000291751,1858.32,
Department of Health,East Sussex Hospitals NHS Trust,02/10/2013,AGENCY NURSE - QUALIFIED,Urgent Care,AMBITION,0000291754,1908.75,
Department of Health,East Sussex Hospitals NHS Trust,02/10/2013,AGENCY STAFF GRADE,Urgent Care,TOTAL ASSIST RECRUITMENT LTD,0000291841,2525.40,
Department of Health,East Sussex Hospitals NHS Trust,02/10/2013,AGENCY STAFF GRADE,Urgent Care,TOTAL ASSIST RECRUITMENT LTD,0000291842,1573.20,
Department of Health,East Sussex Hospitals NHS Trust,02/10/2013,AGENCY SHO,Urgent Care,TOTAL ASSIST RECRUITMENT LTD,0000291843,627.00,
Department of Health,East Sussex Hospitals NHS Trust,02/10/2013,AGENCY TECHNICIAN,Urgent Care,THE PLACEMENT GROUP,0000291870,1959.76,
Department of Health,East Sussex Hospitals NHS Trust,02/10/2013,AGENCY OCC THERAPY STAFF,Integrated Care,THE PLACEMENT GROUP,0000291871,1076.96,
Department of Health,East Sussex Hospitals NHS Trust,02/10/2013,AGENCY SHO,Urgent Care,TOTAL ASSIST RECRUITMENT LTD,0000291881,627.00,
Department of Health,East Sussex Hospitals NHS Trust,02/10/2013,AGENCY STAFF GRADE,Urgent Care,TOTAL ASSIST RECRUITMENT LTD,0000291882,1407.60,
Department of Health,East Sussex Hospitals NHS Trust,02/10/2013,AGENCY STAFF GRADE,Urgent Care,TOTAL ASSIST RECRUITMENT LTD,0000291883,3280.08,
Department of Health,East Sussex Hospitals NHS Trust,02/10/2013,AGENCY STAFF GRADE,Urgent Care,TOTAL ASSIST RECRUITMENT LTD,0000291884,2687.23,
Department of Health,East Sussex Hospitals NHS Trust,02/10/2013,AGENCY OCC THERAPY STAFF,Integrated Care,ORCHARD MEDICAL RECRUITMENT,0000291897,1707.86,
Department of Health,East Sussex Hospitals NHS Trust,02/10/2013,AGENCY NURSE - QUALIFIED,Urgent Care,THORNBURY NURSING SERVICES,0000291899,640.30,
Department of Health,East Sussex Hospitals NHS Trust,02/10/2013,AGENCY NURSE - QUALIFIED,Urgent Care,THORNBURY NURSING SERVICES,0000291900,721.31,
Department of Health,East Sussex Hospitals NHS Trust,02/10/2013,AGENCY NURSE - QUALIFIED,Urgent Care,THORNBURY NURSING SERVICES,0000291901,683.56,
Department of Health,East Sussex Hospitals NHS Trust,02/10/2013,AGENCY NURSE - QUALIFIED,Urgent Care,THORNBURY NURSING SERVICES,0000291902,708.47,
Department of Health,East Sussex Hospitals NHS Trust,02/10/2013,AGENCY NURSE - QUALIFIED,Urgent Care,THORNBURY NURSING SERVICES,0000291903,559.07,
Department of Health,East Sussex Hospitals NHS Trust,02/10/2013,AGENCY NURSE - QUALIFIED,Urgent Care,THORNBURY NURSING SERVICES,0000291904,791.15,
Department of Health,East Sussex Hospitals NHS Trust,02/10/2013,AGENCY MLSO,Integrated Care,DAY WEBSTER LTD,0000291933,1775.18,
Department of Health,East Sussex Hospitals NHS Trust,02/10/2013,AGENCY MLSO,Integrated Care,DAY WEBSTER LTD,0000291934,2470.30,
Department of Health,East Sussex Hospitals NHS Trust,02/10/2013,AGENCY SPECIALIST REG,Urgent Care,TOTAL ASSIST RECRUITMENT LTD,0000291935,1931.45,
Department of Health,East Sussex Hospitals NHS Trust,02/10/2013,AGENCY STAFF GRADE,Urgent Care,TOTAL ASSIST RECRUITMENT LTD,0000291936,1224.00,
Department of Health,East Sussex Hospitals NHS Trust,02/10/2013,AGENCY NURSE - QUALIFIED,Urgent Care,AMBITION,0000291959,858.44,
Department of Health,East Sussex Hospitals NHS Trust,02/10/2013,AGENCY NURSE - QUALIFIED,Urgent Care,AMBITION,0000291961,836.27,
Department of Health,East Sussex Hospitals NHS Trust,02/10/2013,AGENCY NURSE - QUALIFIED,Urgent Care,AMBITION,0000291963,1198.24,
Department of Health,East Sussex Hospitals NHS Trust,02/10/2013,AGENCY SHO,Urgent Care,TEAM24 LTD,0000291966,2957.40,
Department of Health,East Sussex Hospitals NHS Trust,02/10/2013,AGENCY NURSE - QUALIFIED,Urgent Care,AMBITION,0000291980,1167.12,
Department of Health,East Sussex Hospitals NHS Trust,02/10/2013,AGENCY NURSE - QUALIFIED,Urgent Care,AMBITION,0000291981,770.79,
Department of Health,East Sussex Hospitals NHS Trust,02/10/2013,AGENCY NURSE - QUALIFIED,Urgent Care,AMBITION,0000291982,1999.07,
Department of Health,East Sussex Hospitals NHS Trust,02/10/2013,AGENCY STAFF GRADE,Urgent Care,TOTAL ASSIST RECRUITMENT LTD,0000292030,5122.54,
Department of Health,East Sussex Hospitals NHS Trust,02/10/2013,AGENCY SPECIALIST REG,Urgent Care,TOTAL ASSIST RECRUITMENT LTD,0000292031,612.00,
Department of Health,East Sussex Hospitals NHS Trust,02/10/2013,AGENCY STAFF GRADE,Urgent Care,TOTAL ASSIST RECRUITMENT LTD,0000292032,621.00,
Department of Health,East Sussex Hospitals NHS Trust,02/10/2013,AGENCY STAFF GRADE,Urgent Care,TOTAL ASSIST RECRUITMENT LTD,0000292033,2532.72,
Department of Health,East Sussex Hospitals NHS Trust,02/10/2013,AGENCY OCC THERAPY STAFF,Integrated Care,THE ID GROUP LTD (MEDICAL),0000292036,1743.76,
Department of Health,East Sussex Hospitals NHS Trust,02/10/2013,AGENCY OCC THERAPY STAFF,Integrated Care,THE ID GROUP LTD (MEDICAL),0000292037,1743.76,
Department of Health,East Sussex Hospitals NHS Trust,02/10/2013,AGENCY SPECIALIST REG,Urgent Care,MEDACS HEALTHCARE SERVICES LTD,0000292054,5457.53,
Department of Health,East Sussex Hospitals NHS Trust,02/10/2013,AGENCY SHO,Planned Care,MEDACS HEALTHCARE SERVICES LTD,0000292055,3413.06,
Department of Health,East Sussex Hospitals NHS Trust,02/10/2013,AGENCY SPECIALIST REG,Urgent Care,MEDACS HEALTHCARE SERVICES LTD,0000292256,718.21,
Department of Health,East Sussex Hospitals NHS Trust,02/10/2013,AGENCY CONSULTANT,Integrated Care,MEDACS HEALTHCARE SERVICES LTD,0000292258,11571.00,
Department of Health,East Sussex Hospitals NHS Trust,02/10/2013,AGENCY SPECIALIST REG,Urgent Care,MEDACS HEALTHCARE SERVICES LTD,0000292259,1805.50,
Department of Health,East Sussex Hospitals NHS Trust,02/10/2013,AGENCY SPECIALIST REG,Planned Care,MEDACS HEALTHCARE SERVICES LTD,0000292265,3979.80,
Department of Health,East Sussex Hospitals NHS Trust,02/10/2013,AGENCY ANCILLARY,Commercial,INTERWORK RECRUITMENT CONSULTANTS LTD,0000292378,906.26,
Department of Health,East Sussex Hospitals NHS Trust,02/10/2013,AGENCY NURSE - UNQUALIFIED,Urgent Care,PREMIERCARE NETWORK LTD,0000292562,1870.69,
Department of Health,East Sussex Hospitals NHS Trust,02/10/2013,AGENCY NURSE - UNQUALIFIED,Urgent Care,PREMIERCARE NETWORK LTD,0000292563,2028.55,
Department of Health,East Sussex Hospitals NHS Trust,02/10/2013,AGENCY ANCILLARY,Commercial,INTERWORK RECRUITMENT CONSULTANTS LTD,0000292636,2175.44,
Department of Health,East Sussex Hospitals NHS Trust,02/10/2013,AGENCY - GENERAL GRADES,Commercial,INTERWORK RECRUITMENT CONSULTANTS LTD,0000292643,1231.05,
Department of Health,East Sussex Hospitals NHS Trust,02/10/2013,AGENCY ANCILLARY,Commercial,INTERWORK RECRUITMENT CONSULTANTS LTD,0000292649,4975.72,
Department of Health,East Sussex Hospitals NHS Trust,02/10/2013,AGENCY ANCILLARY,Commercial,GRAFTERS RECRUITMENT CONSULTANTS LTD,0000292770,565.20,
Department of Health,East Sussex Hospitals NHS Trust,02/10/2013,AGENCY DRIVERS,Commercial,GRAFTERS RECRUITMENT CONSULTANTS LTD,0000292784,1549.58,
Department of Health,East Sussex Hospitals NHS Trust,02/10/2013,INSTRUMENTATION LABORATORY,Integrated Care,INSTRUMENTATION LABORATORIES UK LTD,0000362363,13728.86,
Department of Health,East Sussex Hospitals NHS Trust,02/10/2013,ENGINEER CONTRACT - REPAIR,Commercial,JOHNSON CONTROLS LTD,0000362515,5999.00,
Department of Health,East Sussex Hospitals NHS Trust,02/10/2013,CONTRACT ENGINEERING MAINT,Commercial,ICOM,0000362523,2540.26,
Department of Health,East Sussex Hospitals NHS Trust,02/10/2013,CONTRACT ENGINEERING MAINT,Commercial,ICOM,0000362523,149.22,
Department of Health,East Sussex Hospitals NHS Trust,02/10/2013,CONTRACT ENGINEERING MAINT,Commercial,ICOM,0000362523,149.22,
Department of Health,East Sussex Hospitals NHS Trust,02/10/2013,CONTRACT ENGINEERING MAINT,Commercial,ICOM,0000362523,190.68,
Department of Health,East Sussex Hospitals NHS Trust,02/10/2013,CONTRACT ENGINEERING MAINT,Commercial,ICOM,0000362523,132.65,
Department of Health,East Sussex Hospitals NHS Trust,02/10/2013,CONTRACT ENGINEERING MAINT,Commercial,ICOM,0000362523,291.83,
Department of Health,East Sussex Hospitals NHS Trust,02/10/2013,A&E CANON PHOTOCOPIER,Urgent Care,CANON (UK) LTD,0000362581,2975.00,
Department of Health,East Sussex Hospitals NHS Trust,02/10/2013,EQUIPMENT MODIFICATION,Commercial,BOOKER & BEST LIMITED,0000362660,669.60,
Department of Health,East Sussex Hospitals NHS Trust,02/10/2013,PROFESSIONAL FEES,Commercial,EIDOS VISUALS,0000362661,4200.00,
Department of Health,East Sussex Hospitals NHS Trust,02/10/2013,CAPITAL EXPENDITURE,Other Central,BOOKER & BEST LIMITED,0000362662,81840.70,
Department of Health,East Sussex Hospitals NHS Trust,02/10/2013,CONTRACT ENGINEERING MAINT,Commercial,PROECONOMY LTD,0000622431,19200.00,
Department of Health,East Sussex Hospitals NHS Trust,02/10/2013,CONTRACT ENGINEERING MAINT,Commercial,BENDER UK LTD,0000622436,1032.77,
Department of Health,East Sussex Hospitals NHS Trust,02/10/2013,ENERGY MANAGEMENT FEE,Commercial,COGENCO LTD,0000622449,2648.80,
Department of Health,East Sussex Hospitals NHS Trust,02/10/2013,CAPITAL EXPENDITURE,Other Central,VERNACARE LTD,0000622593,3154.00,
Department of Health,East Sussex Hospitals NHS Trust,02/10/2013,COLSAN,Integrated Care,COLSAN INSTRUMENT SERVICES,0000622753,779.05,
Department of Health,East Sussex Hospitals NHS Trust,02/10/2013,CAPITAL EXPENDITURE,Other Central,ASPEN A.C. LTD,0000622757,1962.00,
Department of Health,East Sussex Hospitals NHS Trust,02/10/2013,CONT MAINT LAB EQUIPMENT,Integrated Care,NEXT CONTROL SYSTEMS LTD,0000622773,1727.00,
Department of Health,East Sussex Hospitals NHS Trust,02/10/2013,POSTAGE - MAINTENANCE STOCK,Commercial,AZELIS UK INDUSTRIAL CHEMICALS LIMITED,0000622805,14.40,
Department of Health,East Sussex Hospitals NHS Trust,02/10/2013,EDGH BLDING & ENGINEERING MATS,Commercial,AZELIS UK INDUSTRIAL CHEMICALS LIMITED,0000622805,1099.87,
Department of Health,East Sussex Hospitals NHS Trust,02/10/2013,PROSTHESES-OTHER,Planned Care,SMITH & NEPHEW ADVANCED SURGICAL DEVICES,0000898057,746.51,
Department of Health,East Sussex Hospitals NHS Trust,02/10/2013,ARTHROSCOPY INSTRUMENTS,Planned Care,SMITH & NEPHEW ADVANCED SURGICAL DEVICES,0000898058,610.62,
Department of Health,East Sussex Hospitals NHS Trust,02/10/2013,M&S GENERAL SUPPLIES-OTHER,Planned Care,SMITH & NEPHEW ADVANCED SURGICAL DEVICES,0000898247,72.64,
Department of Health,East Sussex Hospitals NHS Trust,02/10/2013,PROSTHESES-OTHER,Planned Care,SMITH & NEPHEW ADVANCED SURGICAL DEVICES,0000898247,580.10,
Department of Health,East Sussex Hospitals NHS Trust,02/10/2013,ACL LIGAMENT REPAIR INSTRUMENT,Planned Care,SMITH & NEPHEW ADVANCED SURGICAL DEVICES,0000898274,119.95,
Department of Health,East Sussex Hospitals NHS Trust,02/10/2013,PROSTHESES-OTHER,Planned Care,SMITH & NEPHEW ADVANCED SURGICAL DEVICES,0000898274,454.61,
Department of Health,East Sussex Hospitals NHS Trust,02/10/2013,M&S GENERAL SUPPLIES-OTHER,Planned Care,DELTEX MEDICAL,0000898292,1010.40,
Department of Health,East Sussex Hospitals NHS Trust,02/10/2013,SURGICAL INSTRUMENTS,Planned Care,SMITH & NEPHEW ADVANCED SURGICAL DEVICES,0000898298,1221.24,
Department of Health,East Sussex Hospitals NHS Trust,02/10/2013,ARTHROSCOPY INSTRUMENTS,Planned Care,SMITH & NEPHEW ADVANCED SURGICAL DEVICES,0000898298,1288.46,
Department of Health,East Sussex Hospitals NHS Trust,02/10/2013,SURGICAL INSTRUMENTS,Planned Care,SMITH & NEPHEW ADVANCED SURGICAL DEVICES,0000898299,101.43,
Department of Health,East Sussex Hospitals NHS Trust,02/10/2013,PROSTHESES-OTHER,Planned Care,SMITH & NEPHEW ADVANCED SURGICAL DEVICES,0000898299,1891.41,
Department of Health,East Sussex Hospitals NHS Trust,02/10/2013,SURGICAL INSTRUMENTS,Planned Care,SMITH & NEPHEW ADVANCED SURGICAL DEVICES,0000898352,1343.22,
Department of Health,East Sussex Hospitals NHS Trust,02/10/2013,SURGICAL INSTRUMENTS,Planned Care,SMITH & NEPHEW ADVANCED SURGICAL DEVICES,0000898361,67.06,
Department of Health,East Sussex Hospitals NHS Trust,02/10/2013,PROSTHESES-OTHER,Planned Care,SMITH & NEPHEW ADVANCED SURGICAL DEVICES,0000898361,679.83,
Department of Health,East Sussex Hospitals NHS Trust,02/10/2013,M&S GENERAL SUPPLIES-OTHER,Planned Care,DELTEX MEDICAL,0000898396,512.40,
Department of Health,East Sussex Hospitals NHS Trust,02/10/2013,M&S GENERAL SUPPLIES-OTHER,Planned Care,SMITH & NEPHEW ADVANCED SURGICAL DEVICES,0000898424,31.01,
Department of Health,East Sussex Hospitals NHS Trust,02/10/2013,SURGICAL INSTRUMENTS,Planned Care,SMITH & NEPHEW ADVANCED SURGICAL DEVICES,0000898424,93.99,
Department of Health,East Sussex Hospitals NHS Trust,02/10/2013,PROSTHESES-OTHER,Planned Care,SMITH & NEPHEW ADVANCED SURGICAL DEVICES,0000898424,1309.92,
Department of Health,East Sussex Hospitals NHS Trust,02/10/2013,SURGICAL INSTRUMENTS,Planned Care,SMITH & NEPHEW ADVANCED SURGICAL DEVICES,0000898426,610.62,
Department of Health,East Sussex Hospitals NHS Trust,02/10/2013,ACL LIGAMENT REPAIR INSTRUMENT,Planned Care,SMITH & NEPHEW ADVANCED SURGICAL DEVICES,0000898426,119.95,
Department of Health,East Sussex Hospitals NHS Trust,02/10/2013,M&S GENERAL SUPPLIES-OTHER,Planned Care,SMITH & NEPHEW ADVANCED SURGICAL DEVICES,0000898463,31.03,
Department of Health,East Sussex Hospitals NHS Trust,02/10/2013,SURGICAL INSTRUMENTS,Planned Care,SMITH & NEPHEW ADVANCED SURGICAL DEVICES,0000898463,97.12,
Department of Health,East Sussex Hospitals NHS Trust,02/10/2013,PROSTHESES-OTHER,Planned Care,SMITH & NEPHEW ADVANCED SURGICAL DEVICES,0000898463,1547.91,
Department of Health,East Sussex Hospitals NHS Trust,02/10/2013,MEDICAL RECORDING PAPER,Planned Care,SMITH & NEPHEW ADVANCED SURGICAL DEVICES,0000898471,221.74,
Department of Health,East Sussex Hospitals NHS Trust,02/10/2013,M&S GENERAL SUPPLIES-OTHER,Planned Care,SMITH & NEPHEW ADVANCED SURGICAL DEVICES,0000898471,908.11,
Department of Health,East Sussex Hospitals NHS Trust,02/10/2013,ARTHROSCOPY INSTRUMENTS,Planned Care,SMITH & NEPHEW ADVANCED SURGICAL DEVICES,0000898471,677.84,
Department of Health,East Sussex Hospitals NHS Trust,02/10/2013,SURGICAL INSTRUMENTS,Planned Care,SMITH & NEPHEW ADVANCED SURGICAL DEVICES,0000898472,895.03,
Department of Health,East Sussex Hospitals NHS Trust,02/10/2013,ARTHROSCOPY INSTRUMENTS,Planned Care,SMITH & NEPHEW ADVANCED SURGICAL DEVICES,0000898472,610.62,
Department of Health,East Sussex Hospitals NHS Trust,02/10/2013,M&S GENERAL SUPPLIES-OTHER,Planned Care,DELTEX MEDICAL,0000898489,512.40,
Department of Health,East Sussex Hospitals NHS Trust,02/10/2013,M&S GENERAL SUPPLIES-OTHER,Planned Care,SMITH & NEPHEW ADVANCED SURGICAL DEVICES,0000898557,26.65,
Department of Health,East Sussex Hospitals NHS Trust,02/10/2013,PROSTHESES-OTHER,Planned Care,SMITH & NEPHEW ADVANCED SURGICAL DEVICES,0000898557,550.87,
Department of Health,East Sussex Hospitals NHS Trust,02/10/2013,M&S GENERAL SUPPLIES-OTHER,Planned Care,SMITH & NEPHEW ADVANCED SURGICAL DEVICES,0000898558,908.11,
Department of Health,East Sussex Hospitals NHS Trust,02/10/2013,M&S GENERAL SUPPLIES-OTHER,Planned Care,B BRAUN MEDICAL LTD,0000898598,1033.22,
Department of Health,East Sussex Hospitals NHS Trust,02/10/2013,PROSTHESES-OTHER,Planned Care,SMITH & NEPHEW ADVANCED SURGICAL DEVICES,0000898666,956.84,
Department of Health,East Sussex Hospitals NHS Trust,02/10/2013,ARTHROSCOPY INSTRUMENTS,Planned Care,SMITH & NEPHEW ADVANCED SURGICAL DEVICES,0000898691,677.84,
Department of Health,East Sussex Hospitals NHS Trust,02/10/2013,M&S GENERAL SUPPLIES-OTHER,Planned Care,BARD LTD,0000898699,504.00,
Department of Health,East Sussex Hospitals NHS Trust,02/10/2013,PROSTHESES-OTHER,Planned Care,SMITH & NEPHEW ADVANCED SURGICAL DEVICES,0000898717,720.76,
Department of Health,East Sussex Hospitals NHS Trust,02/10/2013,M&S GENERAL SUPPLIES-OTHER,Planned Care,DELTEX MEDICAL,0000898755,512.40,
Department of Health,East Sussex Hospitals NHS Trust,02/10/2013,SURGICAL INSTRUMENTS,Planned Care,SMITH & NEPHEW ADVANCED SURGICAL DEVICES,0000898780,31.13,
Department of Health,East Sussex Hospitals NHS Trust,02/10/2013,PROSTHESES-OTHER,Planned Care,SMITH & NEPHEW ADVANCED SURGICAL DEVICES,0000898780,630.99,
Department of Health,East Sussex Hospitals NHS Trust,02/10/2013,CONTINENCE PRODUCTS,Urgent Care,PAUL HARTMANN LTD,0000898829,331.68,
Department of Health,East Sussex Hospitals NHS Trust,02/10/2013,CONTINENCE PRODUCTS,Urgent Care,PAUL HARTMANN LTD,0000898829,226.91,
Department of Health,East Sussex Hospitals NHS Trust,02/10/2013,CONTINENCE PRODUCTS,Urgent Care,PAUL HARTMANN LTD,0000898829,89.72,
Department of Health,East Sussex Hospitals NHS Trust,02/10/2013,CONTINENCE PRODUCTS,Planned Care,PAUL HARTMANN LTD,0000898829,123.23,
Department of Health,East Sussex Hospitals NHS Trust,02/10/2013,CONTINENCE PRODUCTS,Urgent Care,PAUL HARTMANN LTD,0000898829,8.11,
Department of Health,East Sussex Hospitals NHS Trust,02/10/2013,CONTINENCE PRODUCTS,Urgent Care,PAUL HARTMANN LTD,0000898829,211.13,
Department of Health,East Sussex Hospitals NHS Trust,02/10/2013,CONTINENCE PRODUCTS,Planned Care,PAUL HARTMANN LTD,0000898829,39.72,
Department of Health,East Sussex Hospitals NHS Trust,02/10/2013,CONTINENCE PRODUCTS,Planned Care,PAUL HARTMANN LTD,0000898829,43.38,
Department of Health,East Sussex Hospitals NHS Trust,02/10/2013,CONTINENCE PRODUCTS,Commercial,PAUL HARTMANN LTD,0000898829,17.49,
Department of Health,East Sussex Hospitals NHS Trust,02/10/2013,CONTINENCE PRODUCTS,Planned Care,PAUL HARTMANN LTD,0000898829,26.66,
Department of Health,East Sussex Hospitals NHS Trust,02/10/2013,CONTINENCE PRODUCTS,Urgent Care,PAUL HARTMANN LTD,0000898829,1.63,
Department of Health,East Sussex Hospitals NHS Trust,02/10/2013,CONTINENCE PRODUCTS,Urgent Care,PAUL HARTMANN LTD,0000898829,52.45,
Department of Health,East Sussex Hospitals NHS Trust,02/10/2013,M&S GENERAL SUPPLIES-OTHER,Planned Care,DELTEX MEDICAL,0000898867,512.40,
Department of Health,East Sussex Hospitals NHS Trust,02/10/2013,ELECTRO MEDICAL EQUIPMENT,Planned Care,LINA MEDICAL UK LTD,0000899054,624.00,
Department of Health,East Sussex Hospitals NHS Trust,02/10/2013,SURGICAL INSTRUMENTS,Planned Care,LINA MEDICAL UK LTD,0000899056,485.76,
Department of Health,East Sussex Hospitals NHS Trust,02/10/2013,VAGINAL/HYSTERECT REPAIR INSTR,Planned Care,LINA MEDICAL UK LTD,0000899056,540.00,
Department of Health,East Sussex Hospitals NHS Trust,02/10/2013,PROSTHESES-HIP,Planned Care,STRYKER UK,0000899212,830.09,
Department of Health,East Sussex Hospitals NHS Trust,02/10/2013,PROSTHESES-OTHER,Planned Care,STRYKER UK,0000899212,124.32,
Department of Health,East Sussex Hospitals NHS Trust,02/10/2013,ELECTRO MEDICAL EQUIPMENT,Planned Care,LINA MEDICAL UK LTD,0000899249,936.00,
Department of Health,East Sussex Hospitals NHS Trust,02/10/2013,M&S GENERAL SUPPLIES-OTHER,Planned Care,STRYKER UK,0000899307,1056.48,
Department of Health,East Sussex Hospitals NHS Trust,02/10/2013,SURGICAL INSTRUMENTS,Planned Care,STRYKER UK,0000899307,606.48,
Department of Health,East Sussex Hospitals NHS Trust,02/10/2013,PROSTHESES-HIP,Planned Care,STRYKER UK,0000899380,1699.49,
Department of Health,East Sussex Hospitals NHS Trust,02/10/2013,PROSTHESES-OTHER,Planned Care,STRYKER UK,0000899380,186.48,
Department of Health,East Sussex Hospitals NHS Trust,02/10/2013,NATIONAL JOINT REGISTRY LEVY,Planned Care,STRYKER UK,0000899380,20.00,
Department of Health,East Sussex Hospitals NHS Trust,02/10/2013,PROSTHESES-HIP,Planned Care,JOINT REPLACEMENT INSTRUMENTATION  LTD,0000899686,624.00,
Department of Health,East Sussex Hospitals NHS Trust,02/10/2013,PROSTHESES-HIP,Planned Care,JOINT REPLACEMENT INSTRUMENTATION  LTD,0000899744,1713.60,
Department of Health,East Sussex Hospitals NHS Trust,02/10/2013,PROSTHESES-HIP,Planned Care,JOINT REPLACEMENT INSTRUMENTATION  LTD,0000899748,571.20,
Department of Health,East Sussex Hospitals NHS Trust,02/10/2013,PROSTHESES-HIP,Planned Care,JOINT REPLACEMENT INSTRUMENTATION  LTD,0000899769,3168.00,
Department of Health,East Sussex Hospitals NHS Trust,02/10/2013,PROSTHESES-HIP,Planned Care,JOINT REPLACEMENT INSTRUMENTATION  LTD,0000899770,571.20,
Department of Health,East Sussex Hospitals NHS Trust,02/10/2013,TURIS UROLOGY M&S,Planned Care,OLYMPUS KEYMED,0000899790,1797.00,
Department of Health,East Sussex Hospitals NHS Trust,02/10/2013,M&S GENERAL SUPPLIES-OTHER,Planned Care,OLYMPUS KEYMED,0000899819,2216.30,
Department of Health,East Sussex Hospitals NHS Trust,02/10/2013,PROSTHESES-HIP,Planned Care,JOINT REPLACEMENT INSTRUMENTATION  LTD,0000899879,571.20,
Department of Health,East Sussex Hospitals NHS Trust,02/10/2013,CONTINENCE PRODUCTS,Urgent Care,PAUL HARTMANN LTD,0000899880,100.83,
Department of Health,East Sussex Hospitals NHS Trust,02/10/2013,CONTINENCE PRODUCTS,Urgent Care,PAUL HARTMANN LTD,0000899880,124.83,
Department of Health,East Sussex Hospitals NHS Trust,02/10/2013,CONTINENCE PRODUCTS,Planned Care,PAUL HARTMANN LTD,0000899880,74.29,
Department of Health,East Sussex Hospitals NHS Trust,02/10/2013,CONTINENCE PRODUCTS,Planned Care,PAUL HARTMANN LTD,0000899880,60.98,
Department of Health,East Sussex Hospitals NHS Trust,02/10/2013,CONTINENCE PRODUCTS,Urgent Care,PAUL HARTMANN LTD,0000899880,34.99,
Department of Health,East Sussex Hospitals NHS Trust,02/10/2013,CONTINENCE PRODUCTS,Urgent Care,PAUL HARTMANN LTD,0000899880,120.99,
Department of Health,East Sussex Hospitals NHS Trust,02/10/2013,CONTINENCE PRODUCTS,Planned Care,PAUL HARTMANN LTD,0000899880,16.15,
Department of Health,East Sussex Hospitals NHS Trust,02/10/2013,CONTINENCE PRODUCTS,Planned Care,PAUL HARTMANN LTD,0000899880,89.90,
Department of Health,East Sussex Hospitals NHS Trust,02/10/2013,CONTINENCE PRODUCTS,Urgent Care,PAUL HARTMANN LTD,0000899880,21.90,
Department of Health,East Sussex Hospitals NHS Trust,02/10/2013,CONTINENCE PRODUCTS,Planned Care,PAUL HARTMANN LTD,0000899881,174.24,
Department of Health,East Sussex Hospitals NHS Trust,02/10/2013,CONTINENCE PRODUCTS,Urgent Care,PAUL HARTMANN LTD,0000899881,181.75,
Department of Health,East Sussex Hospitals NHS Trust,02/10/2013,CONTINENCE PRODUCTS,Urgent Care,PAUL HARTMANN LTD,0000899881,221.61,
Department of Health,East Sussex Hospitals NHS Trust,02/10/2013,CONTINENCE PRODUCTS,Planned Care,PAUL HARTMANN LTD,0000899881,47.98,
Department of Health,East Sussex Hospitals NHS Trust,02/10/2013,CONTINENCE PRODUCTS,Planned Care,PAUL HARTMANN LTD,0000899881,79.94,
Department of Health,East Sussex Hospitals NHS Trust,02/10/2013,CONTINENCE PRODUCTS,Urgent Care,PAUL HARTMANN LTD,0000899881,30.48,
Department of Health,East Sussex Hospitals NHS Trust,02/10/2013,CONTINENCE PRODUCTS,Urgent Care,PAUL HARTMANN LTD,0000899881,100.53,
Department of Health,East Sussex Hospitals NHS Trust,02/10/2013,CONTINENCE PRODUCTS,Planned Care,PAUL HARTMANN LTD,0000899881,44.56,
Department of Health,East Sussex Hospitals NHS Trust,02/10/2013,CONTINENCE PRODUCTS,Planned Care,PAUL HARTMANN LTD,0000899881,13.40,
Department of Health,East Sussex Hospitals NHS Trust,02/10/2013,CONTINENCE PRODUCTS,Urgent Care,PAUL HARTMANN LTD,0000899881,26.07,
Department of Health,East Sussex Hospitals NHS Trust,02/10/2013,CONTINENCE PRODUCTS,Planned Care,PAUL HARTMANN LTD,0000899883,91.48,
Department of Health,East Sussex Hospitals NHS Trust,02/10/2013,CONTINENCE PRODUCTS,Urgent Care,PAUL HARTMANN LTD,0000899883,82.85,
Department of Health,East Sussex Hospitals NHS Trust,02/10/2013,CONTINENCE PRODUCTS,Urgent Care,PAUL HARTMANN LTD,0000899883,243.97,
Department of Health,East Sussex Hospitals NHS Trust,02/10/2013,CONTINENCE PRODUCTS,Urgent Care,PAUL HARTMANN LTD,0000899883,158.18,
Department of Health,East Sussex Hospitals NHS Trust,02/10/2013,CONTINENCE PRODUCTS,Urgent Care,PAUL HARTMANN LTD,0000899883,107.55,
Department of Health,East Sussex Hospitals NHS Trust,02/10/2013,CONTINENCE PRODUCTS,Planned Care,PAUL HARTMANN LTD,0000899883,34.07,
Department of Health,East Sussex Hospitals NHS Trust,02/10/2013,CONTINENCE PRODUCTS,Planned Care,PAUL HARTMANN LTD,0000899883,7.51,
Department of Health,East Sussex Hospitals NHS Trust,02/10/2013,CONTINENCE PRODUCTS,Urgent Care,PAUL HARTMANN LTD,0000899883,-5.80,
Department of Health,East Sussex Hospitals NHS Trust,02/10/2013,CONTINENCE PRODUCTS,Urgent Care,PAUL HARTMANN LTD,0000899883,142.80,
Department of Health,East Sussex Hospitals NHS Trust,02/10/2013,TURIS UROLOGY M&S,Planned Care,OLYMPUS KEYMED,0000899939,1797.00,
Department of Health,East Sussex Hospitals NHS Trust,02/10/2013,STOCK-ASCRIBE EDGH,Pharmacy Stock,HEALTHCARE AT HOME LTD,0001209718,704.28,
Department of Health,East Sussex Hospitals NHS Trust,02/10/2013,STOCK-ASCRIBE CONQUEST,Pharmacy Stock,M & A PHARMACHEM LTD,0001213138,586.94,
Department of Health,East Sussex Hospitals NHS Trust,02/10/2013,STOCK-ASCRIBE CONQUEST,Pharmacy Stock,AMGEN LTD,0001213517,1584.00,
Department of Health,East Sussex Hospitals NHS Trust,02/10/2013,STOCK-ASCRIBE CONQUEST,Pharmacy Stock,AMGEN LTD,0001213521,2642.58,
Department of Health,East Sussex Hospitals NHS Trust,02/10/2013,STOCK-ASCRIBE CONQUEST,Pharmacy Stock,HEALTHCARE AT HOME LTD,0001213666,715.00,
Department of Health,East Sussex Hospitals NHS Trust,02/10/2013,STOCK-ASCRIBE CONQUEST,Pharmacy Stock,JANSSEN-CILAG LTD,0001213774,2744.57,
Department of Health,East Sussex Hospitals NHS Trust,02/10/2013,STOCK-ASCRIBE CONQUEST,Pharmacy Stock,M & A PHARMACHEM LTD,0001214317,562.06,
Department of Health,East Sussex Hospitals NHS Trust,02/10/2013,STOCK-ASCRIBE CONQUEST,Pharmacy Stock,DIAGMED HEALTHCARE LTD,0001214381,803.52,
Department of Health,East Sussex Hospitals NHS Trust,02/10/2013,STOCK-ASCRIBE CONQUEST,Pharmacy Stock,ROCHE DIAGNOSTICS LTD,0001214393,699.12,
Department of Health,East Sussex Hospitals NHS Trust,02/10/2013,STOCK-ASCRIBE CONQUEST,Pharmacy Stock,JANSSEN-CILAG LTD,0001214477,2744.57,
Department of Health,East Sussex Hospitals NHS Trust,02/10/2013,STOCK-ASCRIBE CONQUEST,Pharmacy Stock,JANSSEN-CILAG LTD,0001214535,5489.14,
Department of Health,East Sussex Hospitals NHS Trust,02/10/2013,STOCK-ASCRIBE CONQUEST,Pharmacy Stock,NORGINE PHARMACEUTICALS LTD,0001214540,1282.56,
Department of Health,East Sussex Hospitals NHS Trust,02/10/2013,STOCK-ASCRIBE CONQUEST,Pharmacy Stock,B BRAUN MEDICAL LTD,0001214766,579.60,
Department of Health,East Sussex Hospitals NHS Trust,02/10/2013,STOCK-ASCRIBE CONQUEST,Pharmacy Stock,JANSSEN-CILAG LTD,0001214815,4785.48,
Department of Health,East Sussex Hospitals NHS Trust,02/10/2013,STOCK-ASCRIBE CONQUEST,Pharmacy Stock,BIO PRODUCTS LABORATORY,0001214901,928.50,
Department of Health,East Sussex Hospitals NHS Trust,02/10/2013,STOCK-ASCRIBE CONQUEST,Pharmacy Stock,GILEAD SCIENCES LTD,0001214913,4641.12,
Department of Health,East Sussex Hospitals NHS Trust,02/10/2013,STOCK-ASCRIBE CONQUEST,Pharmacy Stock,JANSSEN-CILAG LTD,0001215097,7950.00,
Department of Health,East Sussex Hospitals NHS Trust,02/10/2013,STOCK-ASCRIBE CONQUEST,Pharmacy Stock,BIO PRODUCTS LABORATORY,0001215098,928.50,
Department of Health,East Sussex Hospitals NHS Trust,02/10/2013,STOCK-ASCRIBE CONQUEST,Pharmacy Stock,JANSSEN-CILAG LTD,0001215363,5489.14,
Department of Health,East Sussex Hospitals NHS Trust,02/10/2013,STOCK-ASCRIBE CONQUEST,Pharmacy Stock,BAXTER HEALTHCARE (BERKSHIRE)LTD,0001215528,1023.62,
Department of Health,East Sussex Hospitals NHS Trust,02/10/2013,STOCK-ASCRIBE CONQUEST,Pharmacy Stock,ALCURA UK LTD,0001215551,715.00,
Department of Health,East Sussex Hospitals NHS Trust,02/10/2013,STOCK-ASCRIBE CONQUEST,Pharmacy Stock,ALCURA UK LTD,0001215552,704.28,
Department of Health,East Sussex Hospitals NHS Trust,02/10/2013,STOCK-ASCRIBE CONQUEST,Pharmacy Stock,ALCURA UK LTD,0001215553,704.28,
Department of Health,East Sussex Hospitals NHS Trust,02/10/2013,STOCK-ASCRIBE CONQUEST,Pharmacy Stock,ALCURA UK LTD,0001215555,704.28,
Department of Health,East Sussex Hospitals NHS Trust,02/10/2013,STOCK-ASCRIBE CONQUEST,Pharmacy Stock,ALCURA UK LTD,0001215556,715.00,
Department of Health,East Sussex Hospitals NHS Trust,02/10/2013,STOCK-ASCRIBE CONQUEST,Pharmacy Stock,ALCURA UK LTD,0001215557,704.28,
Department of Health,East Sussex Hospitals NHS Trust,02/10/2013,STOCK-ASCRIBE CONQUEST,Pharmacy Stock,ALCURA UK LTD,0001215558,704.28,
Department of Health,East Sussex Hospitals NHS Trust,02/10/2013,STOCK-ASCRIBE CONQUEST,Pharmacy Stock,ALCURA UK LTD,0001215559,715.00,
Department of Health,East Sussex Hospitals NHS Trust,02/10/2013,STOCK-ASCRIBE CONQUEST,Pharmacy Stock,ALCURA UK LTD,0001215567,704.28,
Department of Health,East Sussex Hospitals NHS Trust,02/10/2013,STOCK-ASCRIBE CONQUEST,Pharmacy Stock,ALCURA UK LTD,0001215568,704.28,
Department of Health,East Sussex Hospitals NHS Trust,02/10/2013,STOCK-ASCRIBE CONQUEST,Pharmacy Stock,ALCURA UK LTD,0001215590,715.00,
Department of Health,East Sussex Hospitals NHS Trust,02/10/2013,STOCK-ASCRIBE CONQUEST,Pharmacy Stock,ALCURA UK LTD,0001215591,704.28,
Department of Health,East Sussex Hospitals NHS Trust,02/10/2013,STOCK-ASCRIBE CONQUEST,Pharmacy Stock,ALCURA UK LTD,0001215592,704.28,
Department of Health,East Sussex Hospitals NHS Trust,02/10/2013,STOCK-ASCRIBE CONQUEST,Pharmacy Stock,ALCURA UK LTD,0001215593,715.00,
Department of Health,East Sussex Hospitals NHS Trust,02/10/2013,STOCK-ASCRIBE CONQUEST,Pharmacy Stock,ALCURA UK LTD,0001215596,704.28,
Department of Health,East Sussex Hospitals NHS Trust,02/10/2013,STOCK-ASCRIBE CONQUEST,Pharmacy Stock,ALCURA UK LTD,0001215597,715.00,
Department of Health,East Sussex Hospitals NHS Trust,02/10/2013,STOCK-ASCRIBE CONQUEST,Pharmacy Stock,ALCURA UK LTD,0001215598,704.28,
Department of Health,East Sussex Hospitals NHS Trust,02/10/2013,STOCK-ASCRIBE CONQUEST,Pharmacy Stock,ALCURA UK LTD,0001215599,704.28,
Department of Health,East Sussex Hospitals NHS Trust,02/10/2013,STOCK-ASCRIBE CONQUEST,Pharmacy Stock,MEDCO HEALTH SOLUTIONS LTD,0001215600,1271.00,
Department of Health,East Sussex Hospitals NHS Trust,02/10/2013,STOCK-ASCRIBE CONQUEST,Pharmacy Stock,MEDCO HEALTH SOLUTIONS LTD,0001215601,762.97,
Department of Health,East Sussex Hospitals NHS Trust,02/10/2013,STOCK-ASCRIBE CONQUEST,Pharmacy Stock,ALCURA UK LTD,0001215602,715.00,
Department of Health,East Sussex Hospitals NHS Trust,02/10/2013,STOCK-ASCRIBE CONQUEST,Pharmacy Stock,ALCURA UK LTD,0001215603,704.28,
Department of Health,East Sussex Hospitals NHS Trust,02/10/2013,STOCK-ASCRIBE CONQUEST,Pharmacy Stock,ALCURA UK LTD,0001215604,715.00,
Department of Health,East Sussex Hospitals NHS Trust,02/10/2013,STOCK-ASCRIBE CONQUEST,Pharmacy Stock,MEDCO HEALTH SOLUTIONS LTD,0001215605,762.97,
Department of Health,East Sussex Hospitals NHS Trust,02/10/2013,STOCK-ASCRIBE CONQUEST,Pharmacy Stock,MEDCO HEALTH SOLUTIONS LTD,0001215606,762.97,
Department of Health,East Sussex Hospitals NHS Trust,02/10/2013,STOCK-ASCRIBE CONQUEST,Pharmacy Stock,MEDCO HEALTH SOLUTIONS LTD,0001215607,762.97,
Department of Health,East Sussex Hospitals NHS Trust,02/10/2013,STOCK-ASCRIBE CONQUEST,Pharmacy Stock,MEDCO HEALTH SOLUTIONS LTD,0001215608,762.97,
Department of Health,East Sussex Hospitals NHS Trust,02/10/2013,STOCK-ASCRIBE CONQUEST,Pharmacy Stock,MEDCO HEALTH SOLUTIONS LTD,0001215609,2147.00,
Department of Health,East Sussex Hospitals NHS Trust,02/10/2013,STOCK-ASCRIBE CONQUEST,Pharmacy Stock,MEDCO HEALTH SOLUTIONS LTD,0001215610,762.97,
Department of Health,East Sussex Hospitals NHS Trust,02/10/2013,STOCK-ASCRIBE CONQUEST,Pharmacy Stock,MEDCO HEALTH SOLUTIONS LTD,0001215611,762.97,
Department of Health,East Sussex Hospitals NHS Trust,02/10/2013,STOCK-ASCRIBE CONQUEST,Pharmacy Stock,ALCURA UK LTD,0001215613,704.28,
Department of Health,East Sussex Hospitals NHS Trust,02/10/2013,STOCK-ASCRIBE CONQUEST,Pharmacy Stock,MEDCO HEALTH SOLUTIONS LTD,0001215614,762.97,
Department of Health,East Sussex Hospitals NHS Trust,02/10/2013,STOCK-ASCRIBE CONQUEST,Pharmacy Stock,ALCURA UK LTD,0001215616,715.00,
Department of Health,East Sussex Hospitals NHS Trust,02/10/2013,STOCK-ASCRIBE CONQUEST,Pharmacy Stock,WAYMADE HEALTHCARE PLC,0001215617,656.88,
Department of Health,East Sussex Hospitals NHS Trust,02/10/2013,STOCK-ASCRIBE CONQUEST,Pharmacy Stock,ALCURA UK LTD,0001215624,715.00,
Department of Health,East Sussex Hospitals NHS Trust,02/10/2013,STOCK-ASCRIBE CONQUEST,Pharmacy Stock,ALCURA UK LTD,0001215626,715.00,
Department of Health,East Sussex Hospitals NHS Trust,02/10/2013,STOCK-ASCRIBE CONQUEST,Pharmacy Stock,ALCURA UK LTD,0001215627,715.00,
Department of Health,East Sussex Hospitals NHS Trust,02/10/2013,STOCK-ASCRIBE CONQUEST,Pharmacy Stock,ALCURA UK LTD,0001215628,715.00,
Department of Health,East Sussex Hospitals NHS Trust,02/10/2013,STOCK-ASCRIBE CONQUEST,Pharmacy Stock,ALCURA UK LTD,0001215629,704.28,
Department of Health,East Sussex Hospitals NHS Trust,02/10/2013,STOCK-ASCRIBE CONQUEST,Pharmacy Stock,ALCURA UK LTD,0001215630,704.28,
Department of Health,East Sussex Hospitals NHS Trust,02/10/2013,STOCK-ASCRIBE CONQUEST,Pharmacy Stock,ALCURA UK LTD,0001215631,715.00,
Department of Health,East Sussex Hospitals NHS Trust,02/10/2013,STOCK-ASCRIBE CONQUEST,Pharmacy Stock,ALLIANCE HEALTHCARE (DISTRIBUTION) LTD,0001216011,861.76,
Department of Health,East Sussex Hospitals NHS Trust,02/10/2013,STOCK-ASCRIBE CONQUEST,Pharmacy Stock,ALLIANCE HEALTHCARE (DISTRIBUTION) LTD,0001216013,1323.29,
Department of Health,East Sussex Hospitals NHS Trust,02/10/2013,STOCK-ASCRIBE CONQUEST,Pharmacy Stock,BAXTER HEALTHCARE (BERKSHIRE)LTD,0001216065,1500.24,
Department of Health,East Sussex Hospitals NHS Trust,02/10/2013,STOCK-ASCRIBE CONQUEST,Pharmacy Stock,ALCURA UK LTD,0001216099,1408.56,
Department of Health,East Sussex Hospitals NHS Trust,02/10/2013,STOCK-ASCRIBE CONQUEST,Pharmacy Stock,ALCURA UK LTD,0001216104,715.00,
Department of Health,East Sussex Hospitals NHS Trust,02/10/2013,STOCK-ASCRIBE CONQUEST,Pharmacy Stock,ALCURA UK LTD,0001216105,704.28,
Department of Health,East Sussex Hospitals NHS Trust,02/10/2013,STOCK-ASCRIBE CONQUEST,Pharmacy Stock,ALCURA UK LTD,0001216106,704.28,
Department of Health,East Sussex Hospitals NHS Trust,02/10/2013,STOCK-ASCRIBE CONQUEST,Pharmacy Stock,ALCURA UK LTD,0001216107,704.28,
Department of Health,East Sussex Hospitals NHS Trust,02/10/2013,STOCK-ASCRIBE CONQUEST,Pharmacy Stock,ALCURA UK LTD,0001216108,704.28,
Department of Health,East Sussex Hospitals NHS Trust,02/10/2013,STOCK-ASCRIBE CONQUEST,Pharmacy Stock,ALCURA UK LTD,0001216109,704.28,
Department of Health,East Sussex Hospitals NHS Trust,02/10/2013,STOCK-ASCRIBE CONQUEST,Pharmacy Stock,GRIFOLS UK LTD,0001216151,3060.00,
Department of Health,East Sussex Hospitals NHS Trust,02/10/2013,STOCK-ASCRIBE CONQUEST,Pharmacy Stock,BIO PRODUCTS LABORATORY,0001216155,1857.00,
Department of Health,East Sussex Hospitals NHS Trust,02/10/2013,STOCK-ASCRIBE CONQUEST,Pharmacy Stock,ALCURA UK LTD,0001216555,4106.81,
Department of Health,East Sussex Hospitals NHS Trust,02/10/2013,STOCK-ASCRIBE CONQUEST,Pharmacy Stock,ALCURA UK LTD,0001216556,5212.92,
Department of Health,East Sussex Hospitals NHS Trust,02/10/2013,STOCK-ASCRIBE CONQUEST,Pharmacy Stock,ALCURA UK LTD,0001216557,5212.92,
Department of Health,East Sussex Hospitals NHS Trust,02/10/2013,STOCK-ASCRIBE CONQUEST,Pharmacy Stock,BAXTER HEALTHCARE (BERKSHIRE)LTD,0001216599,588.00,
Department of Health,East Sussex Hospitals NHS Trust,02/10/2013,STOCK-ASCRIBE CONQUEST,Pharmacy Stock,BAXTER HEALTHCARE (BERKSHIRE)LTD,0001216609,1151.23,
Department of Health,East Sussex Hospitals NHS Trust,02/10/2013,STOCK-ASCRIBE CONQUEST,Pharmacy Stock,BAXTER HEALTHCARE (BERKSHIRE)LTD,0001216613,831.12,
Department of Health,East Sussex Hospitals NHS Trust,02/10/2013,STOCK-ASCRIBE CONQUEST,Pharmacy Stock,GILEAD SCIENCES LTD,0001216627,-4989.20,
Department of Health,East Sussex Hospitals NHS Trust,02/10/2013,STOCK-ASCRIBE CONQUEST,Pharmacy Stock,BAYER PLC,0001217388,2682.42,
Department of Health,East Sussex Hospitals NHS Trust,02/10/2013,STOCK-ASCRIBE CONQUEST,Pharmacy Stock,NOVARTIS PHARMACEUTICALS UK LTD,0001217926,2611.87,
Department of Health,East Sussex Hospitals NHS Trust,02/10/2013,STOCK-ASCRIBE CONQUEST,Pharmacy Stock,UNIDRUG DISTRIBUTION GROUP LTD,0001217927,849.60,
Department of Health,East Sussex Hospitals NHS Trust,02/10/2013,STOCK-ASCRIBE CONQUEST,Pharmacy Stock,HEALTHCARE AT HOME LTD,0001217934,1262.45,
Department of Health,East Sussex Hospitals NHS Trust,02/10/2013,STOCK-ASCRIBE CONQUEST,Pharmacy Stock,HEALTHCARE AT HOME LTD,0001217935,1501.85,
Department of Health,East Sussex Hospitals NHS Trust,02/10/2013,STOCK-ASCRIBE CONQUEST,Pharmacy Stock,HEALTHCARE AT HOME LTD,0001217936,1262.45,
Department of Health,East Sussex Hospitals NHS Trust,02/10/2013,STOCK-ASCRIBE CONQUEST,Pharmacy Stock,HEALTHCARE AT HOME LTD,0001217937,565.72,
Department of Health,East Sussex Hospitals NHS Trust,02/10/2013,STOCK-ASCRIBE CONQUEST,Pharmacy Stock,HEALTHCARE AT HOME LTD,0001217938,565.72,
Department of Health,East Sussex Hospitals NHS Trust,02/10/2013,STOCK-ASCRIBE CONQUEST,Pharmacy Stock,HEALTHCARE AT HOME LTD,0001217939,5901.40,
Department of Health,East Sussex Hospitals NHS Trust,02/10/2013,STOCK-ASCRIBE CONQUEST,Pharmacy Stock,HEALTHCARE AT HOME LTD,0001217940,5890.92,
Department of Health,East Sussex Hospitals NHS Trust,02/10/2013,STOCK-ASCRIBE CONQUEST,Pharmacy Stock,HEALTHCARE AT HOME LTD,0001217941,8031.64,
Department of Health,East Sussex Hospitals NHS Trust,02/10/2013,STOCK-ASCRIBE CONQUEST,Pharmacy Stock,UNIDRUG DISTRIBUTION GROUP LTD,0001217942,909.62,
Department of Health,East Sussex Hospitals NHS Trust,02/10/2013,TELEPHONES-RENTAL&CALLS,Urgent Care,CLOUDXL NETWORKS LTD,0001421915,-2768.79,
Department of Health,East Sussex Hospitals NHS Trust,02/10/2013,TELEPHONES-RENTAL&CALLS,Urgent Care,CLOUDXL NETWORKS LTD,0001421916,-698.18,
Department of Health,East Sussex Hospitals NHS Trust,02/10/2013,SEWERAGE - RATES & METERED,Commercial,SOUTHERN WATER SERVICES LTD,0001422548,15487.85,
Department of Health,East Sussex Hospitals NHS Trust,02/10/2013,H/CARE PURCH COM - SPIRE,Planned Care,SPIRE HEALTHCARE FINANCE,0001422755,14766.00,
Department of Health,East Sussex Hospitals NHS Trust,02/10/2013,M&S GENERAL SUPPLIES-OTHER,Corporate Services,LORRAINE LEA,0001422768,3000.00,
Department of Health,East Sussex Hospitals NHS Trust,02/10/2013,COMPUTER SOFTWARE,Corporate Services,CIS ONCOLOGY,0001422791,786.67,
Department of Health,East Sussex Hospitals NHS Trust,02/10/2013,FUEL,Integrated Care,ALLSTAR BUSINESS SOLUTIONS LTD,0001422805,57.14,
Department of Health,East Sussex Hospitals NHS Trust,02/10/2013,FUEL,Commercial,ALLSTAR BUSINESS SOLUTIONS LTD,0001422805,54.00,
Department of Health,East Sussex Hospitals NHS Trust,02/10/2013,FUEL,Commercial,ALLSTAR BUSINESS SOLUTIONS LTD,0001422805,404.04,
Department of Health,East Sussex Hospitals NHS Trust,02/10/2013,FUEL,Commercial,ALLSTAR BUSINESS SOLUTIONS LTD,0001422805,437.48,
Department of Health,East Sussex Hospitals NHS Trust,02/10/2013,FUEL,Commercial,ALLSTAR BUSINESS SOLUTIONS LTD,0001422805,439.24,
Department of Health,East Sussex Hospitals NHS Trust,02/10/2013,FUEL,Commercial,ALLSTAR BUSINESS SOLUTIONS LTD,0001422805,67.99,
Department of Health,East Sussex Hospitals NHS Trust,02/10/2013,SUSPENSE(ACCRUALS NOT ACCRUED),Corporate Services,BAXTER HEALTHCARE (BERKSHIRE)LTD,0001422809,-1982.51,
Department of Health,East Sussex Hospitals NHS Trust,02/10/2013,DRUGS-OTHER,Urgent Care,LLOYDS PHARMACY,0001529557,9126.23,
Department of Health,East Sussex Hospitals NHS Trust,02/10/2013,DRUGS-OTHER,Integrated Care,ALCURA UK LTD,0001529837,59489.54,
Department of Health,East Sussex Hospitals NHS Trust,02/10/2013,DRUGS-OTHER,Integrated Care,ALCURA UK LTD,0001529838,47202.00,
Department of Health,East Sussex Hospitals NHS Trust,02/10/2013,ADVERTISING COSTS-NON STAFF,Commercial,JOHNSTON PUBLISHING LTD,0001530455,750.00,
Department of Health,East Sussex Hospitals NHS Trust,02/10/2013,PACEMAKERS,Urgent Care,MEDTRONIC LTD,0001530704,194400.00,
Department of Health,East Sussex Hospitals NHS Trust,02/10/2013,SEWERAGE - RATES & METERED,Commercial,SOUTHERN WATER SERVICES LTD,0001530705,1117.05,
Department of Health,East Sussex Hospitals NHS Trust,02/10/2013,SEWERAGE - RATES & METERED,Commercial,SOUTHERN WATER SERVICES LTD,0001530706,1383.15,
Department of Health,East Sussex Hospitals NHS Trust,02/10/2013,SEWERAGE - RATES & METERED,Commercial,SOUTHERN WATER SERVICES LTD,0001530707,1208.61,
Department of Health,East Sussex Hospitals NHS Trust,02/10/2013,WATER & SEWERAGE,Commercial,SOUTHERN WATER SERVICES LTD,0001530708,661.99,
Department of Health,East Sussex Hospitals NHS Trust,02/10/2013,WATER-RATES & METERED,Commercial,SOUTHERN WATER SERVICES LTD,0001530712,787.85,
Department of Health,East Sussex Hospitals NHS Trust,02/10/2013,M&S GENERAL SUPPLIES-OTHER,Commercial,BAXTER HEALTHCARE (BERKSHIRE)LTD,0001614802,684.00,
Department of Health,East Sussex Hospitals NHS Trust,02/10/2013,DRUGS-OTHER,Commercial,JANSSEN-CILAG LTD,0001614892,5489.14,
Department of Health,East Sussex Hospitals NHS Trust,02/10/2013,DRUGS-OTHER,Commercial,JANSSEN-CILAG LTD,0001614906,5489.14,
Department of Health,East Sussex Hospitals NHS Trust,02/10/2013,DRUGS-OTHER,Commercial,JANSSEN-CILAG LTD,0001614931,864.55,
Department of Health,East Sussex Hospitals NHS Trust,02/10/2013,DRUGS-OTHER,Commercial,JANSSEN-CILAG LTD,0001614935,9148.56,
Department of Health,East Sussex Hospitals NHS Trust,02/10/2013,DRUGS-OTHER,Commercial,M & A PHARMACHEM LTD,0001614939,1476.00,
Department of Health,East Sussex Hospitals NHS Trust,02/10/2013,DRUGS-OTHER,Commercial,BAXTER HEALTHCARE (BERKSHIRE)LTD,0001615065,582.19,
Department of Health,East Sussex Hospitals NHS Trust,02/10/2013,DRUGS-OTHER,Commercial,BATH ASU,0001615223,724.80,
Department of Health,East Sussex Hospitals NHS Trust,02/10/2013,DRUGS-OTHER,Commercial,BATH ASU,0001615291,646.80,
Department of Health,East Sussex Hospitals NHS Trust,02/10/2013,DRUGS-OTHER,Commercial,UNIDRUG DISTRIBUTION GROUP LTD,0001615295,3019.68,
Department of Health,East Sussex Hospitals NHS Trust,02/10/2013,DRUGS-OTHER,Commercial,BATH ASU,0001615298,869.28,
Department of Health,East Sussex Hospitals NHS Trust,02/10/2013,LAB-CONTAINERS/BOTTLES & CAPS,Commercial,WAINS (OF TUNBRIDGE WELLS) LTD,0001615299,583.56,
Department of Health,East Sussex Hospitals NHS Trust,02/10/2013,DRUGS-OTHER,Commercial,BATH ASU,0001615311,718.20,
Department of Health,East Sussex Hospitals NHS Trust,02/10/2013,DRUGS-OTHER,Commercial,BATH ASU,0001615312,533.40,
Department of Health,East Sussex Hospitals NHS Trust,02/10/2013,TELEPHONES-RENTAL&CALLS,Urgent Care,CLOUDXL NETWORKS LTD,0001704850,837.95,
Department of Health,East Sussex Hospitals NHS Trust,02/10/2013,TELEPHONES-RENTAL&CALLS,Urgent Care,CLOUDXL NETWORKS LTD,0001705026,602.64,
Department of Health,East Sussex Hospitals NHS Trust,02/10/2013,TELEPHONES-RENTAL&CALLS,Urgent Care,CLOUDXL NETWORKS LTD,0001705027,998.84,
Department of Health,East Sussex Hospitals NHS Trust,02/10/2013,TELEPHONES-RENTAL&CALLS,Urgent Care,CLOUDXL NETWORKS LTD,0001705147,998.84,
Department of Health,East Sussex Hospitals NHS Trust,02/10/2013,TELEPHONES-RENTAL&CALLS,Urgent Care,CLOUDXL NETWORKS LTD,0001705152,-998.84,
Department of Health,East Sussex Hospitals NHS Trust,02/10/2013,TELEPHONES-RENTAL&CALLS,Urgent Care,CLOUDXL NETWORKS LTD,0001705400,835.72,
Department of Health,East Sussex Hospitals NHS Trust,02/10/2013,M&S GENERAL SUPPLIES-OTHER,Integrated Care,BUSINESS DICTATION LTD,0001814839,705.47,
Department of Health,East Sussex Hospitals NHS Trust,02/10/2013,SURGICAL INSTRUMENTS,Planned Care,SMITH & NEPHEW ADVANCED SURGICAL DEVICES,0001814949,1235.64,
Department of Health,East Sussex Hospitals NHS Trust,02/10/2013,ARTHROSCOPY INSTRUMENTS,Planned Care,SMITH & NEPHEW ADVANCED SURGICAL DEVICES,0001814949,1221.24,
Department of Health,East Sussex Hospitals NHS Trust,02/10/2013,SUTURES,Planned Care,SMITH & NEPHEW ADVANCED SURGICAL DEVICES,0001815190,652.50,
Department of Health,East Sussex Hospitals NHS Trust,02/10/2013,ADVERT-OTHER,Integrated Care,3G EVOLUTION LTD,0001815322,660.00,
Department of Health,East Sussex Hospitals NHS Trust,02/10/2013,HIRE OF SPECIAL BEDS,Urgent Care,PARK HOUSE HEALTHCARE LTD,0001815576,864.00,
Department of Health,East Sussex Hospitals NHS Trust,02/10/2013,SPECIAL SEATING,Integrated Care,CONTOUR886 LTD,0001815702,900.00,
Department of Health,East Sussex Hospitals NHS Trust,02/10/2013,ENTERAL FEEDING,Integrated Care,NUTRICIA CLINICAL CARE,0001815802,1238.41,
Department of Health,East Sussex Hospitals NHS Trust,02/10/2013,WHEELCHAIR REPAIRS,Integrated Care,AJ MOBILITY LTD,0001816058,1439.39,
Department of Health,East Sussex Hospitals NHS Trust,02/10/2013,PROVISIONS,Commercial,THE BESPOKE COFFEE CO LTD,0001906142,1008.78,
Department of Health,East Sussex Hospitals NHS Trust,02/10/2013,PROVISIONS,Commercial,DAIRY CREST LTD,0001906632,1228.71,
Department of Health,East Sussex Hospitals NHS Trust,02/10/2013,PROVISIONS,Commercial,DAIRY CREST LTD,0001906677,1282.85,
Department of Health,East Sussex Hospitals NHS Trust,02/10/2013,PROVISIONS,Commercial,DAIRY CREST LTD,0001907021,1729.87,
Department of Health,East Sussex Hospitals NHS Trust,02/10/2013,PROVISIONS,Commercial,BRAKE BROS (FROZEN FOODS) LTD,0001907175,837.48,
Department of Health,East Sussex Hospitals NHS Trust,02/10/2013,PROVISIONS,Commercial,BRAKE BROS (FROZEN FOODS) LTD,0001907176,893.77,
Department of Health,East Sussex Hospitals NHS Trust,02/10/2013,PROVISIONS,Commercial,BRAKE BROS (FROZEN FOODS) LTD,0001907182,828.76,
Department of Health,East Sussex Hospitals NHS Trust,02/10/2013,PROVISIONS,Commercial,BRAKE BROS (FROZEN FOODS) LTD,0001907184,663.02,
Department of Health,East Sussex Hospitals NHS Trust,02/10/2013,PROVISIONS,Commercial,BRAKE BROS (FROZEN FOODS) LTD,0001907185,893.77,
Department of Health,East Sussex Hospitals NHS Trust,02/10/2013,PROVISIONS,Commercial,BRAKE BROS (FROZEN FOODS) LTD,0001907188,1362.02,
Department of Health,East Sussex Hospitals NHS Trust,02/10/2013,PROVISIONS,Commercial,BRAKE BROS (FROZEN FOODS) LTD,0001907190,560.30,
Department of Health,East Sussex Hospitals NHS Trust,02/10/2013,PROVISIONS,Commercial,BRAKE BROS (FROZEN FOODS) LTD,0001907191,893.77,
Department of Health,East Sussex Hospitals NHS Trust,02/10/2013,PROVISIONS,Commercial,BRAKE BROS (FROZEN FOODS) LTD,0001907192,1052.91,
Department of Health,East Sussex Hospitals NHS Trust,02/10/2013,PROVISIONS,Commercial,BRAKE BROS (FROZEN FOODS) LTD,0001907194,714.99,
Department of Health,East Sussex Hospitals NHS Trust,02/10/2013,M&S GENERAL SUPPLIES-OTHER,Planned Care,SMITH & NEPHEW ADVANCED SURGICAL DEVICES,0002118165,102.00,
Department of Health,East Sussex Hospitals NHS Trust,02/10/2013,LOANER KITS - HIRE CHARGE,Planned Care,SMITH & NEPHEW ADVANCED SURGICAL DEVICES,0002118165,3960.00,
Department of Health,East Sussex Hospitals NHS Trust,02/10/2013,M&S GENERAL SUPPLIES-OTHER,Planned Care,SMITH & NEPHEW ADVANCED SURGICAL DEVICES,0002118166,241.20,
Department of Health,East Sussex Hospitals NHS Trust,02/10/2013,LOANER KITS - HIRE CHARGE,Planned Care,SMITH & NEPHEW ADVANCED SURGICAL DEVICES,0002118166,1320.00,
Department of Health,East Sussex Hospitals NHS Trust,02/10/2013,LOANER KITS - HIRE CHARGE,Planned Care,SMITH & NEPHEW ADVANCED SURGICAL DEVICES,0002119039,241.20,
Department of Health,East Sussex Hospitals NHS Trust,02/10/2013,PROSTHESES-OTHER,Planned Care,SMITH & NEPHEW ADVANCED SURGICAL DEVICES,0002119039,4097.87,
Department of Health,East Sussex Hospitals NHS Trust,02/10/2013,GENERAL CHEMICALS,Integrated Care,ROCHE DIAGNOSTICS LTD,0002119156,4827.45,
Department of Health,East Sussex Hospitals NHS Trust,02/10/2013,LAB.REAGENTS-MISCELLANEOUS,Integrated Care,ROCHE DIAGNOSTICS LTD,0002119156,140.18,
Department of Health,East Sussex Hospitals NHS Trust,02/10/2013,ROCHE 2010 REAGENTS,Integrated Care,ROCHE DIAGNOSTICS LTD,0002119156,9808.07,
Department of Health,East Sussex Hospitals NHS Trust,02/10/2013,PROSTHESES-OTHER,Planned Care,B BRAUN MEDICAL LTD,0002119808,3600.00,
Department of Health,East Sussex Hospitals NHS Trust,02/10/2013,ELECTRO MEDICAL EQUIPMENT,Urgent Care,NOVACOR UK LTD,0002119819,20.00,
Department of Health,East Sussex Hospitals NHS Trust,02/10/2013,PROSTHESES-OTHER,Planned Care,SMITH & NEPHEW ADVANCED SURGICAL DEVICES,0002119823,652.36,
Department of Health,East Sussex Hospitals NHS Trust,02/10/2013,ARTHROSCOPY INSTRUMENTS,Planned Care,SMITH & NEPHEW ADVANCED SURGICAL DEVICES,0002119824,1221.24,
Department of Health,East Sussex Hospitals NHS Trust,02/10/2013,SUTURES,Planned Care,SMITH & NEPHEW ADVANCED SURGICAL DEVICES,0002119838,516.60,
Department of Health,East Sussex Hospitals NHS Trust,02/10/2013,SURGICAL INSTRUMENTS,Planned Care,SMITH & NEPHEW ADVANCED SURGICAL DEVICES,0002119839,188.96,
Department of Health,East Sussex Hospitals NHS Trust,02/10/2013,PROSTHESES-OTHER,Planned Care,SMITH & NEPHEW ADVANCED SURGICAL DEVICES,0002119839,2111.62,
Department of Health,East Sussex Hospitals NHS Trust,02/10/2013,SURGICAL INSTRUMENTS,Planned Care,SMITH & NEPHEW ADVANCED SURGICAL DEVICES,0002119938,610.62,
Department of Health,East Sussex Hospitals NHS Trust,02/10/2013,M&S GENERAL SUPPLIES-OTHER,Planned Care,SMITH & NEPHEW ADVANCED SURGICAL DEVICES,0002119939,599.00,
Department of Health,East Sussex Hospitals NHS Trust,02/10/2013,SURGICAL INSTRUMENTS,Planned Care,SMITH & NEPHEW ADVANCED SURGICAL DEVICES,0002119939,225.92,
Department of Health,East Sussex Hospitals NHS Trust,02/10/2013,GENERAL LAB. CONSUMABLES,Integrated Care,INSTRUMENTATION LABORATORIES UK LTD,0002119980,2397.85,
Department of Health,East Sussex Hospitals NHS Trust,02/10/2013,SURGICAL INSTRUMENTS,Planned Care,SMITH & NEPHEW ADVANCED SURGICAL DEVICES,0002120019,62.26,
Department of Health,East Sussex Hospitals NHS Trust,02/10/2013,PROSTHESES-OTHER,Planned Care,SMITH & NEPHEW ADVANCED SURGICAL DEVICES,0002120019,789.31,
Department of Health,East Sussex Hospitals NHS Trust,02/10/2013,SUTURES,Planned Care,SMITH & NEPHEW ADVANCED SURGICAL DEVICES,0002120020,439.80,
Department of Health,East Sussex Hospitals NHS Trust,02/10/2013,ARTHROSCOPY INSTRUMENTS,Planned Care,SMITH & NEPHEW ADVANCED SURGICAL DEVICES,0002120020,1831.86,
Department of Health,East Sussex Hospitals NHS Trust,02/10/2013,ARTHROSCOPY INSTRUMENTS,Planned Care,SMITH & NEPHEW ADVANCED SURGICAL DEVICES,0002120047,610.62,
Department of Health,East Sussex Hospitals NHS Trust,02/10/2013,M&S GENERAL SUPPLIES-OTHER,Planned Care,SMITH & NEPHEW ADVANCED SURGICAL DEVICES,0002120048,103.27,
Department of Health,East Sussex Hospitals NHS Trust,02/10/2013,SURGICAL INSTRUMENTS,Planned Care,SMITH & NEPHEW ADVANCED SURGICAL DEVICES,0002120048,68.74,
Department of Health,East Sussex Hospitals NHS Trust,02/10/2013,PROSTHESES-OTHER,Planned Care,SMITH & NEPHEW ADVANCED SURGICAL DEVICES,0002120048,372.96,
Department of Health,East Sussex Hospitals NHS Trust,02/10/2013,M&S GENERAL SUPPLIES-OTHER,Planned Care,DELTEX MEDICAL,0002120101,1400.40,
Department of Health,East Sussex Hospitals NHS Trust,02/10/2013,PROSTHESES-OTHER,Planned Care,B BRAUN MEDICAL LTD,0002120122,3600.00,
Department of Health,East Sussex Hospitals NHS Trust,02/10/2013,ROCHE 2010 REAGENTS,Integrated Care,ROCHE DIAGNOSTICS LTD,0002120132,1360.15,
Department of Health,East Sussex Hospitals NHS Trust,02/10/2013,ROCHE 2010 REAGENTS,Integrated Care,ROCHE DIAGNOSTICS LTD,0002120134,1954.14,
Department of Health,East Sussex Hospitals NHS Trust,02/10/2013,PROSTHESES-OTHER,Planned Care,SMITH & NEPHEW ADVANCED SURGICAL DEVICES,0002120164,1050.02,
Department of Health,East Sussex Hospitals NHS Trust,02/10/2013,SURGICAL INSTRUMENTS,Planned Care,B BRAUN MEDICAL LTD,0002120209,2100.00,
Department of Health,East Sussex Hospitals NHS Trust,02/10/2013,INTERVENTIONAL DISPOSABLES,Urgent Care,VOLCANO EUROPE,0002120276,900.00,
Department of Health,East Sussex Hospitals NHS Trust,02/10/2013,CARDIOLOGY CATHETERS,Urgent Care,VOLCANO EUROPE,0002120276,800.00,
Department of Health,East Sussex Hospitals NHS Trust,02/10/2013,LAB MATS IL CONSUMABLES,Integrated Care,INSTRUMENTATION LABORATORIES UK LTD,0002120302,7176.46,
Department of Health,East Sussex Hospitals NHS Trust,02/10/2013,GENERAL CHEMICALS,Integrated Care,ROCHE DIAGNOSTICS LTD,0002120305,447.17,
Department of Health,East Sussex Hospitals NHS Trust,02/10/2013,ROCHE 2010 REAGENTS,Integrated Care,ROCHE DIAGNOSTICS LTD,0002120305,2371.85,
Department of Health,East Sussex Hospitals NHS Trust,02/10/2013,GENERAL CHEMICALS,Integrated Care,ROCHE DIAGNOSTICS LTD,0002120313,2846.26,
Department of Health,East Sussex Hospitals NHS Trust,02/10/2013,ROCHE 2010 REAGENTS,Integrated Care,ROCHE DIAGNOSTICS LTD,0002120313,6566.00,
Department of Health,East Sussex Hospitals NHS Trust,02/10/2013,INTERVENTIONAL DISPOSABLES,Urgent Care,VOLCANO EUROPE,0002120324,900.00,
Department of Health,East Sussex Hospitals NHS Trust,02/10/2013,CARDIOLOGY CATHETERS,Urgent Care,VOLCANO EUROPE,0002120324,800.00,
Department of Health,East Sussex Hospitals NHS Trust,02/10/2013,LAB MATS IL CONSUMABLES,Integrated Care,INSTRUMENTATION LABORATORIES UK LTD,0002120340,2667.24,
Department of Health,East Sussex Hospitals NHS Trust,02/10/2013,M&S GENERAL SUPPLIES-OTHER,Planned Care,SMITH & NEPHEW ADVANCED SURGICAL DEVICES,0002120383,610.62,
Department of Health,East Sussex Hospitals NHS Trust,02/10/2013,SURGICAL INSTRUMENTS,Planned Care,B BRAUN MEDICAL LTD,0002120413,2100.00,
Department of Health,East Sussex Hospitals NHS Trust,02/10/2013,SURGICAL INSTRUMENTS,Planned Care,SMITH & NEPHEW ADVANCED SURGICAL DEVICES,0002120445,68.62,
Department of Health,East Sussex Hospitals NHS Trust,02/10/2013,PROSTHESES-OTHER,Planned Care,SMITH & NEPHEW ADVANCED SURGICAL DEVICES,0002120445,505.11,
Department of Health,East Sussex Hospitals NHS Trust,02/10/2013,PROSTHESES-OTHER,Planned Care,SMITH & NEPHEW ADVANCED SURGICAL DEVICES,0002120548,3272.06,
Department of Health,East Sussex Hospitals NHS Trust,02/10/2013,M&S GENERAL SUPPLIES-OTHER,Planned Care,SMITH & NEPHEW ADVANCED SURGICAL DEVICES,0002120560,53.30,
Department of Health,East Sussex Hospitals NHS Trust,02/10/2013,SURGICAL INSTRUMENTS,Planned Care,SMITH & NEPHEW ADVANCED SURGICAL DEVICES,0002120560,102.99,
Department of Health,East Sussex Hospitals NHS Trust,02/10/2013,PROSTHESES-OTHER,Planned Care,SMITH & NEPHEW ADVANCED SURGICAL DEVICES,0002120560,1115.57,
Department of Health,East Sussex Hospitals NHS Trust,02/10/2013,SURGICAL INSTRUMENTS,Planned Care,B BRAUN MEDICAL LTD,0002120565,4200.00,
Department of Health,East Sussex Hospitals NHS Trust,02/10/2013,SURGICAL INSTRUMENTS,Planned Care,B BRAUN MEDICAL LTD,0002120566,2100.00,
Department of Health,East Sussex Hospitals NHS Trust,02/10/2013,M&S GENERAL SUPPLIES-OTHER,Integrated Care,BARD LTD,0002120632,636.00,
Department of Health,East Sussex Hospitals NHS Trust,02/10/2013,PROSTHESIS - SPINAL,Planned Care,ZIMMER LTD,0002120863,1339.20,
Department of Health,East Sussex Hospitals NHS Trust,02/10/2013,ELECTRO MEDICAL EQUIPMENT,Integrated Care,REPTON MEDICAL LTD (RMSP),0002120880,852.00,
Department of Health,East Sussex Hospitals NHS Trust,02/10/2013,INTERVENTIONAL DISPOSABLES,Urgent Care,ST JUDE MEDICAL UK LIMITED,0002120902,2520.00,
Department of Health,East Sussex Hospitals NHS Trust,02/10/2013,DR FOSTER DATABASE SERVICE,Corporate Services,DR FOSTER INTELLIGENCE,0002120911,10250.00,
Department of Health,East Sussex Hospitals NHS Trust,02/10/2013,SUTURES,Planned Care,SMITH & NEPHEW ADVANCED SURGICAL DEVICES,0002120995,252.40,
Department of Health,East Sussex Hospitals NHS Trust,02/10/2013,ARTHROSCOPY INSTRUMENTS,Planned Care,SMITH & NEPHEW ADVANCED SURGICAL DEVICES,0002120995,610.62,
Department of Health,East Sussex Hospitals NHS Trust,02/10/2013,PROSTHESES-OTHER,Planned Care,SMITH & NEPHEW ADVANCED SURGICAL DEVICES,0002120996,568.00,
Department of Health,East Sussex Hospitals NHS Trust,02/10/2013,M&S GENERAL SUPPLIES-OTHER,Planned Care,SMITH & NEPHEW ADVANCED SURGICAL DEVICES,0002120997,908.11,
Department of Health,East Sussex Hospitals NHS Trust,02/10/2013,M&S EQUIPMENT - OTHER,Integrated Care,MALEM MEDICAL LTD,0002121000,1676.40,
Department of Health,East Sussex Hospitals NHS Trust,02/10/2013,PROSTHESES-OTHER,Planned Care,ZIMMER LTD,0002121019,676.08,
Department of Health,East Sussex Hospitals NHS Trust,02/10/2013,CARDIOLOGY CATHETERS,Urgent Care,ACROSTAK-UK,0002121040,840.00,
Department of Health,East Sussex Hospitals NHS Trust,02/10/2013,OFFICE EQUIPMENT,Integrated Care,BUSINESS DICTATION LTD,0002121197,1790.39,
Department of Health,East Sussex Hospitals NHS Trust,02/10/2013,PROSTHESIS - SPINAL,Planned Care,ZIMMER LTD,0002121234,2913.84,
Department of Health,East Sussex Hospitals NHS Trust,02/10/2013,M&S GENERAL SUPPLIES-OTHER,Urgent Care,ST JUDE MEDICAL UK LIMITED,0002121313,1998.72,
Department of Health,East Sussex Hospitals NHS Trust,02/10/2013,INTERVENTIONAL DISPOSABLES,Urgent Care,ST JUDE MEDICAL UK LIMITED,0002121314,2520.00,
Department of Health,East Sussex Hospitals NHS Trust,02/10/2013,PROSTHESIS - SPINAL,Planned Care,ZIMMER LTD,0002121374,1352.16,
Department of Health,East Sussex Hospitals NHS Trust,02/10/2013,LOANER KITS - HIRE CHARGE,Planned Care,HOSPITAL INNOVATIONS LTD,0002121499,553.20,
Department of Health,East Sussex Hospitals NHS Trust,02/10/2013,ELECTRODES,Integrated Care,ROCKET MEDICAL PLC,0002121503,-888.00,
Department of Health,East Sussex Hospitals NHS Trust,02/10/2013,X-RAY - EQUIPMENT,Integrated Care,BARD LTD,0002121511,636.00,
Department of Health,East Sussex Hospitals NHS Trust,02/10/2013,PRINTING/PRINTED MATERIALS,Planned Care,BIO PRODUCTS LABORATORY,0002121523,18.00,
Department of Health,East Sussex Hospitals NHS Trust,02/10/2013,BLOOD PRODUCTS - BPL,Integrated Care,BIO PRODUCTS LABORATORY,0002121523,1800.00,
Department of Health,East Sussex Hospitals NHS Trust,02/10/2013,SURGICAL INSTRUMENTS,Planned Care,LINA MEDICAL UK LTD,0002121526,121.44,
Department of Health,East Sussex Hospitals NHS Trust,02/10/2013,VAGINAL/HYSTERECT REPAIR INSTR,Planned Care,LINA MEDICAL UK LTD,0002121526,540.00,
Department of Health,East Sussex Hospitals NHS Trust,02/10/2013,M&S GENERAL SUPPLIES-OTHER,Planned Care,BAXTER HEALTHCARE (BERKSHIRE)LTD,0002121545,517.20,
Department of Health,East Sussex Hospitals NHS Trust,02/10/2013,LAPARASCOPIC EQUIP-GYNAECOLOGY,Planned Care,PELICAN FEMININE HEALTHCARE (EUROPE) LTD,0002121553,744.00,
Department of Health,East Sussex Hospitals NHS Trust,02/10/2013,PROSTHESIS - SPINAL,Planned Care,ZIMMER LTD,0002121592,3458.16,
Department of Health,East Sussex Hospitals NHS Trust,02/10/2013,PROSTHESES-OTHER,Planned Care,ZIMMER LTD,0002121592,4056.48,
Department of Health,East Sussex Hospitals NHS Trust,02/10/2013,M&S GENERAL SUPPLIES-OTHER,Corporate Services,BARD LTD,0002121613,674.40,
Department of Health,East Sussex Hospitals NHS Trust,02/10/2013,OESOPHAGEAL (UPPER GI) STENTS,Integrated Care,AQUILANT INTERVENTIONAL,0002121630,1440.00,
Department of Health,East Sussex Hospitals NHS Trust,02/10/2013,STAFF LOCATION SYSTEM,Planned Care,MULTITONE ELECTRONICS P L C,0002121675,294.00,
Department of Health,East Sussex Hospitals NHS Trust,02/10/2013,STAFF LOCATION SYSTEM,Planned Care,MULTITONE ELECTRONICS P L C,0002121675,276.00,
Department of Health,East Sussex Hospitals NHS Trust,02/10/2013,OESOPHAGEAL (UPPER GI) STENTS,Planned Care,AQUILANT INTERVENTIONAL,0002121792,744.00,
Department of Health,East Sussex Hospitals NHS Trust,02/10/2013,M&S GENERAL SUPPLIES-OTHER,Planned Care,AQUILANT SURGICAL,0002121799,534.12,
Department of Health,East Sussex Hospitals NHS Trust,02/10/2013,SURGICAL INSTRUMENTS,Integrated Care,ROCKET MEDICAL PLC,0002121909,1464.00,
Department of Health,East Sussex Hospitals NHS Trust,02/10/2013,SURGICAL INSTRUMENTS,Integrated Care,ROCKET MEDICAL PLC,0002121910,732.00,
Department of Health,East Sussex Hospitals NHS Trust,02/10/2013,FURNITURE & FITTINGS,Urgent Care,GLEN DIMPLEX HOME APPLIANCES LTD,0002122020,630.00,
Department of Health,East Sussex Hospitals NHS Trust,02/10/2013,M&S GENERAL SUPPLIES-OTHER,Integrated Care,ROCKET MEDICAL PLC,0002122031,877.63,
Department of Health,East Sussex Hospitals NHS Trust,02/10/2013,M&S GENERAL SUPPLIES-OTHER,Urgent Care,ST JUDE MEDICAL UK LIMITED,0002122047,1998.72,
Department of Health,East Sussex Hospitals NHS Trust,02/10/2013,PROSTHESES-HIP,Planned Care,STRYKER UK,0002122109,544.32,
Department of Health,East Sussex Hospitals NHS Trust,02/10/2013,NATIONAL JOINT REGISTRY LEVY,Planned Care,STRYKER UK,0002122109,20.00,
Department of Health,East Sussex Hospitals NHS Trust,02/10/2013,GENERAL LAB. CONSUMABLES,Integrated Care,INSTRUMENTATION LABORATORIES UK LTD,0002122133,4174.20,
Department of Health,East Sussex Hospitals NHS Trust,02/10/2013,GENERAL LAB. CONSUMABLES,Integrated Care,SARSTEDT LTD,0002122137,800.28,
Department of Health,East Sussex Hospitals NHS Trust,02/10/2013,CONTRACT-VEHICLE LEASING,Commercial,LEX AUTOLEASE LTD,0002122244,324.27,
Department of Health,East Sussex Hospitals NHS Trust,02/10/2013,CONTRACT-VEHICLE LEASING,Commercial,LEX AUTOLEASE LTD,0002122244,280.66,
Department of Health,East Sussex Hospitals NHS Trust,02/10/2013,M&S GENERAL SUPPLIES-OTHER,Integrated Care,VYGON (UK) LTD,0002122261,726.90,
Department of Health,East Sussex Hospitals NHS Trust,02/10/2013,INTERVENTIONAL DISPOSABLES,Integrated Care,VYGON (UK) LTD,0002122261,708.00,
Department of Health,East Sussex Hospitals NHS Trust,02/10/2013,M&S GENERAL SUPPLIES-OTHER,Planned Care,STRYKER UK,0002122281,550.80,
Department of Health,East Sussex Hospitals NHS Trust,02/10/2013,M&S GENERAL SUPPLIES-OTHER,Planned Care,STRYKER UK,0002122360,777.60,
Department of Health,East Sussex Hospitals NHS Trust,02/10/2013,PROSTHESES-HIP,Planned Care,STRYKER UK,0002122405,612.36,
Department of Health,East Sussex Hospitals NHS Trust,02/10/2013,M&S GENERAL SUPPLIES-OTHER,Planned Care,STRYKER UK,0002122406,1404.84,
Department of Health,East Sussex Hospitals NHS Trust,02/10/2013,FURNITURE & FITTINGS,Planned Care,BEAVER HEALTHCARE EQUIPMENT,0002122498,1851.36,
Department of Health,East Sussex Hospitals NHS Trust,02/10/2013,FURNITURE & FITTINGS,Planned Care,BEAVER HEALTHCARE EQUIPMENT,0002122532,874.38,
Department of Health,East Sussex Hospitals NHS Trust,02/10/2013,DRESSINGS-OTHER,Urgent Care,ST JUDE MEDICAL UK LIMITED,0002122545,331.20,
Department of Health,East Sussex Hospitals NHS Trust,02/10/2013,INTERVENTIONAL DISPOSABLES,Urgent Care,ST JUDE MEDICAL UK LIMITED,0002122545,2520.00,
Department of Health,East Sussex Hospitals NHS Trust,02/10/2013,M&S GENERAL SUPPLIES-OTHER,Urgent Care,ST JUDE MEDICAL UK LIMITED,0002122691,1998.72,
Department of Health,East Sussex Hospitals NHS Trust,02/10/2013,BLOOD PRODUCTS - BPL,Integrated Care,BIO PRODUCTS LABORATORY,0002122885,1818.00,
Department of Health,East Sussex Hospitals NHS Trust,02/10/2013,GENERAL CHEMICALS,Integrated Care,BIO PRODUCTS LABORATORY,0002122885,169.50,
Department of Health,East Sussex Hospitals NHS Trust,02/10/2013,ENDOSCOPY CONSUMABLES,Planned Care,OLYMPUS KEYMED,0002123094,431.28,
Department of Health,East Sussex Hospitals NHS Trust,02/10/2013,M&S GENERAL SUPPLIES-OTHER,Planned Care,OLYMPUS KEYMED,0002123094,226.42,
Department of Health,East Sussex Hospitals NHS Trust,02/10/2013,M&S GENERAL SUPPLIES-OTHER,Planned Care,OLYMPUS KEYMED,0002123138,958.40,
Department of Health,East Sussex Hospitals NHS Trust,02/10/2013,PATS.APPL.-DENTAL,Planned Care,SOUTH EASTERN ORTHODONTICS,0002123215,1239.90,
Department of Health,East Sussex Hospitals NHS Trust,02/10/2013,GENERAL LAB. CONSUMABLES,Integrated Care,HOLOGIC UK LTD,0002123356,1066.80,
Department of Health,East Sussex Hospitals NHS Trust,02/10/2013,SURGICAL INSTRUMENTS,Planned Care,OLYMPUS KEYMED,0002123406,838.60,
Department of Health,East Sussex Hospitals NHS Trust,02/10/2013,PROSTHESES-OTHER,Planned Care,ZIMMER LTD,0002217650,6872.40,
Department of Health,East Sussex Hospitals NHS Trust,02/10/2013,PROSTHESES-OTHER,Planned Care,ZIMMER LTD,0002217651,1012.80,
Department of Health,East Sussex Hospitals NHS Trust,02/10/2013,UCKFIELD INSTRUMENTS REPAIR,Commercial,SMITH & NEPHEW ADVANCED SURGICAL DEVICES,0002217698,1462.80,
Department of Health,East Sussex Hospitals NHS Trust,02/10/2013,M&S GENERAL SUPPLIES-OTHER,Integrated Care,B BRAUN MEDICAL LTD,0002217756,596.28,
Department of Health,East Sussex Hospitals NHS Trust,02/10/2013,LAB MATERIALS - BECTON,Integrated Care,BECTON DICKINSON U.K. LTD,0002217961,1204.23,
Department of Health,East Sussex Hospitals NHS Trust,02/10/2013,M&S GENERAL SUPPLIES-OTHER,Commercial,STERIS LTD,0002218028,760.43,
Department of Health,East Sussex Hospitals NHS Trust,02/10/2013,ENGINEERING MATERIALS,Commercial,TLV EURO ENGINEERING UK LTD,0002218042,513.60,
Department of Health,East Sussex Hospitals NHS Trust,02/10/2013,M&S GENERAL SUPPLIES-OTHER,Planned Care,PULSION MEDICAL UK LTD,0002218053,4371.12,
Department of Health,East Sussex Hospitals NHS Trust,02/10/2013,TSSU INSTRUMENTATION,Commercial,SMITH & NEPHEW ADVANCED SURGICAL DEVICES,0002218056,530.88,
Department of Health,East Sussex Hospitals NHS Trust,02/10/2013,FURNITURE & FITTINGS,Integrated Care,UK LABORATORY CHAIRS,0002218065,615.89,
Department of Health,East Sussex Hospitals NHS Trust,02/10/2013,CONT.MAIN-MED & SURG EQUIP,Commercial,SMITH & NEPHEW ADVANCED SURGICAL DEVICES,0002218141,1777.70,
Department of Health,East Sussex Hospitals NHS Trust,02/10/2013,PROSTHESIS - GRAFTS,Planned Care,COLOPLAST LTD,0002218162,3800.71,
Department of Health,East Sussex Hospitals NHS Trust,02/10/2013,CARDIOLOGY CATHETERS,Urgent Care,BARD LTD,0002218189,2400.00,
Department of Health,East Sussex Hospitals NHS Trust,02/10/2013,M&S GENERAL SUPPLIES-OTHER,Urgent Care,BARD LTD,0002218235,660.00,
Department of Health,East Sussex Hospitals NHS Trust,02/10/2013,CARDIOLOGY CATHETERS,Urgent Care,BARD LTD,0002218235,3000.00,
Department of Health,East Sussex Hospitals NHS Trust,02/10/2013,M&S GENERAL SUPPLIES-OTHER,Urgent Care,BARD LTD,0002218236,660.00,
Department of Health,East Sussex Hospitals NHS Trust,02/10/2013,ENDOSCOPY CONSUMABLES,Planned Care,DIAGMED HEALTHCARE LTD,0002218244,660.00,
Department of Health,East Sussex Hospitals NHS Trust,02/10/2013,M&S GENERAL SUPPLIES-OTHER,Urgent Care,ST JUDE MEDICAL UK LIMITED,0002218246,750.00,
Department of Health,East Sussex Hospitals NHS Trust,02/10/2013,INTERVENTIONAL DISPOSABLES,Urgent Care,ST JUDE MEDICAL UK LIMITED,0002218246,240.00,
Department of Health,East Sussex Hospitals NHS Trust,02/10/2013,M&S GENERAL SUPPLIES-OTHER,Commercial,WESTFIELD MEDICAL LTD,0002218303,895.15,
Department of Health,East Sussex Hospitals NHS Trust,02/10/2013,CARDIOLOGY CATHETERS,Urgent Care,ST JUDE MEDICAL UK LIMITED,0002218330,3600.00,
Department of Health,East Sussex Hospitals NHS Trust,02/10/2013,INTERVENTIONAL DISPOSABLES,Urgent Care,ST JUDE MEDICAL UK LIMITED,0002218331,1560.00,
Department of Health,East Sussex Hospitals NHS Trust,02/10/2013,CARDIOLOGY CATHETERS,Urgent Care,ST JUDE MEDICAL UK LIMITED,0002218332,954.00,
Department of Health,East Sussex Hospitals NHS Trust,02/10/2013,CARDIOLOGY CATHETERS,Urgent Care,ST JUDE MEDICAL UK LIMITED,0002218333,954.00,
Department of Health,East Sussex Hospitals NHS Trust,02/10/2013,M&S GENERAL SUPPLIES-OTHER,Urgent Care,BARD LTD,0002218348,660.00,
Department of Health,East Sussex Hospitals NHS Trust,02/10/2013,CARDIOLOGY CATHETERS,Urgent Care,BARD LTD,0002218348,3000.00,
Department of Health,East Sussex Hospitals NHS Trust,02/10/2013,LAB MATERIALS - BECTON,Integrated Care,BECTON DICKINSON U.K. LTD,0002218353,12528.52,
Department of Health,East Sussex Hospitals NHS Trust,02/10/2013,M&S GENERAL SUPPLIES-OTHER,Commercial,LINA MEDICAL UK LTD,0002218356,900.00,
Department of Health,East Sussex Hospitals NHS Trust,02/10/2013,CONT.MAIN-MED & SURG EQUIP,Commercial,B BRAUN MEDICAL LTD,0002218358,850.00,
Department of Health,East Sussex Hospitals NHS Trust,02/10/2013,PROSTHESIS - GRAFTS,Planned Care,BARD LTD,0002218425,948.79,
Department of Health,East Sussex Hospitals NHS Trust,02/10/2013,HAEMAGLOBINOPATHY REAGENTS,Integrated Care,BIO-RAD LABORATORIES LTD,0002218441,1390.50,
Department of Health,East Sussex Hospitals NHS Trust,02/10/2013,BEDDING & LINEN - BED LINEN,Commercial,INVACARE UK LTD,0002218444,1008.00,
Department of Health,East Sussex Hospitals NHS Trust,02/10/2013,LAB MATERIALS - BECTON,Integrated Care,BECTON DICKINSON U.K. LTD,0002218476,5252.22,
Department of Health,East Sussex Hospitals NHS Trust,02/10/2013,TSSU INSTRUMENTATION,Commercial,SMITH & NEPHEW ADVANCED SURGICAL DEVICES,0002218555,1148.40,
Department of Health,East Sussex Hospitals NHS Trust,02/10/2013,M&S GENERAL SUPPLIES-OTHER,Urgent Care,BARD LTD,0002218572,1208.78,
Department of Health,East Sussex Hospitals NHS Trust,02/10/2013,M&S GENERAL SUPPLIES-OTHER,Integrated Care,ST JUDE MEDICAL UK LIMITED,0002218611,1998.72,
Department of Health,East Sussex Hospitals NHS Trust,02/10/2013,INTERVENTIONAL DISPOSABLES,Urgent Care,ST JUDE MEDICAL UK LIMITED,0002218699,2400.00,
Department of Health,East Sussex Hospitals NHS Trust,02/10/2013,CARDIOLOGY CATHETERS,Urgent Care,BARD LTD,0002218743,5400.00,
Department of Health,East Sussex Hospitals NHS Trust,02/10/2013,QUALITY CONTROL MATERIAL,Integrated Care,BIO-RAD LABORATORIES LTD,0002218767,1440.86,
Department of Health,East Sussex Hospitals NHS Trust,02/10/2013,M&S GENERAL SUPPLIES-OTHER,Commercial,WESTFIELD MEDICAL LTD,0002218790,1127.21,
Department of Health,East Sussex Hospitals NHS Trust,02/10/2013,LAB MATERIALS - ABBOTT,Integrated Care,ABBOTT LABORATORIES LTD,0002218821,3101.47,
Department of Health,East Sussex Hospitals NHS Trust,02/10/2013,M&S GENERAL SUPPLIES-OTHER,Urgent Care,ST JUDE MEDICAL UK LIMITED,0002218830,1998.72,
Department of Health,East Sussex Hospitals NHS Trust,02/10/2013,MED EQUIPMENT LEASES,Integrated Care,DE LAGE LANDEN LEASING LTD,0002218880,1607.68,
Department of Health,East Sussex Hospitals NHS Trust,02/10/2013,CARDIOLOGY CATHETERS,Urgent Care,BARD LTD,0002218916,1968.00,
Department of Health,East Sussex Hospitals NHS Trust,02/10/2013,CARDIOLOGY CATHETERS,Urgent Care,BARD LTD,0002218917,984.00,
Department of Health,East Sussex Hospitals NHS Trust,02/10/2013,M&S GENERAL SUPPLIES-OTHER,Urgent Care,BARD LTD,0002218962,1212.00,
Department of Health,East Sussex Hospitals NHS Trust,02/10/2013,CARDIOLOGY CATHETERS,Urgent Care,ST JUDE MEDICAL UK LIMITED,0002219039,6000.00,
Department of Health,East Sussex Hospitals NHS Trust,02/10/2013,LAB MATERIALS - OXOID,Integrated Care,OXOID LIMITED,0002219079,1163.22,
Department of Health,East Sussex Hospitals NHS Trust,02/10/2013,M&S GENERAL SUPPLIES-OTHER,Commercial,STERIS LTD,0002219089,697.25,
Department of Health,East Sussex Hospitals NHS Trust,02/10/2013,CARDIOLOGY CATHETERS,Urgent Care,AQUILANT INTERVENTIONAL,0002219090,1260.00,
Department of Health,East Sussex Hospitals NHS Trust,02/10/2013,OESOPHAGEAL (UPPER GI) STENTS,Integrated Care,AQUILANT INTERVENTIONAL,0002219091,1464.00,
Department of Health,East Sussex Hospitals NHS Trust,02/10/2013,M&S GENERAL SUPPLIES-OTHER,Commercial,WESTFIELD MEDICAL LTD,0002219095,1223.47,
Department of Health,East Sussex Hospitals NHS Trust,02/10/2013,MED EQUIPMENT LEASES,Planned Care,DE LAGE LANDEN LEASING LTD,0002219110,45259.31,
Department of Health,East Sussex Hospitals NHS Trust,02/10/2013,MED EQUIPMENT LEASES,Planned Care,DE LAGE LANDEN LEASING LTD,0002219110,45259.32,
Department of Health,East Sussex Hospitals NHS Trust,02/10/2013,MED EQUIPMENT LEASES,Planned Care,DE LAGE LANDEN LEASING LTD,0002219111,15365.18,
Department of Health,East Sussex Hospitals NHS Trust,02/10/2013,RENAL STENTS,Planned Care,COLOPLAST LTD,0002219140,1134.00,
Department of Health,East Sussex Hospitals NHS Trust,02/10/2013,M&S GENERAL SUPPLIES-OTHER,Planned Care,PULSION MEDICAL UK LTD,0002219154,4371.12,
Department of Health,East Sussex Hospitals NHS Trust,02/10/2013,M&S GENERAL SUPPLIES-OTHER,Planned Care,PULSION MEDICAL UK LTD,0002219158,24.00,
Department of Health,East Sussex Hospitals NHS Trust,02/10/2013,ELECTRO MEDICAL EQUIPMENT,Planned Care,PULSION MEDICAL UK LTD,0002219158,1020.00,
Department of Health,East Sussex Hospitals NHS Trust,02/10/2013,ENGINEERING MATERIALS,Commercial,CITY ELECTRICAL FACTORS,0002219177,555.28,
Department of Health,East Sussex Hospitals NHS Trust,02/10/2013,COMPUTER CONSUMABLES,Commercial,PRINTERBASE LTD,0002219223,705.78,
Department of Health,East Sussex Hospitals NHS Trust,02/10/2013,BEDDING & LINEN - BED LINEN,Commercial,INVACARE UK LTD,0002219294,1008.00,
Department of Health,East Sussex Hospitals NHS Trust,02/10/2013,CONT.MAIN-MED & SURG EQUIP,Urgent Care,BAXTER HEALTHCARE (BERKSHIRE)LTD,0002219350,631.92,
Department of Health,East Sussex Hospitals NHS Trust,02/10/2013,FURNITURE & FITTINGS,Integrated Care,GLEN DIMPLEX HOME APPLIANCES LTD,0002219482,1560.00,
Department of Health,East Sussex Hospitals NHS Trust,02/10/2013,LAB.REAGENTS-MISCELLANEOUS,Integrated Care,ALPHA LABORATORIES LTD,0002219555,582.30,
Department of Health,East Sussex Hospitals NHS Trust,02/10/2013,ENGINEERING MATERIALS,Commercial,CITY ELECTRICAL FACTORS,0002219572,1155.83,
Department of Health,East Sussex Hospitals NHS Trust,02/10/2013,MED EQUIPMENT LEASES,Planned Care,SHAWBROOK ASSET FINANCE,0002219662,2962.33,
Department of Health,East Sussex Hospitals NHS Trust,02/10/2013,MED EQUIPMENT LEASES,Planned Care,SHAWBROOK ASSET FINANCE,0002219663,2175.53,
Department of Health,East Sussex Hospitals NHS Trust,02/10/2013,COMPUTER CONSUMABLES,Commercial,PRINTERBASE LTD,0002219664,999.95,
Department of Health,East Sussex Hospitals NHS Trust,02/10/2013,COMPUTER CONSUMABLES,Commercial,PRINTERBASE LTD,0002219665,999.95,
Department of Health,East Sussex Hospitals NHS Trust,02/10/2013,M&S GENERAL SUPPLIES-OTHER,Commercial,WESTFIELD MEDICAL LTD,0002219707,905.89,
Department of Health,East Sussex Hospitals NHS Trust,02/10/2013,M&S GENERAL SUPPLIES-OTHER,Integrated Care,COOK (UK) LTD,0002219791,942.00,
Department of Health,East Sussex Hospitals NHS Trust,02/10/2013,BILIARY STENTS,Integrated Care,COOK (UK) LTD,0002219791,848.40,
Department of Health,East Sussex Hospitals NHS Trust,02/10/2013,BILIARY STENTS,Integrated Care,COOK (UK) LTD,0002219838,1212.00,
Department of Health,East Sussex Hospitals NHS Trust,02/10/2013,INTERVENTIONAL DISPOSABLES,Integrated Care,COOK (UK) LTD,0002219839,576.00,
Department of Health,East Sussex Hospitals NHS Trust,02/10/2013,CAPITAL EXPENDITURE,Other Central,IUVO LIMITED,0002219840,1500.00,
Department of Health,East Sussex Hospitals NHS Trust,02/10/2013,M & S EQUIP REPAIR MATERIALS,Commercial,LEE COOLING LTD,0002219858,744.02,
Department of Health,East Sussex Hospitals NHS Trust,02/10/2013,M & S EQUIP REPAIR MATERIALS,Planned Care,PHILIPS MEDICAL SYSTEMS UK LTD,0002219881,4765.92,
Department of Health,East Sussex Hospitals NHS Trust,02/10/2013,M&S GENERAL SUPPLIES-OTHER,Urgent Care,CAREFUSION UK 236 LTD,0002219899,753.46,
Department of Health,East Sussex Hospitals NHS Trust,02/10/2013,PATS.APPL.-DENTAL,Planned Care,ADRIAN KEARNS,0002219961,5100.00,
Department of Health,East Sussex Hospitals NHS Trust,02/10/2013,INTERVASCULAR STENTS,Integrated Care,COOK (UK) LTD,0002219989,1440.00,
Department of Health,East Sussex Hospitals NHS Trust,02/10/2013,COMPUTER MAINT - SOFTWARE,Corporate Services,CIVICA UK LTD,0002220040,7170.00,
Department of Health,East Sussex Hospitals NHS Trust,02/10/2013,OTHER STATIONERY,Commercial,NEOPOST LTD,0002220044,564.52,
Department of Health,East Sussex Hospitals NHS Trust,02/10/2013,SURGICAL INSTRUMENTS,Commercial,LYALL WILLIS & COMPANY,0002220201,1376.26,
Department of Health,East Sussex Hospitals NHS Trust,02/10/2013,SURGICAL INSTRUMENTS,Planned Care,HOLOGIC UK LTD,0002220232,1530.00,
Department of Health,East Sussex Hospitals NHS Trust,02/10/2013,M&S GENERAL SUPPLIES-OTHER,Commercial,FIELDSKILL CONQUEST LTD,0002220242,424.92,
Department of Health,East Sussex Hospitals NHS Trust,02/10/2013,STAFF UNIFORMS,Commercial,FIELDSKILL CONQUEST LTD,0002220242,209.11,
Department of Health,East Sussex Hospitals NHS Trust,02/10/2013,OTHER STATIONERY,Commercial,FIELDSKILL CONQUEST LTD,0002220245,505.97,
Department of Health,East Sussex Hospitals NHS Trust,02/10/2013,PRINTING/PRINTED MATERIALS,Corporate Services,ZEST PRINTING,0002220253,521.95,
Department of Health,East Sussex Hospitals NHS Trust,02/10/2013,STOCK-ASCRIBE EDGH,Pharmacy Stock,NORGINE PHARMACEUTICALS LTD,0013007522,641.28,
Department of Health,East Sussex Hospitals NHS Trust,02/10/2013,STOCK-ASCRIBE EDGH,Pharmacy Stock,GILEAD SCIENCES LTD,0013007812,6476.40,
Department of Health,East Sussex Hospitals NHS Trust,02/10/2013,STOCK-ASCRIBE EDGH,Pharmacy Stock,B BRAUN MEDICAL LTD,0013007824,579.60,
Department of Health,East Sussex Hospitals NHS Trust,02/10/2013,STOCK-ASCRIBE EDGH,Pharmacy Stock,JANSSEN-CILAG LTD,0013007856,7975.80,
Department of Health,East Sussex Hospitals NHS Trust,02/10/2013,STOCK-ASCRIBE EDGH,Pharmacy Stock,BIO PRODUCTS LABORATORY,0013008029,3095.00,
Department of Health,East Sussex Hospitals NHS Trust,02/10/2013,STOCK-ASCRIBE EDGH,Pharmacy Stock,BAXTER HEALTHCARE (BERKSHIRE)LTD,0013008059,777.60,
Department of Health,East Sussex Hospitals NHS Trust,02/10/2013,STOCK-ASCRIBE EDGH,Pharmacy Stock,MEDCO HEALTH SOLUTIONS LTD,0013008073,762.97,
Department of Health,East Sussex Hospitals NHS Trust,02/10/2013,STOCK-ASCRIBE EDGH,Pharmacy Stock,MEDCO HEALTH SOLUTIONS LTD,0013008074,762.97,
Department of Health,East Sussex Hospitals NHS Trust,02/10/2013,STOCK-ASCRIBE EDGH,Pharmacy Stock,MEDCO HEALTH SOLUTIONS LTD,0013008075,762.97,
Department of Health,East Sussex Hospitals NHS Trust,02/10/2013,STOCK-ASCRIBE EDGH,Pharmacy Stock,MEDCO HEALTH SOLUTIONS LTD,0013008076,762.97,
Department of Health,East Sussex Hospitals NHS Trust,02/10/2013,STOCK-ASCRIBE EDGH,Pharmacy Stock,MEDCO HEALTH SOLUTIONS LTD,0013008077,762.97,
Department of Health,East Sussex Hospitals NHS Trust,02/10/2013,STOCK-ASCRIBE EDGH,Pharmacy Stock,MEDCO HEALTH SOLUTIONS LTD,0013008078,762.97,
Department of Health,East Sussex Hospitals NHS Trust,02/10/2013,STOCK-ASCRIBE EDGH,Pharmacy Stock,MEDCO HEALTH SOLUTIONS LTD,0013008079,762.97,
Department of Health,East Sussex Hospitals NHS Trust,02/10/2013,STOCK-ASCRIBE EDGH,Pharmacy Stock,MEDCO HEALTH SOLUTIONS LTD,0013008080,762.97,
Department of Health,East Sussex Hospitals NHS Trust,02/10/2013,STOCK-ASCRIBE EDGH,Pharmacy Stock,MEDCO HEALTH SOLUTIONS LTD,0013008081,762.97,
Department of Health,East Sussex Hospitals NHS Trust,02/10/2013,STOCK-ASCRIBE EDGH,Pharmacy Stock,MEDCO HEALTH SOLUTIONS LTD,0013008082,762.97,
Department of Health,East Sussex Hospitals NHS Trust,02/10/2013,STOCK-ASCRIBE EDGH,Pharmacy Stock,MEDCO HEALTH SOLUTIONS LTD,0013008083,762.97,
Department of Health,East Sussex Hospitals NHS Trust,02/10/2013,STOCK-ASCRIBE EDGH,Pharmacy Stock,MEDCO HEALTH SOLUTIONS LTD,0013008084,762.97,
Department of Health,East Sussex Hospitals NHS Trust,02/10/2013,STOCK-ASCRIBE EDGH,Pharmacy Stock,MEDCO HEALTH SOLUTIONS LTD,0013008085,1271.00,
Department of Health,East Sussex Hospitals NHS Trust,02/10/2013,STOCK-ASCRIBE EDGH,Pharmacy Stock,MEDCO HEALTH SOLUTIONS LTD,0013008086,1271.00,
Department of Health,East Sussex Hospitals NHS Trust,02/10/2013,STOCK-ASCRIBE EDGH,Pharmacy Stock,MEDCO HEALTH SOLUTIONS LTD,0013008087,1577.00,
Department of Health,East Sussex Hospitals NHS Trust,02/10/2013,STOCK-ASCRIBE EDGH,Pharmacy Stock,ALCURA UK LTD,0013008112,704.28,
Department of Health,East Sussex Hospitals NHS Trust,02/10/2013,STOCK-ASCRIBE EDGH,Pharmacy Stock,ALCURA UK LTD,0013008121,704.28,
Department of Health,East Sussex Hospitals NHS Trust,02/10/2013,STOCK-ASCRIBE EDGH,Pharmacy Stock,ALCURA UK LTD,0013008122,789.00,
Department of Health,East Sussex Hospitals NHS Trust,02/10/2013,STOCK-ASCRIBE EDGH,Pharmacy Stock,ALCURA UK LTD,0013008125,785.88,
Department of Health,East Sussex Hospitals NHS Trust,02/10/2013,STOCK-ASCRIBE EDGH,Pharmacy Stock,ALCURA UK LTD,0013008130,785.88,
Department of Health,East Sussex Hospitals NHS Trust,02/10/2013,STOCK-ASCRIBE EDGH,Pharmacy Stock,ALCURA UK LTD,0013008134,785.88,
Department of Health,East Sussex Hospitals NHS Trust,02/10/2013,STOCK-ASCRIBE EDGH,Pharmacy Stock,ALCURA UK LTD,0013008135,780.76,
Department of Health,East Sussex Hospitals NHS Trust,02/10/2013,STOCK-ASCRIBE EDGH,Pharmacy Stock,ALCURA UK LTD,0013008160,704.28,
Department of Health,East Sussex Hospitals NHS Trust,02/10/2013,STOCK-ASCRIBE EDGH,Pharmacy Stock,ALCURA UK LTD,0013008161,704.28,
Department of Health,East Sussex Hospitals NHS Trust,02/10/2013,STOCK-ASCRIBE EDGH,Pharmacy Stock,ALCURA UK LTD,0013008163,704.28,
Department of Health,East Sussex Hospitals NHS Trust,02/10/2013,STOCK-ASCRIBE EDGH,Pharmacy Stock,ALCURA UK LTD,0013008207,715.00,
Department of Health,East Sussex Hospitals NHS Trust,02/10/2013,STOCK-ASCRIBE EDGH,Pharmacy Stock,ALCURA UK LTD,0013008210,715.00,
Department of Health,East Sussex Hospitals NHS Trust,02/10/2013,STOCK-ASCRIBE EDGH,Pharmacy Stock,ALLIANCE HEALTHCARE (DISTRIBUTION) LTD,0013008635,534.00,
Department of Health,East Sussex Hospitals NHS Trust,02/10/2013,STOCK-ASCRIBE EDGH,Pharmacy Stock,ALLIANCE HEALTHCARE (DISTRIBUTION) LTD,0013008637,3720.00,
Department of Health,East Sussex Hospitals NHS Trust,02/10/2013,STOCK-ASCRIBE EDGH,Pharmacy Stock,MEDCO HEALTH SOLUTIONS LTD,0013008690,1271.00,
Department of Health,East Sussex Hospitals NHS Trust,02/10/2013,STOCK-ASCRIBE EDGH,Pharmacy Stock,BIO PRODUCTS LABORATORY,0013008818,3095.00,
Department of Health,East Sussex Hospitals NHS Trust,02/10/2013,STOCK-ASCRIBE EDGH,Pharmacy Stock,ALCURA UK LTD,0013008916,3818.40,
Department of Health,East Sussex Hospitals NHS Trust,02/10/2013,STOCK-ASCRIBE EDGH,Pharmacy Stock,NOVARTIS PHARMACEUTICALS UK LTD,0013008922,836.06,
Department of Health,East Sussex Hospitals NHS Trust,02/10/2013,STOCK-ASCRIBE EDGH,Pharmacy Stock,NOVARTIS PHARMACEUTICALS UK LTD,0013008935,32061.60,
Department of Health,East Sussex Hospitals NHS Trust,02/10/2013,STOCK-ASCRIBE EDGH,Pharmacy Stock,BAXTER HEALTHCARE (BERKSHIRE)LTD,0013008987,630.00,
Department of Health,East Sussex Hospitals NHS Trust,02/10/2013,STOCK-ASCRIBE EDGH,Pharmacy Stock,BAXTER HEALTHCARE (BERKSHIRE)LTD,0013008988,1260.00,
Department of Health,East Sussex Hospitals NHS Trust,02/10/2013,STOCK-ASCRIBE EDGH,Pharmacy Stock,BAXTER HEALTHCARE (BERKSHIRE)LTD,0013008990,630.00,
Department of Health,East Sussex Hospitals NHS Trust,02/10/2013,STOCK-ASCRIBE EDGH,Pharmacy Stock,BAXTER HEALTHCARE (BERKSHIRE)LTD,0013008993,630.00,
Department of Health,East Sussex Hospitals NHS Trust,02/10/2013,STOCK-ASCRIBE EDGH,Pharmacy Stock,ALLIANCE HEALTHCARE (DISTRIBUTION) LTD,0013008994,1488.00,
Department of Health,East Sussex Hospitals NHS Trust,02/10/2013,STOCK-ASCRIBE EDGH,Pharmacy Stock,BAXTER HEALTHCARE (BERKSHIRE)LTD,0013008996,588.00,
Department of Health,East Sussex Hospitals NHS Trust,02/10/2013,STOCK-ASCRIBE EDGH,Pharmacy Stock,BAXTER HEALTHCARE (BERKSHIRE)LTD,0013008999,1802.64,
Department of Health,East Sussex Hospitals NHS Trust,02/10/2013,STOCK-ASCRIBE EDGH,Pharmacy Stock,BAYER PLC,0013009051,10488.00,
Department of Health,East Sussex Hospitals NHS Trust,02/10/2013,STOCK-ASCRIBE EDGH,Pharmacy Stock,HEALTHCARE AT HOME LTD,0013009300,715.00,
Department of Health,East Sussex Hospitals NHS Trust,02/10/2013,STOCK-ASCRIBE EDGH,Pharmacy Stock,HEALTHCARE AT HOME LTD,0013009301,715.00,
Department of Health,East Sussex Hospitals NHS Trust,02/10/2013,STOCK-ASCRIBE EDGH,Pharmacy Stock,HEALTHCARE AT HOME LTD,0013009302,704.28,
Department of Health,East Sussex Hospitals NHS Trust,02/10/2013,STOCK-ASCRIBE EDGH,Pharmacy Stock,HEALTHCARE AT HOME LTD,0013009303,715.00,
Department of Health,East Sussex Hospitals NHS Trust,02/10/2013,STOCK-ASCRIBE EDGH,Pharmacy Stock,HEALTHCARE AT HOME LTD,0013009304,715.00,
Department of Health,East Sussex Hospitals NHS Trust,02/10/2013,STOCK-ASCRIBE EDGH,Pharmacy Stock,HEALTHCARE AT HOME LTD,0013009305,715.00,
Department of Health,East Sussex Hospitals NHS Trust,02/10/2013,STOCK-ASCRIBE EDGH,Pharmacy Stock,HEALTHCARE AT HOME LTD,0013009306,715.00,
Department of Health,East Sussex Hospitals NHS Trust,02/10/2013,STOCK-ASCRIBE EDGH,Pharmacy Stock,HEALTHCARE AT HOME LTD,0013009307,704.28,
Department of Health,East Sussex Hospitals NHS Trust,02/10/2013,STOCK-ASCRIBE EDGH,Pharmacy Stock,HEALTHCARE AT HOME LTD,0013009308,704.28,
Department of Health,East Sussex Hospitals NHS Trust,02/10/2013,STOCK-ASCRIBE EDGH,Pharmacy Stock,HEALTHCARE AT HOME LTD,0013009309,715.00,
Department of Health,East Sussex Hospitals NHS Trust,02/10/2013,STOCK-ASCRIBE EDGH,Pharmacy Stock,HEALTHCARE AT HOME LTD,0013009310,715.00,
Department of Health,East Sussex Hospitals NHS Trust,02/10/2013,STOCK-ASCRIBE EDGH,Pharmacy Stock,HEALTHCARE AT HOME LTD,0013009311,704.28,
Department of Health,East Sussex Hospitals NHS Trust,02/10/2013,STOCK-ASCRIBE EDGH,Pharmacy Stock,HEALTHCARE AT HOME LTD,0013009312,715.00,
Department of Health,East Sussex Hospitals NHS Trust,02/10/2013,STOCK-ASCRIBE EDGH,Pharmacy Stock,HEALTHCARE AT HOME LTD,0013009313,715.00,
Department of Health,East Sussex Hospitals NHS Trust,02/10/2013,STOCK-ASCRIBE EDGH,Pharmacy Stock,HEALTHCARE AT HOME LTD,0013009314,1430.00,
Department of Health,East Sussex Hospitals NHS Trust,02/10/2013,STOCK-ASCRIBE EDGH,Pharmacy Stock,HEALTHCARE AT HOME LTD,0013009315,704.28,
Department of Health,East Sussex Hospitals NHS Trust,02/10/2013,STOCK-ASCRIBE EDGH,Pharmacy Stock,HEALTHCARE AT HOME LTD,0013009316,704.28,
Department of Health,East Sussex Hospitals NHS Trust,02/10/2013,STOCK-ASCRIBE EDGH,Pharmacy Stock,HEALTHCARE AT HOME LTD,0013009317,715.00,
Department of Health,East Sussex Hospitals NHS Trust,02/10/2013,STOCK-ASCRIBE EDGH,Pharmacy Stock,HEALTHCARE AT HOME LTD,0013009318,704.28,
Department of Health,East Sussex Hospitals NHS Trust,02/10/2013,STOCK-ASCRIBE EDGH,Pharmacy Stock,HEALTHCARE AT HOME LTD,0013009319,704.28,
Department of Health,East Sussex Hospitals NHS Trust,02/10/2013,STOCK-ASCRIBE EDGH,Pharmacy Stock,HEALTHCARE AT HOME LTD,0013009320,1408.56,
Department of Health,East Sussex Hospitals NHS Trust,02/10/2013,STOCK-ASCRIBE EDGH,Pharmacy Stock,HEALTHCARE AT HOME LTD,0013009321,715.00,
Department of Health,East Sussex Hospitals NHS Trust,02/10/2013,STOCK-ASCRIBE EDGH,Pharmacy Stock,HEALTHCARE AT HOME LTD,0013009322,704.28,
Department of Health,East Sussex Hospitals NHS Trust,02/10/2013,STOCK-ASCRIBE EDGH,Pharmacy Stock,HEALTHCARE AT HOME LTD,0013009323,704.28,
Department of Health,East Sussex Hospitals NHS Trust,02/10/2013,STOCK-ASCRIBE EDGH,Pharmacy Stock,HEALTHCARE AT HOME LTD,0013009324,715.00,
Department of Health,East Sussex Hospitals NHS Trust,02/10/2013,STOCK-ASCRIBE EDGH,Pharmacy Stock,HEALTHCARE AT HOME LTD,0013009325,704.28,
Department of Health,East Sussex Hospitals NHS Trust,02/10/2013,STOCK-ASCRIBE EDGH,Pharmacy Stock,HEALTHCARE AT HOME LTD,0013009326,715.00,
Department of Health,East Sussex Hospitals NHS Trust,02/10/2013,STOCK-ASCRIBE EDGH,Pharmacy Stock,HEALTHCARE AT HOME LTD,0013009327,704.28,
Department of Health,East Sussex Hospitals NHS Trust,02/10/2013,STOCK-ASCRIBE EDGH,Pharmacy Stock,HEALTHCARE AT HOME LTD,0013009328,704.28,
Department of Health,East Sussex Hospitals NHS Trust,02/10/2013,STOCK-ASCRIBE EDGH,Pharmacy Stock,HEALTHCARE AT HOME LTD,0013009329,704.28,
Department of Health,East Sussex Hospitals NHS Trust,02/10/2013,STOCK-ASCRIBE EDGH,Pharmacy Stock,HEALTHCARE AT HOME LTD,0013009330,715.00,
Department of Health,East Sussex Hospitals NHS Trust,02/10/2013,STOCK-ASCRIBE EDGH,Pharmacy Stock,HEALTHCARE AT HOME LTD,0013009331,715.00,
Department of Health,East Sussex Hospitals NHS Trust,02/10/2013,STOCK-ASCRIBE EDGH,Pharmacy Stock,HEALTHCARE AT HOME LTD,0013009332,715.00,
Department of Health,East Sussex Hospitals NHS Trust,02/10/2013,STOCK-ASCRIBE EDGH,Pharmacy Stock,HEALTHCARE AT HOME LTD,0013009333,715.00,
Department of Health,East Sussex Hospitals NHS Trust,02/10/2013,STOCK-ASCRIBE EDGH,Pharmacy Stock,HEALTHCARE AT HOME LTD,0013009334,704.28,
Department of Health,East Sussex Hospitals NHS Trust,02/10/2013,STOCK-ASCRIBE EDGH,Pharmacy Stock,HEALTHCARE AT HOME LTD,0013009335,704.28,
Department of Health,East Sussex Hospitals NHS Trust,02/10/2013,STOCK-ASCRIBE EDGH,Pharmacy Stock,HEALTHCARE AT HOME LTD,0013009336,704.28,
Department of Health,East Sussex Hospitals NHS Trust,02/10/2013,STOCK-ASCRIBE EDGH,Pharmacy Stock,HEALTHCARE AT HOME LTD,0013009337,704.28,
Department of Health,East Sussex Hospitals NHS Trust,02/10/2013,STOCK-ASCRIBE EDGH,Pharmacy Stock,HEALTHCARE AT HOME LTD,0013009338,715.00,
Department of Health,East Sussex Hospitals NHS Trust,02/10/2013,STOCK-ASCRIBE EDGH,Pharmacy Stock,HEALTHCARE AT HOME LTD,0013009339,715.00,
Department of Health,East Sussex Hospitals NHS Trust,02/10/2013,STOCK-ASCRIBE EDGH,Pharmacy Stock,HEALTHCARE AT HOME LTD,0013009340,715.00,
Department of Health,East Sussex Hospitals NHS Trust,02/10/2013,STOCK-ASCRIBE EDGH,Pharmacy Stock,HEALTHCARE AT HOME LTD,0013009341,715.00,
Department of Health,East Sussex Hospitals NHS Trust,02/10/2013,STOCK-ASCRIBE EDGH,Pharmacy Stock,HEALTHCARE AT HOME LTD,0013009342,704.28,
Department of Health,East Sussex Hospitals NHS Trust,02/10/2013,STOCK-ASCRIBE EDGH,Pharmacy Stock,HEALTHCARE AT HOME LTD,0013009343,715.00,
Department of Health,East Sussex Hospitals NHS Trust,02/10/2013,STOCK-ASCRIBE EDGH,Pharmacy Stock,HEALTHCARE AT HOME LTD,0013009344,715.00,
Department of Health,East Sussex Hospitals NHS Trust,02/10/2013,STOCK-ASCRIBE EDGH,Pharmacy Stock,HEALTHCARE AT HOME LTD,0013009345,715.00,
Department of Health,East Sussex Hospitals NHS Trust,02/10/2013,STOCK-ASCRIBE EDGH,Pharmacy Stock,HEALTHCARE AT HOME LTD,0013009346,715.00,
Department of Health,East Sussex Hospitals NHS Trust,02/10/2013,STOCK-ASCRIBE EDGH,Pharmacy Stock,HEALTHCARE AT HOME LTD,0013009347,715.00,
Department of Health,East Sussex Hospitals NHS Trust,02/10/2013,STOCK-ASCRIBE EDGH,Pharmacy Stock,HEALTHCARE AT HOME LTD,0013009354,704.28,
Department of Health,East Sussex Hospitals NHS Trust,02/10/2013,STOCK-ASCRIBE EDGH,Pharmacy Stock,HEALTHCARE AT HOME LTD,0013009355,715.00,
Department of Health,East Sussex Hospitals NHS Trust,02/10/2013,STOCK-ASCRIBE EDGH,Pharmacy Stock,HEALTHCARE AT HOME LTD,0013009356,715.00,
Department of Health,East Sussex Hospitals NHS Trust,02/10/2013,STOCK-ASCRIBE EDGH,Pharmacy Stock,HEALTHCARE AT HOME LTD,0013009358,715.00,
Department of Health,East Sussex Hospitals NHS Trust,02/10/2013,STOCK-ASCRIBE EDGH,Pharmacy Stock,HEALTHCARE AT HOME LTD,0013009359,715.00,
Department of Health,East Sussex Hospitals NHS Trust,02/10/2013,STOCK-ASCRIBE EDGH,Pharmacy Stock,HEALTHCARE AT HOME LTD,0013009361,704.28,
Department of Health,East Sussex Hospitals NHS Trust,02/10/2013,STOCK-ASCRIBE EDGH,Pharmacy Stock,BAYER PLC,0013009490,10488.00,
Department of Health,East Sussex Hospitals NHS Trust,02/10/2013,STOCK-ASCRIBE EDGH,Pharmacy Stock,BAYER PLC,0013009496,930.00,
Department of Health,East Sussex Hospitals NHS Trust,02/10/2013,STOCK-ASCRIBE EDGH,Pharmacy Stock,HEALTHCARE AT HOME LTD,0013009566,715.00,
Department of Health,East Sussex Hospitals NHS Trust,02/10/2013,STOCK-ASCRIBE EDGH,Pharmacy Stock,HEALTHCARE AT HOME LTD,0013009567,715.00,
Department of Health,East Sussex Hospitals NHS Trust,02/10/2013,STOCK-ASCRIBE EDGH,Pharmacy Stock,HEALTHCARE AT HOME LTD,0013009571,715.00,
Department of Health,East Sussex Hospitals NHS Trust,02/10/2013,STOCK-ASCRIBE EDGH,Pharmacy Stock,HEALTHCARE AT HOME LTD,0013009572,715.00,
Department of Health,East Sussex Hospitals NHS Trust,02/10/2013,STOCK-ASCRIBE EDGH,Pharmacy Stock,HEALTHCARE AT HOME LTD,0013009573,715.00,
Department of Health,East Sussex Hospitals NHS Trust,02/10/2013,STOCK-ASCRIBE EDGH,Pharmacy Stock,HEALTHCARE AT HOME LTD,0013009574,704.28,
Department of Health,East Sussex Hospitals NHS Trust,02/10/2013,STOCK-ASCRIBE EDGH,Pharmacy Stock,HEALTHCARE AT HOME LTD,0013009575,715.00,
Department of Health,East Sussex Hospitals NHS Trust,02/10/2013,STOCK-ASCRIBE EDGH,Pharmacy Stock,HEALTHCARE AT HOME LTD,0013009576,704.28,
Department of Health,East Sussex Hospitals NHS Trust,02/10/2013,STOCK-ASCRIBE EDGH,Pharmacy Stock,HEALTHCARE AT HOME LTD,0013009577,704.28,
Department of Health,East Sussex Hospitals NHS Trust,02/10/2013,STOCK-ASCRIBE EDGH,Pharmacy Stock,HEALTHCARE AT HOME LTD,0013009579,715.00,
Department of Health,East Sussex Hospitals NHS Trust,02/10/2013,STOCK-ASCRIBE EDGH,Pharmacy Stock,HEALTHCARE AT HOME LTD,0013009580,704.28,
Department of Health,East Sussex Hospitals NHS Trust,02/10/2013,STOCK-ASCRIBE EDGH,Pharmacy Stock,HEALTHCARE AT HOME LTD,0013009581,715.00,
Department of Health,East Sussex Hospitals NHS Trust,02/10/2013,STOCK-ASCRIBE EDGH,Pharmacy Stock,HEALTHCARE AT HOME LTD,0013009582,715.00,
Department of Health,East Sussex Hospitals NHS Trust,02/10/2013,STOCK-ASCRIBE EDGH,Pharmacy Stock,HEALTHCARE AT HOME LTD,0013009583,715.00,
Department of Health,East Sussex Hospitals NHS Trust,02/10/2013,STOCK-ASCRIBE EDGH,Pharmacy Stock,HEALTHCARE AT HOME LTD,0013009584,715.00,
Department of Health,East Sussex Hospitals NHS Trust,02/10/2013,STOCK-ASCRIBE EDGH,Pharmacy Stock,HEALTHCARE AT HOME LTD,0013009585,1408.56,
Department of Health,East Sussex Hospitals NHS Trust,02/10/2013,STOCK-ASCRIBE EDGH,Pharmacy Stock,HEALTHCARE AT HOME LTD,0013009586,1920.80,
Department of Health,East Sussex Hospitals NHS Trust,02/10/2013,STOCK-ASCRIBE EDGH,Pharmacy Stock,HEALTHCARE AT HOME LTD,0013009587,1920.80,
Department of Health,East Sussex Hospitals NHS Trust,02/10/2013,STOCK-ASCRIBE EDGH,Pharmacy Stock,HEALTHCARE AT HOME LTD,0013009588,1382.15,
Department of Health,East Sussex Hospitals NHS Trust,02/10/2013,STOCK-ASCRIBE EDGH,Pharmacy Stock,HEALTHCARE AT HOME LTD,0013009589,715.00,
Department of Health,East Sussex Hospitals NHS Trust,02/10/2013,STOCK-ASCRIBE EDGH,Pharmacy Stock,HEALTHCARE AT HOME LTD,0013009590,715.00,
Department of Health,East Sussex Hospitals NHS Trust,02/10/2013,STOCK-ASCRIBE EDGH,Pharmacy Stock,HEALTHCARE AT HOME LTD,0013009591,704.28,
Department of Health,East Sussex Hospitals NHS Trust,02/10/2013,STOCK-ASCRIBE EDGH,Pharmacy Stock,HEALTHCARE AT HOME LTD,0013009592,704.28,
Department of Health,East Sussex Hospitals NHS Trust,02/10/2013,STOCK-ASCRIBE EDGH,Pharmacy Stock,HEALTHCARE AT HOME LTD,0013009593,715.00,
Department of Health,East Sussex Hospitals NHS Trust,02/10/2013,STOCK-ASCRIBE EDGH,Pharmacy Stock,HEALTHCARE AT HOME LTD,0013009595,704.28,
Department of Health,East Sussex Hospitals NHS Trust,02/10/2013,STOCK-ASCRIBE EDGH,Pharmacy Stock,HEALTHCARE AT HOME LTD,0013009596,1408.56,
Department of Health,East Sussex Hospitals NHS Trust,02/10/2013,STOCK-ASCRIBE EDGH,Pharmacy Stock,HEALTHCARE AT HOME LTD,0013009597,704.28,
Department of Health,East Sussex Hospitals NHS Trust,02/10/2013,STOCK-ASCRIBE EDGH,Pharmacy Stock,HEALTHCARE AT HOME LTD,0013009598,715.00,
Department of Health,East Sussex Hospitals NHS Trust,02/10/2013,STOCK-ASCRIBE EDGH,Pharmacy Stock,HEALTHCARE AT HOME LTD,0013009599,704.28,
Department of Health,East Sussex Hospitals NHS Trust,02/10/2013,STOCK-ASCRIBE EDGH,Pharmacy Stock,HEALTHCARE AT HOME LTD,0013009600,815.64,
Department of Health,East Sussex Hospitals NHS Trust,02/10/2013,STOCK-ASCRIBE EDGH,Pharmacy Stock,HEALTHCARE AT HOME LTD,0013009601,815.64,
Department of Health,East Sussex Hospitals NHS Trust,02/10/2013,STOCK-ASCRIBE EDGH,Pharmacy Stock,HEALTHCARE AT HOME LTD,0013009602,715.00,
Department of Health,East Sussex Hospitals NHS Trust,02/10/2013,STOCK-ASCRIBE EDGH,Pharmacy Stock,HEALTHCARE AT HOME LTD,0013009603,704.28,
Department of Health,East Sussex Hospitals NHS Trust,02/10/2013,STOCK-ASCRIBE EDGH,Pharmacy Stock,HEALTHCARE AT HOME LTD,0013009604,715.00,
Department of Health,East Sussex Hospitals NHS Trust,02/10/2013,STOCK-ASCRIBE EDGH,Pharmacy Stock,HEALTHCARE AT HOME LTD,0013009605,715.00,
Department of Health,East Sussex Hospitals NHS Trust,02/10/2013,STOCK-ASCRIBE EDGH,Pharmacy Stock,HEALTHCARE AT HOME LTD,0013009606,704.28,
Department of Health,East Sussex Hospitals NHS Trust,02/10/2013,STOCK-ASCRIBE EDGH,Pharmacy Stock,HEALTHCARE AT HOME LTD,0013009607,704.28,
Department of Health,East Sussex Hospitals NHS Trust,02/10/2013,STOCK-ASCRIBE EDGH,Pharmacy Stock,HEALTHCARE AT HOME LTD,0013009608,715.00,
Department of Health,East Sussex Hospitals NHS Trust,02/10/2013,STOCK-ASCRIBE EDGH,Pharmacy Stock,HEALTHCARE AT HOME LTD,0013009609,715.00,
Department of Health,East Sussex Hospitals NHS Trust,02/10/2013,STOCK-ASCRIBE EDGH,Pharmacy Stock,HEALTHCARE AT HOME LTD,0013009610,715.00,
Department of Health,East Sussex Hospitals NHS Trust,02/10/2013,STOCK-ASCRIBE EDGH,Pharmacy Stock,HEALTHCARE AT HOME LTD,0013009611,715.00,
Department of Health,East Sussex Hospitals NHS Trust,02/10/2013,STOCK-ASCRIBE EDGH,Pharmacy Stock,HEALTHCARE AT HOME LTD,0013009612,715.00,
Department of Health,East Sussex Hospitals NHS Trust,02/10/2013,STOCK-ASCRIBE EDGH,Pharmacy Stock,HEALTHCARE AT HOME LTD,0013009613,704.28,
Department of Health,East Sussex Hospitals NHS Trust,02/10/2013,STOCK-ASCRIBE EDGH,Pharmacy Stock,HEALTHCARE AT HOME LTD,0013009614,715.00,
Department of Health,East Sussex Hospitals NHS Trust,02/10/2013,STOCK-ASCRIBE EDGH,Pharmacy Stock,HEALTHCARE AT HOME LTD,0013009615,715.00,
Department of Health,East Sussex Hospitals NHS Trust,02/10/2013,STOCK-ASCRIBE EDGH,Pharmacy Stock,HEALTHCARE AT HOME LTD,0013009616,715.00,
Department of Health,East Sussex Hospitals NHS Trust,02/10/2013,STOCK-ASCRIBE EDGH,Pharmacy Stock,HEALTHCARE AT HOME LTD,0013009617,715.00,
Department of Health,East Sussex Hospitals NHS Trust,02/10/2013,STOCK-ASCRIBE EDGH,Pharmacy Stock,HEALTHCARE AT HOME LTD,0013009618,715.00,
Department of Health,East Sussex Hospitals NHS Trust,02/10/2013,STOCK-ASCRIBE EDGH,Pharmacy Stock,HEALTHCARE AT HOME LTD,0013009619,704.28,
Department of Health,East Sussex Hospitals NHS Trust,02/10/2013,STOCK-ASCRIBE EDGH,Pharmacy Stock,HEALTHCARE AT HOME LTD,0013009620,715.00,
Department of Health,East Sussex Hospitals NHS Trust,02/10/2013,STOCK-ASCRIBE EDGH,Pharmacy Stock,HEALTHCARE AT HOME LTD,0013009621,704.28,
Department of Health,East Sussex Hospitals NHS Trust,02/10/2013,STOCK-ASCRIBE EDGH,Pharmacy Stock,HEALTHCARE AT HOME LTD,0013009622,704.28,
Department of Health,East Sussex Hospitals NHS Trust,02/10/2013,STOCK-ASCRIBE EDGH,Pharmacy Stock,HEALTHCARE AT HOME LTD,0013009623,715.00,
Department of Health,East Sussex Hospitals NHS Trust,02/10/2013,STOCK-ASCRIBE EDGH,Pharmacy Stock,HEALTHCARE AT HOME LTD,0013009624,715.00,
Department of Health,East Sussex Hospitals NHS Trust,02/10/2013,STOCK-ASCRIBE EDGH,Pharmacy Stock,HEALTHCARE AT HOME LTD,0013009625,715.00,
Department of Health,East Sussex Hospitals NHS Trust,02/10/2013,STOCK-ASCRIBE EDGH,Pharmacy Stock,HEALTHCARE AT HOME LTD,0013009626,715.00,
Department of Health,East Sussex Hospitals NHS Trust,02/10/2013,STOCK-ASCRIBE EDGH,Pharmacy Stock,HEALTHCARE AT HOME LTD,0013009627,715.00,
Department of Health,East Sussex Hospitals NHS Trust,02/10/2013,STOCK-ASCRIBE EDGH,Pharmacy Stock,HEALTHCARE AT HOME LTD,0013009628,654.00,
Department of Health,East Sussex Hospitals NHS Trust,02/10/2013,STOCK-ASCRIBE EDGH,Pharmacy Stock,HEALTHCARE AT HOME LTD,0013009629,715.00,
Department of Health,East Sussex Hospitals NHS Trust,02/10/2013,STOCK-ASCRIBE EDGH,Pharmacy Stock,HEALTHCARE AT HOME LTD,0013009630,704.28,
Department of Health,East Sussex Hospitals NHS Trust,02/10/2013,STOCK-ASCRIBE EDGH,Pharmacy Stock,HEALTHCARE AT HOME LTD,0013009631,715.00,
Department of Health,East Sussex Hospitals NHS Trust,02/10/2013,STOCK-ASCRIBE EDGH,Pharmacy Stock,HEALTHCARE AT HOME LTD,0013009632,715.00,
Department of Health,East Sussex Hospitals NHS Trust,02/10/2013,STOCK-ASCRIBE EDGH,Pharmacy Stock,HEALTHCARE AT HOME LTD,0013009633,715.00,
Department of Health,East Sussex Hospitals NHS Trust,02/10/2013,STOCK-ASCRIBE EDGH,Pharmacy Stock,HEALTHCARE AT HOME LTD,0013009634,715.00,
Department of Health,East Sussex Hospitals NHS Trust,02/10/2013,STOCK-ASCRIBE EDGH,Pharmacy Stock,HEALTHCARE AT HOME LTD,0013009684,565.72,
Department of Health,East Sussex Hospitals NHS Trust,02/10/2013,STOCK-ASCRIBE EDGH,Pharmacy Stock,HEALTHCARE AT HOME LTD,0013009685,565.72,
Department of Health,East Sussex Hospitals NHS Trust,02/10/2013,TURIS UROLOGY M&S,Planned Care,OLYMPUS KEYMED,0080000049,3594.00,
Department of Health,East Sussex Hospitals NHS Trust,02/10/2013,TURIS UROLOGY M&S,Planned Care,OLYMPUS KEYMED,0080000050,1797.00,
Department of Health,East Sussex Hospitals NHS Trust,02/10/2013,M&S GENERAL SUPPLIES-OTHER,Planned Care,OLYMPUS KEYMED,0080000058,4432.60,
Department of Health,East Sussex Hospitals NHS Trust,02/10/2013,SURGICAL INSTRUMENTS,Planned Care,SURGICRAFT LIMITED,0080000248,42.00,
Department of Health,East Sussex Hospitals NHS Trust,02/10/2013,PROSTHESIS - SHOULDERS,Planned Care,SURGICRAFT LIMITED,0080000248,927.60,
Department of Health,East Sussex Hospitals NHS Trust,02/10/2013,CONTINENCE PRODUCTS,Urgent Care,PAUL HARTMANN LTD,0080000342,52.49,
Department of Health,East Sussex Hospitals NHS Trust,02/10/2013,CONTINENCE PRODUCTS,Urgent Care,PAUL HARTMANN LTD,0080000342,68.50,
Department of Health,East Sussex Hospitals NHS Trust,02/10/2013,CONTINENCE PRODUCTS,Urgent Care,PAUL HARTMANN LTD,0080000342,60.70,
Department of Health,East Sussex Hospitals NHS Trust,02/10/2013,CONTINENCE PRODUCTS,Planned Care,PAUL HARTMANN LTD,0080000342,83.22,
Department of Health,East Sussex Hospitals NHS Trust,02/10/2013,CONTINENCE PRODUCTS,Planned Care,PAUL HARTMANN LTD,0080000342,38.34,
Department of Health,East Sussex Hospitals NHS Trust,02/10/2013,CONTINENCE PRODUCTS,Planned Care,PAUL HARTMANN LTD,0080000342,5.48,
Department of Health,East Sussex Hospitals NHS Trust,02/10/2013,CONTINENCE PRODUCTS,Urgent Care,PAUL HARTMANN LTD,0080000342,39.81,
Department of Health,East Sussex Hospitals NHS Trust,02/10/2013,CONTINENCE PRODUCTS,Urgent Care,PAUL HARTMANN LTD,0080000342,166.44,
Department of Health,East Sussex Hospitals NHS Trust,09/10/2013,YEAR END NRVS JV GENERAL CRS,NHS Creditors,NHS BUSINESS SERVICES AUTHORITY,0000136678,45648.54,
Department of Health,East Sussex Hospitals NHS Trust,09/10/2013,BLOOD PRODUCTS - NBS ST CONTRA,Integrated Care,NHS BLOOD AND TRANSPLANT (NHSBT),0000137168,91579.04,
Department of Health,East Sussex Hospitals NHS Trust,09/10/2013,SR GREAT ORMOND STREET NHSFT,Integrated Care,GREAT ORMOND STREET HOSPITAL FOR CHILDRE,0000137588,878.85,
Department of Health,East Sussex Hospitals NHS Trust,09/10/2013,NHS SUPPLY CHAIN CREDITORS,Cross Site,NHS SUPPLY CHAIN,0000137675,171189.50,
Department of Health,East Sussex Hospitals NHS Trust,09/10/2013,SR KINGS COLL,Urgent Care,KING'S COLLEGE HOSP NHS FOUNDATION TRUST,0000137831,500.00,
Department of Health,East Sussex Hospitals NHS Trust,09/10/2013,M & S EME SERVICE CONTRACT,Commercial,ROYAL SURREY COUNTY HOSP NHS FT,0000137877,1465.00,
Department of Health,East Sussex Hospitals NHS Trust,09/10/2013,TRAINING FEES - NURSE CONT ED,Corporate Services,EAST SUSSEX FIRE AUTHORITY,0000137985,3180.00,
Department of Health,East Sussex Hospitals NHS Trust,09/10/2013,AGENCY SHO,Urgent Care,GPS LOCUMS LTD,0000290894,1749.00,
Department of Health,East Sussex Hospitals NHS Trust,09/10/2013,AGENCY NURSE - QUALIFIED,Urgent Care,YOURWORLD NURSING,0000291020,1697.25,
Department of Health,East Sussex Hospitals NHS Trust,09/10/2013,AGENCY NURSE - QUALIFIED,Planned Care,YOURWORLD NURSING,0000291022,2095.80,
Department of Health,East Sussex Hospitals NHS Trust,09/10/2013,AGENCY NURSE - QUALIFIED,Planned Care,YOURWORLD NURSING,0000291023,1627.50,
Department of Health,East Sussex Hospitals NHS Trust,09/10/2013,AGENCY NURSE - QUALIFIED,Planned Care,YOURWORLD NURSING,0000291309,1600.13,
Department of Health,East Sussex Hospitals NHS Trust,09/10/2013,AGENCY MTO,Planned Care,YOURWORLD NURSING,0000291379,2298.40,
Department of Health,East Sussex Hospitals NHS Trust,09/10/2013,AGENCY MTO,Planned Care,YOUR WORLD RECRUITMENT LTD,0000291381,2652.22,
Department of Health,East Sussex Hospitals NHS Trust,09/10/2013,AGENCY NURSE - QUALIFIED,Planned Care,YOURWORLD NURSING,0000291382,2298.40,
Department of Health,East Sussex Hospitals NHS Trust,09/10/2013,AGENCY MTO,Planned Care,YOUR WORLD RECRUITMENT LTD,0000291387,1755.84,
Department of Health,East Sussex Hospitals NHS Trust,09/10/2013,AGENCY SPEECH THERAPIST,Integrated Care,YOUR WORLD RECRUITMENT LTD,0000291389,1617.76,
Department of Health,East Sussex Hospitals NHS Trust,09/10/2013,AGENCY DIETICIAN,Integrated Care,YOUR WORLD RECRUITMENT LTD,0000291390,1300.50,
Department of Health,East Sussex Hospitals NHS Trust,09/10/2013,AGENCY MTO,Planned Care,YOUR WORLD RECRUITMENT LTD,0000291391,2756.16,
Department of Health,East Sussex Hospitals NHS Trust,09/10/2013,AGENCY RADIOGRAPHY STAFF,Integrated Care,YOUR WORLD RECRUITMENT LTD,0000291392,1102.50,
Department of Health,East Sussex Hospitals NHS Trust,09/10/2013,AGENCY MTO,Planned Care,YOUR WORLD RECRUITMENT LTD,0000291393,1790.26,
Department of Health,East Sussex Hospitals NHS Trust,09/10/2013,AGENCY MTO,Planned Care,YOUR WORLD RECRUITMENT LTD,0000291394,1813.50,
Department of Health,East Sussex Hospitals NHS Trust,09/10/2013,AGENCY SPEECH THERAPIST,Integrated Care,YOUR WORLD RECRUITMENT LTD,0000291395,1338.76,
Department of Health,East Sussex Hospitals NHS Trust,09/10/2013,AGENCY NURSE - QUALIFIED,Urgent Care,YOURWORLD NURSING,0000291396,2034.38,
Department of Health,East Sussex Hospitals NHS Trust,09/10/2013,AGENCY PHYSIOTHERAPY STAFF,Integrated Care,PERTEMPS NETWORK MEDICAL LIMITED,0000291419,1236.16,
Department of Health,East Sussex Hospitals NHS Trust,09/10/2013,AGENCY NURSE - QUALIFIED,Planned Care,YOURWORLD NURSING,0000291420,640.15,
Department of Health,East Sussex Hospitals NHS Trust,09/10/2013,AGENCY NURSE - QUALIFIED,Planned Care,YOURWORLD NURSING,0000291421,932.79,
Department of Health,East Sussex Hospitals NHS Trust,09/10/2013,AGENCY PHYSIOTHERAPY STAFF,Integrated Care,PERTEMPS NETWORK MEDICAL LIMITED,0000291442,988.92,
Department of Health,East Sussex Hospitals NHS Trust,09/10/2013,AGENCY RADIOGRAPHY STAFF,Integrated Care,PERTEMPS NETWORK MEDICAL LIMITED,0000291443,1123.20,
Department of Health,East Sussex Hospitals NHS Trust,09/10/2013,AGENCY DIETICIAN,Integrated Care,YOUR WORLD RECRUITMENT LTD,0000291504,1300.50,
Department of Health,East Sussex Hospitals NHS Trust,09/10/2013,AGENCY NURSE - QUALIFIED,Planned Care,YOURWORLD NURSING,0000291543,2073.13,
Department of Health,East Sussex Hospitals NHS Trust,09/10/2013,AGENCY NURSE - QUALIFIED,Planned Care,YOURWORLD NURSING,0000291544,2955.55,
Department of Health,East Sussex Hospitals NHS Trust,09/10/2013,AGENCY NURSE - QUALIFIED,Urgent Care,YOURWORLD NURSING,0000291545,1697.25,
Department of Health,East Sussex Hospitals NHS Trust,09/10/2013,AGENCY NURSE - QUALIFIED,Planned Care,YOURWORLD NURSING,0000291689,658.44,
Department of Health,East Sussex Hospitals NHS Trust,09/10/2013,AGENCY NURSE - QUALIFIED,Planned Care,YOURWORLD NURSING,0000291691,2749.65,
Department of Health,East Sussex Hospitals NHS Trust,09/10/2013,AGENCY NURSE - QUALIFIED,Planned Care,YOURWORLD NURSING,0000291692,2375.90,
Department of Health,East Sussex Hospitals NHS Trust,09/10/2013,AGENCY RADIOGRAPHY STAFF,Integrated Care,PERTEMPS NETWORK MEDICAL LIMITED,0000291697,1123.20,
Department of Health,East Sussex Hospitals NHS Trust,09/10/2013,AGENCY PHYSIOTHERAPY STAFF,Integrated Care,PERTEMPS NETWORK MEDICAL LIMITED,0000291765,1236.16,
Department of Health,East Sussex Hospitals NHS Trust,09/10/2013,AGENCY PHYSIOTHERAPY STAFF,Integrated Care,PERTEMPS NETWORK MEDICAL LIMITED,0000291766,988.92,
Department of Health,East Sussex Hospitals NHS Trust,09/10/2013,AGENCY NURSE - QUALIFIED,Planned Care,YOURWORLD NURSING,0000291865,1395.00,
Department of Health,East Sussex Hospitals NHS Trust,09/10/2013,AGENCY TECHNICIAN,Planned Care,THE PLACEMENT GROUP,0000291872,1533.64,
Department of Health,East Sussex Hospitals NHS Trust,09/10/2013,AGENCY TECHNICIAN,Planned Care,THE PLACEMENT GROUP,0000291873,1474.66,
Department of Health,East Sussex Hospitals NHS Trust,09/10/2013,AGENCY NURSE - QUALIFIED,Planned Care,YOURWORLD NURSING,0000291887,1705.00,
Department of Health,East Sussex Hospitals NHS Trust,09/10/2013,AGENCY SPECIALIST REG,Planned Care,SURGI-CALL LOCUMS,0000291895,3835.94,
Department of Health,East Sussex Hospitals NHS Trust,09/10/2013,AGENCY RADIOGRAPHY STAFF,Integrated Care,PERTEMPS NETWORK MEDICAL LIMITED,0000291896,1123.20,
Department of Health,East Sussex Hospitals NHS Trust,09/10/2013,AGENCY SPECIALIST REG,Planned Care,MEDILINK CONSULTING LIMITED,0000292043,759.00,
Department of Health,East Sussex Hospitals NHS Trust,09/10/2013,AGENCY OCC THERAPY STAFF,Integrated Care,MEDICONNECT RECRUITMENT,0000292044,1302.75,
Department of Health,East Sussex Hospitals NHS Trust,09/10/2013,AGENCY RADIOGRAPHY STAFF,Integrated Care,PERTEMPS NETWORK MEDICAL LIMITED,0000292070,1123.20,
Department of Health,East Sussex Hospitals NHS Trust,09/10/2013,AGENCY PHYSIOTHERAPY STAFF,Integrated Care,PERTEMPS NETWORK MEDICAL LIMITED,0000292081,1236.16,
Department of Health,East Sussex Hospitals NHS Trust,09/10/2013,AGENCY SHO,Integrated Care,GPS LOCUMS LTD,0000292082,2475.00,
Department of Health,East Sussex Hospitals NHS Trust,09/10/2013,AGENCY NURSE - QUALIFIED,Urgent Care,AMBITION,0000292138,1561.83,
Department of Health,East Sussex Hospitals NHS Trust,09/10/2013,AGENCY NURSE - QUALIFIED,Urgent Care,AMBITION,0000292139,2012.03,
Department of Health,East Sussex Hospitals NHS Trust,09/10/2013,AGENCY NURSE - QUALIFIED,Urgent Care,AMBITION,0000292185,1606.58,
Department of Health,East Sussex Hospitals NHS Trust,09/10/2013,AGENCY NURSE - QUALIFIED,Urgent Care,AMBITION,0000292192,1171.17,
Department of Health,East Sussex Hospitals NHS Trust,09/10/2013,AGENCY SHO,Planned Care,SURGI-CALL LOCUMS,0000292193,2508.00,
Department of Health,East Sussex Hospitals NHS Trust,09/10/2013,AGENCY NURSE - QUALIFIED,Urgent Care,AMBITION,0000292382,958.58,
Department of Health,East Sussex Hospitals NHS Trust,09/10/2013,AGENCY NURSE - QUALIFIED,Urgent Care,AMBITION,0000292384,1573.51,
Department of Health,East Sussex Hospitals NHS Trust,09/10/2013,AGENCY NURSE - QUALIFIED,Urgent Care,AMBITION,0000292392,569.21,
Department of Health,East Sussex Hospitals NHS Trust,09/10/2013,AGENCY NURSE - QUALIFIED,Urgent Care,AMBITION,0000292394,2170.53,
Department of Health,East Sussex Hospitals NHS Trust,09/10/2013,AGENCY SPECIALIST REG,Urgent Care,MEDACS HEALTHCARE SERVICES LTD,0000292416,2790.31,
Department of Health,East Sussex Hospitals NHS Trust,09/10/2013,AGENCY CONSULTANT,Planned Care,MEDACS HEALTHCARE SERVICES LTD,0000292417,5508.08,
Department of Health,East Sussex Hospitals NHS Trust,09/10/2013,AGENCY CONSULTANT,Planned Care,MEDACS HEALTHCARE SERVICES LTD,0000292418,5508.08,
Department of Health,East Sussex Hospitals NHS Trust,09/10/2013,AGENCY CONSULTANT,Planned Care,MEDACS HEALTHCARE SERVICES LTD,0000292419,11259.88,
Department of Health,East Sussex Hospitals NHS Trust,09/10/2013,AGENCY SPECIALIST REG,Urgent Care,MEDACS HEALTHCARE SERVICES LTD,0000292432,718.09,
Department of Health,East Sussex Hospitals NHS Trust,09/10/2013,AGENCY SHO,Planned Care,MEDACS HEALTHCARE SERVICES LTD,0000292435,1215.02,
Department of Health,East Sussex Hospitals NHS Trust,09/10/2013,AGENCY CONSULTANT,Integrated Care,MEDACS HEALTHCARE SERVICES LTD,0000292436,13851.00,
Department of Health,East Sussex Hospitals NHS Trust,09/10/2013,LOCUM STAFF GRADE,Planned Care,MEDICSPRO LTD,0000292437,2100.00,
Department of Health,East Sussex Hospitals NHS Trust,09/10/2013,AGENCY CONSULTANT,Integrated Care,MEDACS HEALTHCARE SERVICES LTD,0000292570,6835.42,
Department of Health,East Sussex Hospitals NHS Trust,09/10/2013,AGENCY NURSE - QUALIFIED,Urgent Care,AMBITION,0000292622,829.79,
Department of Health,East Sussex Hospitals NHS Trust,09/10/2013,AGENCY NURSE - QUALIFIED,Urgent Care,AMBITION,0000292624,1963.02,
Department of Health,East Sussex Hospitals NHS Trust,09/10/2013,AGENCY NURSE - QUALIFIED,Urgent Care,AMBITION,0000292625,1552.92,
Department of Health,East Sussex Hospitals NHS Trust,09/10/2013,AGENCY NURSE - QUALIFIED,Urgent Care,AMBITION,0000292626,932.68,
Department of Health,East Sussex Hospitals NHS Trust,09/10/2013,AGENCY NURSE - QUALIFIED,Integrated Care,MSI RECRUITMENT LTD,0000292663,1467.84,
Department of Health,East Sussex Hospitals NHS Trust,09/10/2013,AGENCY NURSE - QUALIFIED,Integrated Care,MSI RECRUITMENT LTD,0000292664,800.64,
Department of Health,East Sussex Hospitals NHS Trust,09/10/2013,AGENCY NURSE - QUALIFIED,Integrated Care,MSI RECRUITMENT LTD,0000292665,800.64,
Department of Health,East Sussex Hospitals NHS Trust,09/10/2013,AGENCY SHO,Planned Care,SURGI-CALL LOCUMS,0000292673,2508.00,
Department of Health,East Sussex Hospitals NHS Trust,09/10/2013,AGENCY SPEECH THERAPIST,Integrated Care,YOUR WORLD RECRUITMENT LTD,0000292763,3900.00,
Department of Health,East Sussex Hospitals NHS Trust,09/10/2013,POSTAGE - MAINTENANCE STOCK,Commercial,FILTERTEC SYSTEMS LTD,0000362080,15.00,
Department of Health,East Sussex Hospitals NHS Trust,09/10/2013,SC-CONQUEST UNIT WORKS,Commercial,FILTERTEC SYSTEMS LTD,0000362080,633.60,
Department of Health,East Sussex Hospitals NHS Trust,09/10/2013,POSTAGE - MAINTENANCE STOCK,Commercial,FILTERTEC SYSTEMS LTD,0000362276,15.00,
Department of Health,East Sussex Hospitals NHS Trust,09/10/2013,SC-CONQUEST UNIT WORKS,Commercial,FILTERTEC SYSTEMS LTD,0000362276,1104.00,
Department of Health,East Sussex Hospitals NHS Trust,09/10/2013,CONTRACT ENGINEERING MAINT,Commercial,QUIREPACE LTD,0000362293,3216.00,
Department of Health,East Sussex Hospitals NHS Trust,09/10/2013,CONTRACT ENGINEERING MAINT,Commercial,MEIKO UK LTD,0000362369,2110.00,
Department of Health,East Sussex Hospitals NHS Trust,09/10/2013,CAPITAL EXPENDITURE,Other Central,H WILSON (ALFRISTON) LTD,0000362725,27003.40,
Department of Health,East Sussex Hospitals NHS Trust,09/10/2013,CAPITAL EXPENDITURE,Other Central,H WILSON (ALFRISTON) LTD,0000362726,767.25,
Department of Health,East Sussex Hospitals NHS Trust,09/10/2013,PROFESSIONAL FEES,Commercial,INGRID GILLESPIE,0000362730,1044.00,
Department of Health,East Sussex Hospitals NHS Trust,09/10/2013,FURNITURE & FITTINGS,Planned Care,BOOKER & BEST LIMITED,0000362732,2235.64,
Department of Health,East Sussex Hospitals NHS Trust,09/10/2013,CONTRACT ENGINEERING MAINT,Commercial,PROECONOMY LTD,0000362734,3230.00,
Department of Health,East Sussex Hospitals NHS Trust,09/10/2013,CONTRACT ENGINEERING MAINT,Commercial,PROECONOMY LTD,0000362735,530.00,
Department of Health,East Sussex Hospitals NHS Trust,09/10/2013,MINOR WORKS - BUILDING,Planned Care,BOOKER & BEST LIMITED,0000362736,1631.88,
Department of Health,East Sussex Hospitals NHS Trust,09/10/2013,MINOR WORKS - BUILDING,Corporate Services,BOOKER & BEST LIMITED,0000362737,1090.34,
Department of Health,East Sussex Hospitals NHS Trust,09/10/2013,FURNITURE & FITTINGS,Corporate Services,BOOKER & BEST LIMITED,0000362739,445.05,
Department of Health,East Sussex Hospitals NHS Trust,09/10/2013,PROFESSIONAL FEES,Commercial,RICHARD WILES ASSOCIATES LTD,0000362740,845.75,
Department of Health,East Sussex Hospitals NHS Trust,09/10/2013,PROFESSIONAL FEES,Commercial,GRAY SWAIN DRAUGHTING,0000362741,630.00,
Department of Health,East Sussex Hospitals NHS Trust,09/10/2013,FURNITURE & FITTINGS,Corporate Services,BOOKER & BEST LIMITED,0000362742,1550.00,
Department of Health,East Sussex Hospitals NHS Trust,09/10/2013,FURNITURE & FITTINGS,Planned Care,BOOKER & BEST LIMITED,0000362744,770.00,
Department of Health,East Sussex Hospitals NHS Trust,09/10/2013,MINOR WORKS - BUILDING,Planned Care,BOOKER & BEST LIMITED,0000362746,3857.70,
Department of Health,East Sussex Hospitals NHS Trust,09/10/2013,PROFESSIONAL FEES,Commercial,RICHARD WILES ASSOCIATES LTD,0000362749,1008.25,
Department of Health,East Sussex Hospitals NHS Trust,09/10/2013,CONT.MAIN-MED & SURG EQUIP,Planned Care,B BRAUN MEDICAL LTD,0000622648,625.20,
Department of Health,East Sussex Hospitals NHS Trust,09/10/2013,POSTAGE - MAINTENANCE STOCK,Commercial,UNIVAR LTD,0000622750,824.40,
Department of Health,East Sussex Hospitals NHS Trust,09/10/2013,ENGINEERING MATERIALS,Commercial,UNIVAR LTD,0000622750,618.71,
Department of Health,East Sussex Hospitals NHS Trust,09/10/2013,MAINT-SOUTHERN MICROSCOPES,Integrated Care,SOUTHERN MICROSCOPE SERVICES LTD,0000622863,3340.00,
Department of Health,East Sussex Hospitals NHS Trust,09/10/2013,CONTRACT ENGINEERING MAINT,Commercial,THE DRY RISER TESTING COMPANY,0000622868,495.00,
Department of Health,East Sussex Hospitals NHS Trust,09/10/2013,PURICORE,Planned Care,PURICORE ENDOSCOPY,0000622895,14397.50,
Department of Health,East Sussex Hospitals NHS Trust,09/10/2013,MINOR WORKS - BUILDING,Integrated Care,EASTBOURNE ELECTRICAL,0000622968,2024.71,
Department of Health,East Sussex Hospitals NHS Trust,09/10/2013,CAPITAL EXPENDITURE,Other Central,EASTBOURNE ELECTRICAL,0000622980,5683.20,
Department of Health,East Sussex Hospitals NHS Trust,09/10/2013,CAPITAL EXPENDITURE,Other Central,H WILSON (ALFRISTON) LTD,0000622994,4465.06,
Department of Health,East Sussex Hospitals NHS Trust,09/10/2013,CAPITAL EXPENDITURE,Other Central,H WILSON (ALFRISTON) LTD,0000622995,4969.19,
Department of Health,East Sussex Hospitals NHS Trust,09/10/2013,LAPARASCOPIC EQUIP-UROLOGICAL,Planned Care,PURPLE SURGICAL UK LTD,0000896616,1752.00,
Department of Health,East Sussex Hospitals NHS Trust,09/10/2013,PROSTHESES-OTHER,Planned Care,ACUMED LTD,0000898100,1114.85,
Department of Health,East Sussex Hospitals NHS Trust,09/10/2013,PROSTHESES-OTHER,Planned Care,ACUMED LTD,0000898121,1433.66,
Department of Health,East Sussex Hospitals NHS Trust,09/10/2013,SURGICAL INSTRUMENTS,Planned Care,ACUMED LTD,0000898194,35.40,
Department of Health,East Sussex Hospitals NHS Trust,09/10/2013,PROSTHESES-OTHER,Planned Care,ACUMED LTD,0000898194,1010.57,
Department of Health,East Sussex Hospitals NHS Trust,09/10/2013,PROSTHESES-OTHER,Planned Care,ACUMED LTD,0000898229,537.24,
Department of Health,East Sussex Hospitals NHS Trust,09/10/2013,PROSTHESES-OTHER,Planned Care,ACUMED LTD,0000898230,1325.42,
Department of Health,East Sussex Hospitals NHS Trust,09/10/2013,M&S GENERAL SUPPLIES-OTHER,Planned Care,FRESENIUS LTD,0000898530,869.40,
Department of Health,East Sussex Hospitals NHS Trust,09/10/2013,PROSTHESES-OTHER,Planned Care,ACUMED LTD,0000898575,741.91,
Department of Health,East Sussex Hospitals NHS Trust,09/10/2013,SURGICAL INSTRUMENTS,Planned Care,ACUMED LTD,0000898671,35.40,
Department of Health,East Sussex Hospitals NHS Trust,09/10/2013,PROSTHESES-OTHER,Planned Care,ACUMED LTD,0000898671,2632.20,
Department of Health,East Sussex Hospitals NHS Trust,09/10/2013,UTETEROSCOPY CONSUMABLES,Planned Care,BOSTON SCIENTIFIC LTD,0000898797,900.00,
Department of Health,East Sussex Hospitals NHS Trust,09/10/2013,M&S GENERAL SUPPLIES-OTHER,Planned Care,BOSTON SCIENTIFIC LTD,0000898797,835.20,
Department of Health,East Sussex Hospitals NHS Trust,09/10/2013,SURGICAL INSTRUMENTS,Planned Care,SMITH & NEPHEW ADVANCED SURGICAL DEVICES,0000898816,703.08,
Department of Health,East Sussex Hospitals NHS Trust,09/10/2013,ACL LIGAMENT REPAIR INSTRUMENT,Planned Care,SMITH & NEPHEW ADVANCED SURGICAL DEVICES,0000898816,354.31,
Department of Health,East Sussex Hospitals NHS Trust,09/10/2013,ARTHROSCOPY INSTRUMENTS,Planned Care,SMITH & NEPHEW ADVANCED SURGICAL DEVICES,0000898816,610.62,
Department of Health,East Sussex Hospitals NHS Trust,09/10/2013,PROSTHESES-OTHER,Planned Care,SMITH & NEPHEW ADVANCED SURGICAL DEVICES,0000898816,324.73,
Department of Health,East Sussex Hospitals NHS Trust,09/10/2013,M&S GENERAL SUPPLIES-OTHER,Planned Care,SMITH & NEPHEW ADVANCED SURGICAL DEVICES,0000898820,26.65,
Department of Health,East Sussex Hospitals NHS Trust,09/10/2013,SURGICAL INSTRUMENTS,Planned Care,SMITH & NEPHEW ADVANCED SURGICAL DEVICES,0000898820,131.36,
Department of Health,East Sussex Hospitals NHS Trust,09/10/2013,PROSTHESES-OTHER,Planned Care,SMITH & NEPHEW ADVANCED SURGICAL DEVICES,0000898820,3442.75,
Department of Health,East Sussex Hospitals NHS Trust,09/10/2013,M&S GENERAL SUPPLIES-OTHER,Planned Care,SMITH & NEPHEW ADVANCED SURGICAL DEVICES,0000898858,79.96,
Department of Health,East Sussex Hospitals NHS Trust,09/10/2013,SURGICAL INSTRUMENTS,Planned Care,SMITH & NEPHEW ADVANCED SURGICAL DEVICES,0000898858,62.86,
Department of Health,East Sussex Hospitals NHS Trust,09/10/2013,PROSTHESES-OTHER,Planned Care,SMITH & NEPHEW ADVANCED SURGICAL DEVICES,0000898858,1462.89,
Department of Health,East Sussex Hospitals NHS Trust,09/10/2013,PROSTHESES-OTHER,Planned Care,ACUMED LTD,0000898923,537.24,
Department of Health,East Sussex Hospitals NHS Trust,09/10/2013,ARTHROSCOPY INSTRUMENTS,Planned Care,SMITH & NEPHEW ADVANCED SURGICAL DEVICES,0000898973,677.84,
Department of Health,East Sussex Hospitals NHS Trust,09/10/2013,PROSTHESES-OTHER,Planned Care,ACUMED LTD,0000899003,526.44,
Department of Health,East Sussex Hospitals NHS Trust,09/10/2013,LASER/LAPARASCOPIC EQUIPMENT,Planned Care,BOSTON SCIENTIFIC LTD,0000899006,900.00,
Department of Health,East Sussex Hospitals NHS Trust,09/10/2013,UTETEROSCOPY CONSUMABLES,Planned Care,BOSTON SCIENTIFIC LTD,0000899006,1800.00,
Department of Health,East Sussex Hospitals NHS Trust,09/10/2013,M&S GENERAL SUPPLIES-OTHER,Planned Care,BOSTON SCIENTIFIC LTD,0000899006,300.00,
Department of Health,East Sussex Hospitals NHS Trust,09/10/2013,SURGICAL INSTRUMENTS,Planned Care,ACUMED LTD,0000899010,35.39,
Department of Health,East Sussex Hospitals NHS Trust,09/10/2013,PROSTHESES-OTHER,Planned Care,ACUMED LTD,0000899010,950.55,
Department of Health,East Sussex Hospitals NHS Trust,09/10/2013,SURGICAL INSTRUMENTS,Planned Care,SMITH & NEPHEW ADVANCED SURGICAL DEVICES,0000899064,234.36,
Department of Health,East Sussex Hospitals NHS Trust,09/10/2013,ACL LIGAMENT REPAIR INSTRUMENT,Planned Care,SMITH & NEPHEW ADVANCED SURGICAL DEVICES,0000899064,359.86,
Department of Health,East Sussex Hospitals NHS Trust,09/10/2013,M&S GENERAL SUPPLIES-OTHER,Planned Care,B BRAUN MEDICAL LTD,0000899071,521.41,
Department of Health,East Sussex Hospitals NHS Trust,09/10/2013,SURGICAL INSTRUMENTS,Planned Care,SMITH & NEPHEW ADVANCED SURGICAL DEVICES,0000899104,62.86,
Department of Health,East Sussex Hospitals NHS Trust,09/10/2013,PROSTHESES-OTHER,Planned Care,SMITH & NEPHEW ADVANCED SURGICAL DEVICES,0000899104,685.54,
Department of Health,East Sussex Hospitals NHS Trust,09/10/2013,LASER/LAPARASCOPIC EQUIPMENT,Planned Care,PURPLE SURGICAL UK LTD,0000899116,912.00,
Department of Health,East Sussex Hospitals NHS Trust,09/10/2013,PROSTHESES-OTHER,Planned Care,SMITH & NEPHEW ADVANCED SURGICAL DEVICES,0000899124,682.96,
Department of Health,East Sussex Hospitals NHS Trust,09/10/2013,M&S GENERAL SUPPLIES-OTHER,Planned Care,DELTEX MEDICAL,0000899183,512.40,
Department of Health,East Sussex Hospitals NHS Trust,09/10/2013,SURGICAL INSTRUMENTS,Planned Care,SMITH & NEPHEW ADVANCED SURGICAL DEVICES,0000899190,851.64,
Department of Health,East Sussex Hospitals NHS Trust,09/10/2013,M&S GENERAL SUPPLIES-OTHER,Planned Care,SMITH & NEPHEW ADVANCED SURGICAL DEVICES,0000899196,31.02,
Department of Health,East Sussex Hospitals NHS Trust,09/10/2013,SURGICAL INSTRUMENTS,Planned Care,SMITH & NEPHEW ADVANCED SURGICAL DEVICES,0000899196,97.23,
Department of Health,East Sussex Hospitals NHS Trust,09/10/2013,PROSTHESES-OTHER,Planned Care,SMITH & NEPHEW ADVANCED SURGICAL DEVICES,0000899196,1566.61,
Department of Health,East Sussex Hospitals NHS Trust,09/10/2013,PROSTHESES-HIP,Planned Care,JOHNSON & JOHNSON MEDICAL LTD,0000899201,1904.52,
Department of Health,East Sussex Hospitals NHS Trust,09/10/2013,PROSTHESES-OTHER,Planned Care,JOHNSON & JOHNSON MEDICAL LTD,0000899201,60.48,
Department of Health,East Sussex Hospitals NHS Trust,09/10/2013,NATIONAL JOINT REGISTRY LEVY,Planned Care,JOHNSON & JOHNSON MEDICAL LTD,0000899201,40.01,
Department of Health,East Sussex Hospitals NHS Trust,09/10/2013,M&S GENERAL SUPPLIES-OTHER,Planned Care,SMITH & NEPHEW ADVANCED SURGICAL DEVICES,0000899204,49.45,
Department of Health,East Sussex Hospitals NHS Trust,09/10/2013,PROSTHESES-OTHER,Planned Care,SMITH & NEPHEW ADVANCED SURGICAL DEVICES,0000899204,967.79,
Department of Health,East Sussex Hospitals NHS Trust,09/10/2013,SURGICAL INSTRUMENTS,Planned Care,MDM MEDICAL LTD,0000899210,576.00,
Department of Health,East Sussex Hospitals NHS Trust,09/10/2013,M&S GENERAL SUPPLIES-OTHER,Planned Care,WELLSPECT HEALTHCARE,0000899225,1044.96,
Department of Health,East Sussex Hospitals NHS Trust,09/10/2013,M&S EQUIPMENT - OTHER,Planned Care,JOHNSON & JOHNSON MEDICAL LTD,0000899227,309.34,
Department of Health,East Sussex Hospitals NHS Trust,09/10/2013,PROSTHESES-HIP,Planned Care,JOHNSON & JOHNSON MEDICAL LTD,0000899227,4045.28,
Department of Health,East Sussex Hospitals NHS Trust,09/10/2013,NATIONAL JOINT REGISTRY LEVY,Planned Care,JOHNSON & JOHNSON MEDICAL LTD,0000899227,40.01,
Department of Health,East Sussex Hospitals NHS Trust,09/10/2013,ACL LIGAMENT REPAIR INSTRUMENT,Planned Care,JOHNSON & JOHNSON MEDICAL LTD,0000899228,181.20,
Department of Health,East Sussex Hospitals NHS Trust,09/10/2013,PROSTHESES-OTHER,Planned Care,JOHNSON & JOHNSON MEDICAL LTD,0000899228,362.40,
Department of Health,East Sussex Hospitals NHS Trust,09/10/2013,M&S GENERAL SUPPLIES-OTHER,Planned Care,SMITH & NEPHEW ADVANCED SURGICAL DEVICES,0000899253,63.07,
Department of Health,East Sussex Hospitals NHS Trust,09/10/2013,SURGICAL INSTRUMENTS,Planned Care,SMITH & NEPHEW ADVANCED SURGICAL DEVICES,0000899253,482.04,
Department of Health,East Sussex Hospitals NHS Trust,09/10/2013,SURGICAL INSTRUMENTS,Planned Care,SMITH & NEPHEW ADVANCED SURGICAL DEVICES,0000899255,610.62,
Department of Health,East Sussex Hospitals NHS Trust,09/10/2013,LASER/LAPARASCOPIC EQUIPMENT,Planned Care,BOSTON SCIENTIFIC LTD,0000899268,2700.00,
Department of Health,East Sussex Hospitals NHS Trust,09/10/2013,M&S GENERAL SUPPLIES-OTHER,Planned Care,3M HEALTHCARE LTD,0000899274,1378.20,
Department of Health,East Sussex Hospitals NHS Trust,09/10/2013,PROCEDURE PACKS,Planned Care,KIMAL PLC (FOR ORDERS),0000899282,544.75,
Department of Health,East Sussex Hospitals NHS Trust,09/10/2013,SURGICAL INSTRUMENTS,Planned Care,KIMAL PLC (FOR ORDERS),0000899282,24.00,
Department of Health,East Sussex Hospitals NHS Trust,09/10/2013,M&S GENERAL SUPPLIES-OTHER,Planned Care,DELTEX MEDICAL,0000899288,512.40,
Department of Health,East Sussex Hospitals NHS Trust,09/10/2013,UTETEROSCOPY CONSUMABLES,Planned Care,BOSTON SCIENTIFIC LTD,0000899295,900.00,
Department of Health,East Sussex Hospitals NHS Trust,09/10/2013,M&S GENERAL SUPPLIES-OTHER,Planned Care,BOSTON SCIENTIFIC LTD,0000899295,516.00,
Department of Health,East Sussex Hospitals NHS Trust,09/10/2013,INTERVENTIONAL DISPOSABLES,Planned Care,BOSTON SCIENTIFIC LTD,0000899295,828.00,
Department of Health,East Sussex Hospitals NHS Trust,09/10/2013,RENAL STENTS,Planned Care,BOSTON SCIENTIFIC LTD,0000899295,780.00,
Department of Health,East Sussex Hospitals NHS Trust,09/10/2013,SURGICAL INSTRUMENTS,Planned Care,SMITH & NEPHEW ADVANCED SURGICAL DEVICES,0000899350,34.37,
Department of Health,East Sussex Hospitals NHS Trust,09/10/2013,PROSTHESES-OTHER,Planned Care,SMITH & NEPHEW ADVANCED SURGICAL DEVICES,0000899350,603.29,
Department of Health,East Sussex Hospitals NHS Trust,09/10/2013,M&S GENERAL SUPPLIES-OTHER,Planned Care,DELTEX MEDICAL,0000899407,512.40,
Department of Health,East Sussex Hospitals NHS Trust,09/10/2013,CONTINENCE PRODUCTS,Urgent Care,PAUL HARTMANN LTD,0000899449,70.53,
Department of Health,East Sussex Hospitals NHS Trust,09/10/2013,CONTINENCE PRODUCTS,Urgent Care,PAUL HARTMANN LTD,0000899449,64.50,
Department of Health,East Sussex Hospitals NHS Trust,09/10/2013,CONTINENCE PRODUCTS,Urgent Care,PAUL HARTMANN LTD,0000899449,150.41,
Department of Health,East Sussex Hospitals NHS Trust,09/10/2013,CONTINENCE PRODUCTS,Urgent Care,PAUL HARTMANN LTD,0000899449,81.32,
Department of Health,East Sussex Hospitals NHS Trust,09/10/2013,CONTINENCE PRODUCTS,Planned Care,PAUL HARTMANN LTD,0000899449,199.04,
Department of Health,East Sussex Hospitals NHS Trust,09/10/2013,CONTINENCE PRODUCTS,Planned Care,PAUL HARTMANN LTD,0000899449,55.42,
Department of Health,East Sussex Hospitals NHS Trust,09/10/2013,CONTINENCE PRODUCTS,Planned Care,PAUL HARTMANN LTD,0000899449,60.84,
Department of Health,East Sussex Hospitals NHS Trust,09/10/2013,CONTINENCE PRODUCTS,Commercial,PAUL HARTMANN LTD,0000899449,18.44,
Department of Health,East Sussex Hospitals NHS Trust,09/10/2013,CONTINENCE PRODUCTS,Planned Care,PAUL HARTMANN LTD,0000899449,95.83,
Department of Health,East Sussex Hospitals NHS Trust,09/10/2013,CONTINENCE PRODUCTS,Urgent Care,PAUL HARTMANN LTD,0000899449,20.09,
Department of Health,East Sussex Hospitals NHS Trust,09/10/2013,CONTINENCE PRODUCTS,Urgent Care,PAUL HARTMANN LTD,0000899449,137.14,
Department of Health,East Sussex Hospitals NHS Trust,09/10/2013,CONTINENCE PRODUCTS,Urgent Care,PAUL HARTMANN LTD,0000899450,68.99,
Department of Health,East Sussex Hospitals NHS Trust,09/10/2013,CONTINENCE PRODUCTS,Urgent Care,PAUL HARTMANN LTD,0000899450,30.03,
Department of Health,East Sussex Hospitals NHS Trust,09/10/2013,CONTINENCE PRODUCTS,Urgent Care,PAUL HARTMANN LTD,0000899450,47.17,
Department of Health,East Sussex Hospitals NHS Trust,09/10/2013,CONTINENCE PRODUCTS,Urgent Care,PAUL HARTMANN LTD,0000899450,86.29,
Department of Health,East Sussex Hospitals NHS Trust,09/10/2013,CONTINENCE PRODUCTS,Planned Care,PAUL HARTMANN LTD,0000899450,92.32,
Department of Health,East Sussex Hospitals NHS Trust,09/10/2013,CONTINENCE PRODUCTS,Planned Care,PAUL HARTMANN LTD,0000899450,35.11,
Department of Health,East Sussex Hospitals NHS Trust,09/10/2013,CONTINENCE PRODUCTS,Commercial,PAUL HARTMANN LTD,0000899450,18.44,
Department of Health,East Sussex Hospitals NHS Trust,09/10/2013,CONTINENCE PRODUCTS,Urgent Care,PAUL HARTMANN LTD,0000899450,40.16,
Department of Health,East Sussex Hospitals NHS Trust,09/10/2013,CONTINENCE PRODUCTS,Urgent Care,PAUL HARTMANN LTD,0000899450,81.79,
Department of Health,East Sussex Hospitals NHS Trust,09/10/2013,SURGICAL INSTRUMENTS,Planned Care,MDM MEDICAL LTD,0000899459,768.00,
Department of Health,East Sussex Hospitals NHS Trust,09/10/2013,ELECTRO MEDICAL EQUIPMENT,Planned Care,LINA MEDICAL UK LTD,0000899479,936.00,
Department of Health,East Sussex Hospitals NHS Trust,09/10/2013,M&S GENERAL SUPPLIES-OTHER,Planned Care,STRYKER UK,0000899522,1293.48,
Department of Health,East Sussex Hospitals NHS Trust,09/10/2013,SURGICAL INSTRUMENTS,Planned Care,STRYKER UK,0000899522,606.48,
Department of Health,East Sussex Hospitals NHS Trust,09/10/2013,PROSTHESES-HIP,Planned Care,STRYKER UK,0000899523,672.84,
Department of Health,East Sussex Hospitals NHS Trust,09/10/2013,PROSTHESES-HIP,Planned Care,STRYKER UK,0000899524,1773.60,
Department of Health,East Sussex Hospitals NHS Trust,09/10/2013,M&S GENERAL SUPPLIES-OTHER,Planned Care,DELTEX MEDICAL,0000899526,512.40,
Department of Health,East Sussex Hospitals NHS Trust,09/10/2013,M&S GENERAL SUPPLIES-OTHER,Planned Care,STRYKER UK,0000899527,777.60,
Department of Health,East Sussex Hospitals NHS Trust,09/10/2013,SURGICAL INSTRUMENTS,Planned Care,STRYKER UK,0000899527,606.48,
Department of Health,East Sussex Hospitals NHS Trust,09/10/2013,M&S GENERAL SUPPLIES-OTHER,Planned Care,DELTEX MEDICAL,0000899626,512.40,
Department of Health,East Sussex Hospitals NHS Trust,09/10/2013,STAPLING DEVICES,Planned Care,JOHNSON & JOHNSON MEDICAL LTD,0000899651,-628.57,
Department of Health,East Sussex Hospitals NHS Trust,09/10/2013,STAPLING DEVICES,Planned Care,JOHNSON & JOHNSON MEDICAL LTD,0000899652,-628.57,
Department of Health,East Sussex Hospitals NHS Trust,09/10/2013,CONTINENCE PRODUCTS,Urgent Care,PAUL HARTMANN LTD,0000899766,52.49,
Department of Health,East Sussex Hospitals NHS Trust,09/10/2013,CONTINENCE PRODUCTS,Urgent Care,PAUL HARTMANN LTD,0000899766,29.24,
Department of Health,East Sussex Hospitals NHS Trust,09/10/2013,CONTINENCE PRODUCTS,Urgent Care,PAUL HARTMANN LTD,0000899766,108.07,
Department of Health,East Sussex Hospitals NHS Trust,09/10/2013,CONTINENCE PRODUCTS,Urgent Care,PAUL HARTMANN LTD,0000899766,102.50,
Department of Health,East Sussex Hospitals NHS Trust,09/10/2013,CONTINENCE PRODUCTS,Planned Care,PAUL HARTMANN LTD,0000899766,40.69,
Department of Health,East Sussex Hospitals NHS Trust,09/10/2013,CONTINENCE PRODUCTS,Urgent Care,PAUL HARTMANN LTD,0000899766,128.50,
Department of Health,East Sussex Hospitals NHS Trust,09/10/2013,CONTINENCE PRODUCTS,Planned Care,PAUL HARTMANN LTD,0000899766,28.59,
Department of Health,East Sussex Hospitals NHS Trust,09/10/2013,CONTINENCE PRODUCTS,Planned Care,PAUL HARTMANN LTD,0000899766,15.63,
Department of Health,East Sussex Hospitals NHS Trust,09/10/2013,CONTINENCE PRODUCTS,Planned Care,PAUL HARTMANN LTD,0000899766,7.51,
Department of Health,East Sussex Hospitals NHS Trust,09/10/2013,CONTINENCE PRODUCTS,Urgent Care,PAUL HARTMANN LTD,0000899766,182.60,
Department of Health,East Sussex Hospitals NHS Trust,09/10/2013,CONTINENCE PRODUCTS,Urgent Care,PAUL HARTMANN LTD,0000899886,34.99,
Department of Health,East Sussex Hospitals NHS Trust,09/10/2013,CONTINENCE PRODUCTS,Urgent Care,PAUL HARTMANN LTD,0000899886,91.93,
Department of Health,East Sussex Hospitals NHS Trust,09/10/2013,CONTINENCE PRODUCTS,Urgent Care,PAUL HARTMANN LTD,0000899886,79.60,
Department of Health,East Sussex Hospitals NHS Trust,09/10/2013,CONTINENCE PRODUCTS,Planned Care,PAUL HARTMANN LTD,0000899886,110.37,
Department of Health,East Sussex Hospitals NHS Trust,09/10/2013,CONTINENCE PRODUCTS,Urgent Care,PAUL HARTMANN LTD,0000899886,16.22,
Department of Health,East Sussex Hospitals NHS Trust,09/10/2013,CONTINENCE PRODUCTS,Urgent Care,PAUL HARTMANN LTD,0000899886,152.03,
Department of Health,East Sussex Hospitals NHS Trust,09/10/2013,CONTINENCE PRODUCTS,Planned Care,PAUL HARTMANN LTD,0000899886,54.39,
Department of Health,East Sussex Hospitals NHS Trust,09/10/2013,CONTINENCE PRODUCTS,Planned Care,PAUL HARTMANN LTD,0000899886,38.34,
Department of Health,East Sussex Hospitals NHS Trust,09/10/2013,CONTINENCE PRODUCTS,Integrated Care,PAUL HARTMANN LTD,0000899886,8.12,
Department of Health,East Sussex Hospitals NHS Trust,09/10/2013,CONTINENCE PRODUCTS,Planned Care,PAUL HARTMANN LTD,0000899886,15.62,
Department of Health,East Sussex Hospitals NHS Trust,09/10/2013,CONTINENCE PRODUCTS,Planned Care,PAUL HARTMANN LTD,0000899886,24.69,
Department of Health,East Sussex Hospitals NHS Trust,09/10/2013,CONTINENCE PRODUCTS,Planned Care,PAUL HARTMANN LTD,0000899886,16.56,
Department of Health,East Sussex Hospitals NHS Trust,09/10/2013,CONTINENCE PRODUCTS,Planned Care,PAUL HARTMANN LTD,0000899886,20.50,
Department of Health,East Sussex Hospitals NHS Trust,09/10/2013,CONTINENCE PRODUCTS,Urgent Care,PAUL HARTMANN LTD,0000899886,26.93,
Department of Health,East Sussex Hospitals NHS Trust,09/10/2013,CONTINENCE PRODUCTS,Urgent Care,PAUL HARTMANN LTD,0000899886,195.56,
Department of Health,East Sussex Hospitals NHS Trust,09/10/2013,CONTINENCE PRODUCTS,Urgent Care,PAUL HARTMANN LTD,0000899887,69.77,
Department of Health,East Sussex Hospitals NHS Trust,09/10/2013,CONTINENCE PRODUCTS,Planned Care,PAUL HARTMANN LTD,0000899887,41.14,
Department of Health,East Sussex Hospitals NHS Trust,09/10/2013,CONTINENCE PRODUCTS,Planned Care,PAUL HARTMANN LTD,0000899887,49.44,
Department of Health,East Sussex Hospitals NHS Trust,09/10/2013,CONTINENCE PRODUCTS,Urgent Care,PAUL HARTMANN LTD,0000899887,52.87,
Department of Health,East Sussex Hospitals NHS Trust,09/10/2013,CONTINENCE PRODUCTS,Urgent Care,PAUL HARTMANN LTD,0000899887,104.48,
Department of Health,East Sussex Hospitals NHS Trust,09/10/2013,CONTINENCE PRODUCTS,Urgent Care,PAUL HARTMANN LTD,0000899887,52.49,
Department of Health,East Sussex Hospitals NHS Trust,09/10/2013,CONTINENCE PRODUCTS,Urgent Care,PAUL HARTMANN LTD,0000899887,127.17,
Department of Health,East Sussex Hospitals NHS Trust,09/10/2013,CONTINENCE PRODUCTS,Urgent Care,PAUL HARTMANN LTD,0000899887,81.27,
Department of Health,East Sussex Hospitals NHS Trust,09/10/2013,CONTINENCE PRODUCTS,Urgent Care,PAUL HARTMANN LTD,0000899887,88.56,
Department of Health,East Sussex Hospitals NHS Trust,09/10/2013,CONTINENCE PRODUCTS,Planned Care,PAUL HARTMANN LTD,0000899887,55.85,
Department of Health,East Sussex Hospitals NHS Trust,09/10/2013,CONTINENCE PRODUCTS,Planned Care,PAUL HARTMANN LTD,0000899887,22.80,
Department of Health,East Sussex Hospitals NHS Trust,09/10/2013,CONTINENCE PRODUCTS,Integrated Care,PAUL HARTMANN LTD,0000899887,24.70,
Department of Health,East Sussex Hospitals NHS Trust,09/10/2013,CONTINENCE PRODUCTS,Planned Care,PAUL HARTMANN LTD,0000899887,7.51,
Department of Health,East Sussex Hospitals NHS Trust,09/10/2013,CONTINENCE PRODUCTS,Planned Care,PAUL HARTMANN LTD,0000899887,24.69,
Department of Health,East Sussex Hospitals NHS Trust,09/10/2013,CONTINENCE PRODUCTS,Planned Care,PAUL HARTMANN LTD,0000899887,7.51,
Department of Health,East Sussex Hospitals NHS Trust,09/10/2013,CONTINENCE PRODUCTS,Commercial,PAUL HARTMANN LTD,0000899887,76.01,
Department of Health,East Sussex Hospitals NHS Trust,09/10/2013,CONTINENCE PRODUCTS,Urgent Care,PAUL HARTMANN LTD,0000899887,20.40,
Department of Health,East Sussex Hospitals NHS Trust,09/10/2013,CONTINENCE PRODUCTS,Urgent Care,PAUL HARTMANN LTD,0000899887,40.79,
Department of Health,East Sussex Hospitals NHS Trust,09/10/2013,CONTINENCE PRODUCTS,Urgent Care,PAUL HARTMANN LTD,0000899887,56.77,
Department of Health,East Sussex Hospitals NHS Trust,09/10/2013,CONTINENCE PRODUCTS,Urgent Care,PAUL HARTMANN LTD,0000899890,53.05,
Department of Health,East Sussex Hospitals NHS Trust,09/10/2013,CONTINENCE PRODUCTS,Urgent Care,PAUL HARTMANN LTD,0000899890,35.72,
Department of Health,East Sussex Hospitals NHS Trust,09/10/2013,CONTINENCE PRODUCTS,Urgent Care,PAUL HARTMANN LTD,0000899890,140.47,
Department of Health,East Sussex Hospitals NHS Trust,09/10/2013,CONTINENCE PRODUCTS,Urgent Care,PAUL HARTMANN LTD,0000899890,12.99,
Department of Health,East Sussex Hospitals NHS Trust,09/10/2013,CONTINENCE PRODUCTS,Planned Care,PAUL HARTMANN LTD,0000899890,15.12,
Department of Health,East Sussex Hospitals NHS Trust,09/10/2013,CONTINENCE PRODUCTS,Urgent Care,PAUL HARTMANN LTD,0000899890,111.10,
Department of Health,East Sussex Hospitals NHS Trust,09/10/2013,CONTINENCE PRODUCTS,Planned Care,PAUL HARTMANN LTD,0000899890,41.42,
Department of Health,East Sussex Hospitals NHS Trust,09/10/2013,CONTINENCE PRODUCTS,Planned Care,PAUL HARTMANN LTD,0000899890,41.02,
Department of Health,East Sussex Hospitals NHS Trust,09/10/2013,CONTINENCE PRODUCTS,Planned Care,PAUL HARTMANN LTD,0000899890,21.10,
Department of Health,East Sussex Hospitals NHS Trust,09/10/2013,CONTINENCE PRODUCTS,Integrated Care,PAUL HARTMANN LTD,0000899890,8.11,
Department of Health,East Sussex Hospitals NHS Trust,09/10/2013,CONTINENCE PRODUCTS,Planned Care,PAUL HARTMANN LTD,0000899890,33.25,
Department of Health,East Sussex Hospitals NHS Trust,09/10/2013,CONTINENCE PRODUCTS,Planned Care,PAUL HARTMANN LTD,0000899890,21.10,
Department of Health,East Sussex Hospitals NHS Trust,09/10/2013,CONTINENCE PRODUCTS,Planned Care,PAUL HARTMANN LTD,0000899890,16.58,
Department of Health,East Sussex Hospitals NHS Trust,09/10/2013,CONTINENCE PRODUCTS,Commercial,PAUL HARTMANN LTD,0000899890,40.69,
Department of Health,East Sussex Hospitals NHS Trust,09/10/2013,CONTINENCE PRODUCTS,Planned Care,PAUL HARTMANN LTD,0000899890,20.60,
Department of Health,East Sussex Hospitals NHS Trust,09/10/2013,CONTINENCE PRODUCTS,Urgent Care,PAUL HARTMANN LTD,0000899890,18.52,
Department of Health,East Sussex Hospitals NHS Trust,09/10/2013,CONTINENCE PRODUCTS,Urgent Care,PAUL HARTMANN LTD,0000899890,24.69,
Department of Health,East Sussex Hospitals NHS Trust,09/10/2013,CONTINENCE PRODUCTS,Urgent Care,PAUL HARTMANN LTD,0000899890,106.18,
Department of Health,East Sussex Hospitals NHS Trust,09/10/2013,M&S GENERAL SUPPLIES-OTHER,Planned Care,WELLSPECT HEALTHCARE,0000899906,1044.96,
Department of Health,East Sussex Hospitals NHS Trust,09/10/2013,PROFESSIONAL FEES,Corporate Services,MISCELLANEOUS ONE-OFF PAYMENTS,0000914586,1963.26,
Department of Health,East Sussex Hospitals NHS Trust,09/10/2013,STOCK-ASCRIBE CONQUEST,Pharmacy Stock,MERCK SERONO,0001214322,2457.00,
Department of Health,East Sussex Hospitals NHS Trust,09/10/2013,STOCK-ASCRIBE CONQUEST,Pharmacy Stock,FRESENIUS LTD,0001214373,633.89,
Department of Health,East Sussex Hospitals NHS Trust,09/10/2013,STOCK-ASCRIBE CONQUEST,Pharmacy Stock,HOSPIRA ASEPTIC SERVICES LIMITED,0001214425,3967.83,
Department of Health,East Sussex Hospitals NHS Trust,09/10/2013,STOCK-ASCRIBE CONQUEST,Pharmacy Stock,ALLIANCE HEALTHCARE (DISTRIBUTION) LTD,0001216032,1323.29,
Department of Health,East Sussex Hospitals NHS Trust,09/10/2013,STOCK-ASCRIBE CONQUEST,Pharmacy Stock,ALLIANCE HEALTHCARE (DISTRIBUTION) LTD,0001216036,3493.55,
Department of Health,East Sussex Hospitals NHS Trust,09/10/2013,STOCK-ASCRIBE CONQUEST,Pharmacy Stock,ALLIANCE HEALTHCARE (DISTRIBUTION) LTD,0001216040,4040.38,
Department of Health,East Sussex Hospitals NHS Trust,09/10/2013,STOCK-ASCRIBE CONQUEST,Pharmacy Stock,ALLIANCE HEALTHCARE (DISTRIBUTION) LTD,0001216042,1870.08,
Department of Health,East Sussex Hospitals NHS Trust,09/10/2013,STOCK-ASCRIBE CONQUEST,Pharmacy Stock,ALLIANCE HEALTHCARE (DISTRIBUTION) LTD,0001216043,692.81,
Department of Health,East Sussex Hospitals NHS Trust,09/10/2013,STOCK-ASCRIBE CONQUEST,Pharmacy Stock,ALLIANCE HEALTHCARE (DISTRIBUTION) LTD,0001216044,587.10,
Department of Health,East Sussex Hospitals NHS Trust,09/10/2013,STOCK-ASCRIBE CONQUEST,Pharmacy Stock,ALLIANCE HEALTHCARE (DISTRIBUTION) LTD,0001216048,1733.04,
Department of Health,East Sussex Hospitals NHS Trust,09/10/2013,STOCK-ASCRIBE CONQUEST,Pharmacy Stock,ALLIANCE HEALTHCARE (DISTRIBUTION) LTD,0001216049,942.16,
Department of Health,East Sussex Hospitals NHS Trust,09/10/2013,STOCK-ASCRIBE CONQUEST,Pharmacy Stock,ALLIANCE HEALTHCARE (DISTRIBUTION) LTD,0001216054,827.75,
Department of Health,East Sussex Hospitals NHS Trust,09/10/2013,STOCK-ASCRIBE CONQUEST,Pharmacy Stock,ALLIANCE HEALTHCARE (DISTRIBUTION) LTD,0001216056,587.88,
Department of Health,East Sussex Hospitals NHS Trust,09/10/2013,STOCK-ASCRIBE CONQUEST,Pharmacy Stock,JANSSEN-CILAG LTD,0001216069,5489.14,
Department of Health,East Sussex Hospitals NHS Trust,09/10/2013,STOCK-ASCRIBE CONQUEST,Pharmacy Stock,NORGINE PHARMACEUTICALS LTD,0001216116,1282.56,
Department of Health,East Sussex Hospitals NHS Trust,09/10/2013,STOCK-ASCRIBE CONQUEST,Pharmacy Stock,NOVARTIS PHARMACEUTICALS UK LTD,0001216130,5128.74,
Department of Health,East Sussex Hospitals NHS Trust,09/10/2013,STOCK-ASCRIBE CONQUEST,Pharmacy Stock,DIAGMED HEALTHCARE LTD,0001216132,803.52,
Department of Health,East Sussex Hospitals NHS Trust,09/10/2013,STOCK-ASCRIBE CONQUEST,Pharmacy Stock,NOVARTIS PHARMACEUTICALS UK LTD,0001216147,41133.34,
Department of Health,East Sussex Hospitals NHS Trust,09/10/2013,STOCK-ASCRIBE CONQUEST,Pharmacy Stock,SIEMENS HEALTHCARE DIAGNOSTICS LTD,0001216156,1261.44,
Department of Health,East Sussex Hospitals NHS Trust,09/10/2013,STOCK-ASCRIBE CONQUEST,Pharmacy Stock,ALLIANCE HEALTHCARE (DISTRIBUTION) LTD,0001216452,543.94,
Department of Health,East Sussex Hospitals NHS Trust,09/10/2013,STOCK-ASCRIBE CONQUEST,Pharmacy Stock,ALLIANCE HEALTHCARE (DISTRIBUTION) LTD,0001216456,756.57,
Department of Health,East Sussex Hospitals NHS Trust,09/10/2013,STOCK-ASCRIBE CONQUEST,Pharmacy Stock,ALLIANCE HEALTHCARE (DISTRIBUTION) LTD,0001216458,1036.80,
Department of Health,East Sussex Hospitals NHS Trust,09/10/2013,STOCK-ASCRIBE CONQUEST,Pharmacy Stock,ALLIANCE HEALTHCARE (DISTRIBUTION) LTD,0001216459,843.29,
Department of Health,East Sussex Hospitals NHS Trust,09/10/2013,STOCK-ASCRIBE CONQUEST,Pharmacy Stock,ALLIANCE HEALTHCARE (DISTRIBUTION) LTD,0001216460,732.00,
Department of Health,East Sussex Hospitals NHS Trust,09/10/2013,STOCK-ASCRIBE CONQUEST,Pharmacy Stock,ALLIANCE HEALTHCARE (DISTRIBUTION) LTD,0001216463,2715.60,
Department of Health,East Sussex Hospitals NHS Trust,09/10/2013,STOCK-ASCRIBE CONQUEST,Pharmacy Stock,ALLIANCE HEALTHCARE (DISTRIBUTION) LTD,0001216470,567.02,
Department of Health,East Sussex Hospitals NHS Trust,09/10/2013,STOCK-ASCRIBE CONQUEST,Pharmacy Stock,ALLIANCE HEALTHCARE (DISTRIBUTION) LTD,0001216472,1324.81,
Department of Health,East Sussex Hospitals NHS Trust,09/10/2013,STOCK-ASCRIBE CONQUEST,Pharmacy Stock,ALLIANCE HEALTHCARE (DISTRIBUTION) LTD,0001216473,3454.32,
Department of Health,East Sussex Hospitals NHS Trust,09/10/2013,STOCK-ASCRIBE CONQUEST,Pharmacy Stock,ALLIANCE HEALTHCARE (DISTRIBUTION) LTD,0001216475,532.57,
Department of Health,East Sussex Hospitals NHS Trust,09/10/2013,STOCK-ASCRIBE CONQUEST,Pharmacy Stock,ALLIANCE HEALTHCARE (DISTRIBUTION) LTD,0001216476,1610.86,
Department of Health,East Sussex Hospitals NHS Trust,09/10/2013,STOCK-ASCRIBE CONQUEST,Pharmacy Stock,ALLIANCE HEALTHCARE (DISTRIBUTION) LTD,0001216478,2824.92,
Department of Health,East Sussex Hospitals NHS Trust,09/10/2013,STOCK-ASCRIBE CONQUEST,Pharmacy Stock,HOSPIRA ASEPTIC SERVICES LIMITED,0001216542,14597.14,
Department of Health,East Sussex Hospitals NHS Trust,09/10/2013,STOCK-ASCRIBE CONQUEST,Pharmacy Stock,HOSPIRA ASEPTIC SERVICES LIMITED,0001216543,15685.72,
Department of Health,East Sussex Hospitals NHS Trust,09/10/2013,STOCK-ASCRIBE CONQUEST,Pharmacy Stock,ALLIANCE HEALTHCARE (DISTRIBUTION) LTD,0001216594,1611.42,
Department of Health,East Sussex Hospitals NHS Trust,09/10/2013,STOCK-ASCRIBE CONQUEST,Pharmacy Stock,ABBOTT LABORATORIES LTD,0001216598,3355.20,
Department of Health,East Sussex Hospitals NHS Trust,09/10/2013,STOCK-ASCRIBE CONQUEST,Pharmacy Stock,ABBOTT LABORATORIES LTD,0001216604,3466.44,
Department of Health,East Sussex Hospitals NHS Trust,09/10/2013,STOCK-ASCRIBE CONQUEST,Pharmacy Stock,ALLIANCE HEALTHCARE (DISTRIBUTION) LTD,0001216848,519.82,
Department of Health,East Sussex Hospitals NHS Trust,09/10/2013,STOCK-ASCRIBE CONQUEST,Pharmacy Stock,ALLIANCE HEALTHCARE (DISTRIBUTION) LTD,0001216849,1047.62,
Department of Health,East Sussex Hospitals NHS Trust,09/10/2013,STOCK-ASCRIBE CONQUEST,Pharmacy Stock,ALLIANCE HEALTHCARE (DISTRIBUTION) LTD,0001216857,898.66,
Department of Health,East Sussex Hospitals NHS Trust,09/10/2013,STOCK-ASCRIBE CONQUEST,Pharmacy Stock,ALLIANCE HEALTHCARE (DISTRIBUTION) LTD,0001216858,735.73,
Department of Health,East Sussex Hospitals NHS Trust,09/10/2013,STOCK-ASCRIBE CONQUEST,Pharmacy Stock,ALLIANCE HEALTHCARE (DISTRIBUTION) LTD,0001216859,2063.68,
Department of Health,East Sussex Hospitals NHS Trust,09/10/2013,STOCK-ASCRIBE CONQUEST,Pharmacy Stock,ALLIANCE HEALTHCARE (DISTRIBUTION) LTD,0001216863,1327.26,
Department of Health,East Sussex Hospitals NHS Trust,09/10/2013,STOCK-ASCRIBE CONQUEST,Pharmacy Stock,ALLIANCE HEALTHCARE (DISTRIBUTION) LTD,0001216864,4090.27,
Department of Health,East Sussex Hospitals NHS Trust,09/10/2013,STOCK-ASCRIBE CONQUEST,Pharmacy Stock,ALLIANCE HEALTHCARE (DISTRIBUTION) LTD,0001216865,4084.64,
Department of Health,East Sussex Hospitals NHS Trust,09/10/2013,STOCK-ASCRIBE CONQUEST,Pharmacy Stock,ALLIANCE HEALTHCARE (DISTRIBUTION) LTD,0001216866,518.40,
Department of Health,East Sussex Hospitals NHS Trust,09/10/2013,STOCK-ASCRIBE CONQUEST,Pharmacy Stock,ALLIANCE HEALTHCARE (DISTRIBUTION) LTD,0001216871,740.33,
Department of Health,East Sussex Hospitals NHS Trust,09/10/2013,STOCK-ASCRIBE CONQUEST,Pharmacy Stock,ABBOTT LABORATORIES LTD,0001216882,3355.20,
Department of Health,East Sussex Hospitals NHS Trust,09/10/2013,STOCK-ASCRIBE CONQUEST,Pharmacy Stock,GRIFOLS UK LTD,0001216992,3400.00,
Department of Health,East Sussex Hospitals NHS Trust,09/10/2013,STOCK-ASCRIBE CONQUEST,Pharmacy Stock,AAH PHARMACEUTICALS LTD,0001217192,767.59,
Department of Health,East Sussex Hospitals NHS Trust,09/10/2013,STOCK-ASCRIBE CONQUEST,Pharmacy Stock,AAH PHARMACEUTICALS LTD,0001217194,612.00,
Department of Health,East Sussex Hospitals NHS Trust,09/10/2013,STOCK-ASCRIBE CONQUEST,Pharmacy Stock,AAH PHARMACEUTICALS LTD,0001217212,722.53,
Department of Health,East Sussex Hospitals NHS Trust,09/10/2013,STOCK-ASCRIBE CONQUEST,Pharmacy Stock,AAH PHARMACEUTICALS LTD,0001217224,670.08,
Department of Health,East Sussex Hospitals NHS Trust,09/10/2013,STOCK-ASCRIBE CONQUEST,Pharmacy Stock,AAH PHARMACEUTICALS LTD,0001217241,592.58,
Department of Health,East Sussex Hospitals NHS Trust,09/10/2013,STOCK-ASCRIBE CONQUEST,Pharmacy Stock,AAH PHARMACEUTICALS LTD,0001217254,550.80,
Department of Health,East Sussex Hospitals NHS Trust,09/10/2013,STOCK-ASCRIBE CONQUEST,Pharmacy Stock,AAH PHARMACEUTICALS LTD,0001217258,729.54,
Department of Health,East Sussex Hospitals NHS Trust,09/10/2013,STOCK-ASCRIBE CONQUEST,Pharmacy Stock,AAH PHARMACEUTICALS LTD,0001217297,521.10,
Department of Health,East Sussex Hospitals NHS Trust,09/10/2013,STOCK-ASCRIBE CONQUEST,Pharmacy Stock,AAH PHARMACEUTICALS LTD,0001217303,4292.74,
Department of Health,East Sussex Hospitals NHS Trust,09/10/2013,STOCK-ASCRIBE CONQUEST,Pharmacy Stock,AAH PHARMACEUTICALS LTD,0001217304,1087.44,
Department of Health,East Sussex Hospitals NHS Trust,09/10/2013,STOCK-ASCRIBE CONQUEST,Pharmacy Stock,AAH PHARMACEUTICALS LTD,0001217306,622.81,
Department of Health,East Sussex Hospitals NHS Trust,09/10/2013,STOCK-ASCRIBE CONQUEST,Pharmacy Stock,AAH PHARMACEUTICALS LTD,0001217311,720.00,
Department of Health,East Sussex Hospitals NHS Trust,09/10/2013,STOCK-ASCRIBE CONQUEST,Pharmacy Stock,AAH PHARMACEUTICALS LTD,0001217312,1264.90,
Department of Health,East Sussex Hospitals NHS Trust,09/10/2013,STOCK-ASCRIBE CONQUEST,Pharmacy Stock,AAH PHARMACEUTICALS LTD,0001217345,522.70,
Department of Health,East Sussex Hospitals NHS Trust,09/10/2013,STOCK-ASCRIBE CONQUEST,Pharmacy Stock,AAH PHARMACEUTICALS LTD,0001217396,658.99,
Department of Health,East Sussex Hospitals NHS Trust,09/10/2013,STOCK-ASCRIBE CONQUEST,Pharmacy Stock,AAH PHARMACEUTICALS LTD,0001217400,1578.77,
Department of Health,East Sussex Hospitals NHS Trust,09/10/2013,STOCK-ASCRIBE CONQUEST,Pharmacy Stock,AAH PHARMACEUTICALS LTD,0001217405,526.92,
Department of Health,East Sussex Hospitals NHS Trust,09/10/2013,STOCK-ASCRIBE CONQUEST,Pharmacy Stock,AAH PHARMACEUTICALS LTD,0001217410,701.14,
Department of Health,East Sussex Hospitals NHS Trust,09/10/2013,STOCK-ASCRIBE CONQUEST,Pharmacy Stock,AAH PHARMACEUTICALS LTD,0001217412,595.58,
Department of Health,East Sussex Hospitals NHS Trust,09/10/2013,STOCK-ASCRIBE CONQUEST,Pharmacy Stock,AAH PHARMACEUTICALS LTD,0001217414,875.11,
Department of Health,East Sussex Hospitals NHS Trust,09/10/2013,STOCK-ASCRIBE CONQUEST,Pharmacy Stock,AAH PHARMACEUTICALS LTD,0001217417,612.00,
Department of Health,East Sussex Hospitals NHS Trust,09/10/2013,STOCK-ASCRIBE CONQUEST,Pharmacy Stock,AAH PHARMACEUTICALS LTD,0001217419,572.22,
Department of Health,East Sussex Hospitals NHS Trust,09/10/2013,STOCK-ASCRIBE CONQUEST,Pharmacy Stock,AAH PHARMACEUTICALS LTD,0001217423,1835.38,
Department of Health,East Sussex Hospitals NHS Trust,09/10/2013,STOCK-ASCRIBE CONQUEST,Pharmacy Stock,AAH PHARMACEUTICALS LTD,0001217433,756.46,
Department of Health,East Sussex Hospitals NHS Trust,09/10/2013,STOCK-ASCRIBE CONQUEST,Pharmacy Stock,AAH PHARMACEUTICALS LTD,0001217444,3748.98,
Department of Health,East Sussex Hospitals NHS Trust,09/10/2013,STOCK-ASCRIBE CONQUEST,Pharmacy Stock,AAH PHARMACEUTICALS LTD,0001217446,1148.54,
Department of Health,East Sussex Hospitals NHS Trust,09/10/2013,STOCK-ASCRIBE CONQUEST,Pharmacy Stock,AAH PHARMACEUTICALS LTD,0001217456,612.00,
Department of Health,East Sussex Hospitals NHS Trust,09/10/2013,STOCK-ASCRIBE CONQUEST,Pharmacy Stock,AAH PHARMACEUTICALS LTD,0001217561,699.41,
Department of Health,East Sussex Hospitals NHS Trust,09/10/2013,STOCK-ASCRIBE CONQUEST,Pharmacy Stock,AAH PHARMACEUTICALS LTD,0001217563,862.19,
Department of Health,East Sussex Hospitals NHS Trust,09/10/2013,STOCK-ASCRIBE CONQUEST,Pharmacy Stock,AAH PHARMACEUTICALS LTD,0001217565,625.32,
Department of Health,East Sussex Hospitals NHS Trust,09/10/2013,STOCK-ASCRIBE CONQUEST,Pharmacy Stock,SIEMENS HEALTHCARE DIAGNOSTICS LTD,0001217615,1261.44,
Department of Health,East Sussex Hospitals NHS Trust,09/10/2013,STOCK-ASCRIBE CONQUEST,Pharmacy Stock,AAH PHARMACEUTICALS LTD,0001217631,541.68,
Department of Health,East Sussex Hospitals NHS Trust,09/10/2013,STOCK-ASCRIBE CONQUEST,Pharmacy Stock,AAH PHARMACEUTICALS LTD,0001217635,843.34,
Department of Health,East Sussex Hospitals NHS Trust,09/10/2013,STOCK-ASCRIBE CONQUEST,Pharmacy Stock,AAH PHARMACEUTICALS LTD,0001217643,955.43,
Department of Health,East Sussex Hospitals NHS Trust,09/10/2013,STOCK-ASCRIBE CONQUEST,Pharmacy Stock,AAH PHARMACEUTICALS LTD,0001217681,558.57,
Department of Health,East Sussex Hospitals NHS Trust,09/10/2013,STOCK-ASCRIBE CONQUEST,Pharmacy Stock,AAH PHARMACEUTICALS LTD,0001217682,627.00,
Department of Health,East Sussex Hospitals NHS Trust,09/10/2013,STOCK-ASCRIBE CONQUEST,Pharmacy Stock,AAH PHARMACEUTICALS LTD,0001217688,697.20,
Department of Health,East Sussex Hospitals NHS Trust,09/10/2013,STOCK-ASCRIBE CONQUEST,Pharmacy Stock,AAH PHARMACEUTICALS LTD,0001217699,675.26,
Department of Health,East Sussex Hospitals NHS Trust,09/10/2013,STOCK-ASCRIBE CONQUEST,Pharmacy Stock,AAH PHARMACEUTICALS LTD,0001217716,684.00,
Department of Health,East Sussex Hospitals NHS Trust,09/10/2013,STOCK-ASCRIBE CONQUEST,Pharmacy Stock,AAH PHARMACEUTICALS LTD,0001217726,849.62,
Department of Health,East Sussex Hospitals NHS Trust,09/10/2013,STOCK-ASCRIBE CONQUEST,Pharmacy Stock,AAH PHARMACEUTICALS LTD,0001217732,599.48,
Department of Health,East Sussex Hospitals NHS Trust,09/10/2013,STOCK-ASCRIBE CONQUEST,Pharmacy Stock,AAH PHARMACEUTICALS LTD,0001217746,614.60,
Department of Health,East Sussex Hospitals NHS Trust,09/10/2013,STOCK-ASCRIBE CONQUEST,Pharmacy Stock,AAH PHARMACEUTICALS LTD,0001217748,506.89,
Department of Health,East Sussex Hospitals NHS Trust,09/10/2013,STOCK-ASCRIBE CONQUEST,Pharmacy Stock,AAH PHARMACEUTICALS LTD,0001217754,2225.76,
Department of Health,East Sussex Hospitals NHS Trust,09/10/2013,STOCK-ASCRIBE CONQUEST,Pharmacy Stock,AAH PHARMACEUTICALS LTD,0001217782,514.65,
Department of Health,East Sussex Hospitals NHS Trust,09/10/2013,STOCK-ASCRIBE CONQUEST,Pharmacy Stock,AAH PHARMACEUTICALS LTD,0001217797,813.36,
Department of Health,East Sussex Hospitals NHS Trust,09/10/2013,STOCK-ASCRIBE CONQUEST,Pharmacy Stock,AAH PHARMACEUTICALS LTD,0001217802,856.80,
Department of Health,East Sussex Hospitals NHS Trust,09/10/2013,STOCK-ASCRIBE CONQUEST,Pharmacy Stock,AAH PHARMACEUTICALS LTD,0001217808,532.54,
Department of Health,East Sussex Hospitals NHS Trust,09/10/2013,STOCK-ASCRIBE CONQUEST,Pharmacy Stock,AAH PHARMACEUTICALS LTD,0001217809,582.04,
Department of Health,East Sussex Hospitals NHS Trust,09/10/2013,STOCK-ASCRIBE CONQUEST,Pharmacy Stock,AAH PHARMACEUTICALS LTD,0001217813,827.40,
Department of Health,East Sussex Hospitals NHS Trust,09/10/2013,STOCK-ASCRIBE CONQUEST,Pharmacy Stock,AAH PHARMACEUTICALS LTD,0001218139,1890.26,
Department of Health,East Sussex Hospitals NHS Trust,09/10/2013,STOCK-ASCRIBE CONQUEST,Pharmacy Stock,AAH PHARMACEUTICALS LTD,0001218144,720.00,
Department of Health,East Sussex Hospitals NHS Trust,09/10/2013,STOCK-ASCRIBE CONQUEST,Pharmacy Stock,AAH PHARMACEUTICALS LTD,0001218159,678.13,
Department of Health,East Sussex Hospitals NHS Trust,09/10/2013,STOCK-ASCRIBE CONQUEST,Pharmacy Stock,AAH PHARMACEUTICALS LTD,0001218164,920.10,
Department of Health,East Sussex Hospitals NHS Trust,09/10/2013,STOCK-ASCRIBE CONQUEST,Pharmacy Stock,AAH PHARMACEUTICALS LTD,0001218167,524.88,
Department of Health,East Sussex Hospitals NHS Trust,09/10/2013,STOCK-ASCRIBE CONQUEST,Pharmacy Stock,AAH PHARMACEUTICALS LTD,0001218174,627.00,
Department of Health,East Sussex Hospitals NHS Trust,09/10/2013,STOCK-ASCRIBE CONQUEST,Pharmacy Stock,AAH PHARMACEUTICALS LTD,0001218216,856.80,
Department of Health,East Sussex Hospitals NHS Trust,09/10/2013,STOCK-ASCRIBE CONQUEST,Pharmacy Stock,AAH PHARMACEUTICALS LTD,0001218229,556.32,
Department of Health,East Sussex Hospitals NHS Trust,09/10/2013,STOCK-ASCRIBE CONQUEST,Pharmacy Stock,AAH PHARMACEUTICALS LTD,0001218231,637.82,
Department of Health,East Sussex Hospitals NHS Trust,09/10/2013,STOCK-ASCRIBE CONQUEST,Pharmacy Stock,AAH PHARMACEUTICALS LTD,0001218235,521.10,
Department of Health,East Sussex Hospitals NHS Trust,09/10/2013,STOCK-ASCRIBE CONQUEST,Pharmacy Stock,AAH PHARMACEUTICALS LTD,0001218252,690.24,
Department of Health,East Sussex Hospitals NHS Trust,09/10/2013,STOCK-ASCRIBE CONQUEST,Pharmacy Stock,AAH PHARMACEUTICALS LTD,0001218256,539.24,
Department of Health,East Sussex Hospitals NHS Trust,09/10/2013,STOCK-ASCRIBE CONQUEST,Pharmacy Stock,AAH PHARMACEUTICALS LTD,0001218260,564.73,
Department of Health,East Sussex Hospitals NHS Trust,09/10/2013,STOCK-ASCRIBE CONQUEST,Pharmacy Stock,AAH PHARMACEUTICALS LTD,0001218273,668.10,
Department of Health,East Sussex Hospitals NHS Trust,09/10/2013,STOCK-ASCRIBE CONQUEST,Pharmacy Stock,AAH PHARMACEUTICALS LTD,0001218274,792.04,
Department of Health,East Sussex Hospitals NHS Trust,09/10/2013,STOCK-ASCRIBE CONQUEST,Pharmacy Stock,AAH PHARMACEUTICALS LTD,0001218289,1535.70,
Department of Health,East Sussex Hospitals NHS Trust,09/10/2013,STOCK-ASCRIBE CONQUEST,Pharmacy Stock,AAH PHARMACEUTICALS LTD,0001218293,764.18,
Department of Health,East Sussex Hospitals NHS Trust,09/10/2013,STOCK-ASCRIBE CONQUEST,Pharmacy Stock,AAH PHARMACEUTICALS LTD,0001218313,541.68,
Department of Health,East Sussex Hospitals NHS Trust,09/10/2013,STOCK-ASCRIBE CONQUEST,Pharmacy Stock,AAH PHARMACEUTICALS LTD,0001218315,521.10,
Department of Health,East Sussex Hospitals NHS Trust,09/10/2013,STOCK-ASCRIBE CONQUEST,Pharmacy Stock,AAH PHARMACEUTICALS LTD,0001218323,517.26,
Department of Health,East Sussex Hospitals NHS Trust,09/10/2013,STOCK-ASCRIBE CONQUEST,Pharmacy Stock,AAH PHARMACEUTICALS LTD,0001218344,1302.83,
Department of Health,East Sussex Hospitals NHS Trust,09/10/2013,STOCK-ASCRIBE CONQUEST,Pharmacy Stock,AAH PHARMACEUTICALS LTD,0001218349,545.20,
Department of Health,East Sussex Hospitals NHS Trust,09/10/2013,STOCK-ASCRIBE CONQUEST,Pharmacy Stock,AAH PHARMACEUTICALS LTD,0001218363,690.00,
Department of Health,East Sussex Hospitals NHS Trust,09/10/2013,STOCK-ASCRIBE CONQUEST,Pharmacy Stock,AAH PHARMACEUTICALS LTD,0001218365,582.53,
Department of Health,East Sussex Hospitals NHS Trust,09/10/2013,STOCK-ASCRIBE CONQUEST,Pharmacy Stock,AAH PHARMACEUTICALS LTD,0001218380,521.10,
Department of Health,East Sussex Hospitals NHS Trust,09/10/2013,STOCK-ASCRIBE CONQUEST,Pharmacy Stock,AAH PHARMACEUTICALS LTD,0001218384,724.95,
Department of Health,East Sussex Hospitals NHS Trust,09/10/2013,STOCK-ASCRIBE CONQUEST,Pharmacy Stock,AAH PHARMACEUTICALS LTD,0001218387,589.27,
Department of Health,East Sussex Hospitals NHS Trust,09/10/2013,STOCK-ASCRIBE CONQUEST,Pharmacy Stock,AAH PHARMACEUTICALS LTD,0001218391,702.89,
Department of Health,East Sussex Hospitals NHS Trust,09/10/2013,STOCK-ASCRIBE CONQUEST,Pharmacy Stock,AAH PHARMACEUTICALS LTD,0001218400,704.00,
Department of Health,East Sussex Hospitals NHS Trust,09/10/2013,ESPERANCE - SERVICES RECEIVED,Urgent Care,BMI HEALTHCARE COLLECTIONS,0001421123,4950.00,
Department of Health,East Sussex Hospitals NHS Trust,09/10/2013,ESPERANCE - SERVICES RECEIVED,Urgent Care,BMI HEALTHCARE COLLECTIONS,0001422041,2200.00,
Department of Health,East Sussex Hospitals NHS Trust,09/10/2013,ESPERANCE - SERVICES RECEIVED,Integrated Care,BMI HEALTHCARE COLLECTIONS,0001422399,5631.00,
Department of Health,East Sussex Hospitals NHS Trust,09/10/2013,ESPERANCE - SERVICES RECEIVED,Integrated Care,BMI HEALTHCARE COLLECTIONS,0001422400,11730.00,
Department of Health,East Sussex Hospitals NHS Trust,09/10/2013,ESPERANCE - SERVICES RECEIVED,Urgent Care,BMI HEALTHCARE COLLECTIONS,0001422401,5500.00,
Department of Health,East Sussex Hospitals NHS Trust,09/10/2013,ESPERANCE - SERVICES RECEIVED,Planned Care,BMI HEALTHCARE COLLECTIONS,0001422402,26838.38,
Department of Health,East Sussex Hospitals NHS Trust,09/10/2013,H/CARE PURCH COM - SPIRE,Planned Care,SPIRE HEALTHCARE FINANCE,0001422472,2000.00,
Department of Health,East Sussex Hospitals NHS Trust,09/10/2013,ACCREDITATION FEES,Integrated Care,CLINICAL PATHOLOGY ACCREDITATION,0001422772,2880.00,
Department of Health,East Sussex Hospitals NHS Trust,09/10/2013,TRAINING FEES - NURSE CONT ED,Corporate Services,THE SKILLS DEVELOPMENT SERVICE LTD,0001422812,739.00,
Department of Health,East Sussex Hospitals NHS Trust,09/10/2013,TRAINING FEES - NURSE CONT ED,Corporate Services,JEAN F FLOODGATE,0001422815,2371.75,
Department of Health,East Sussex Hospitals NHS Trust,09/10/2013,TRAINING FEES - NURSE CONT ED,Corporate Services,THE BRITISH THORACIC SOCIETY,0001422820,540.00,
Department of Health,East Sussex Hospitals NHS Trust,09/10/2013,TRAINING FEES - NURSE CONT ED,Corporate Services,THE BRITISH THORACIC SOCIETY,0001422821,540.00,
Department of Health,East Sussex Hospitals NHS Trust,09/10/2013,TRAINING-TRAVEL & SUBSISTENCE,Corporate Services,DR DSOUZA LTD,0001422860,41.00,
Department of Health,East Sussex Hospitals NHS Trust,09/10/2013,TRAINING COURSE FEES-OTHER,Corporate Services,DR DSOUZA LTD,0001422860,625.00,
Department of Health,East Sussex Hospitals NHS Trust,09/10/2013,GENERAL LAB. CONSUMABLES,Integrated Care,OXOID LIMITED,0001422867,49.15,
Department of Health,East Sussex Hospitals NHS Trust,09/10/2013,LAB MATERIALS - OXOID,Integrated Care,OXOID LIMITED,0001422867,1151.63,
Department of Health,East Sussex Hospitals NHS Trust,09/10/2013,COUNCIL TAX PAYMENTS,Commercial,HASTINGS BOROUGH COUNCIL,0001422868,2504.72,
Department of Health,East Sussex Hospitals NHS Trust,09/10/2013,COUNCIL TAX PAYMENTS,Commercial,EASTBOURNE BOROUGH COUNCIL,0001422869,9971.77,
Department of Health,East Sussex Hospitals NHS Trust,09/10/2013,CONTRACTED-OUT H.CARE SERVICES,Integrated Care,ALLIANCE MEDICAL LTD,0001529063,2250.00,
Department of Health,East Sussex Hospitals NHS Trust,09/10/2013,CONTRACT-SCANNING SERVICE,Integrated Care,INHEALTH LIMITED,0001529850,76224.16,
Department of Health,East Sussex Hospitals NHS Trust,09/10/2013,DRUGS-OTHER,Integrated Care,AAH PHARMACEUTICALS LTD,0001530051,6796.44,
Department of Health,East Sussex Hospitals NHS Trust,09/10/2013,DRUGS-OTHER,Urgent Care,LLOYDS PHARMACY,0001530121,11831.90,
Department of Health,East Sussex Hospitals NHS Trust,09/10/2013,DRUGS-OTHER,Integrated Care,AAH PHARMACEUTICALS LTD,0001530148,2501.80,
Department of Health,East Sussex Hospitals NHS Trust,09/10/2013,CONTRACTED-OUT H.CARE SERVICES,Integrated Care,ALLIANCE MEDICAL LTD,0001530152,1402.80,
Department of Health,East Sussex Hospitals NHS Trust,09/10/2013,CONTRACTED-OUT H.CARE SERVICES,Integrated Care,ALLIANCE MEDICAL LTD,0001530153,1402.80,
Department of Health,East Sussex Hospitals NHS Trust,09/10/2013,CONTRACTED-OUT H.CARE SERVICES,Integrated Care,ALLIANCE MEDICAL LTD,0001530154,2518.00,
Department of Health,East Sussex Hospitals NHS Trust,09/10/2013,CONTRACTED-OUT H.CARE SERVICES,Integrated Care,ALLIANCE MEDICAL LTD,0001530155,1402.80,
Department of Health,East Sussex Hospitals NHS Trust,09/10/2013,CONTRACTED-OUT H.CARE SERVICES,Integrated Care,ALLIANCE MEDICAL LTD,0001530156,2518.00,
Department of Health,East Sussex Hospitals NHS Trust,09/10/2013,CONTRACTED-OUT H.CARE SERVICES,Integrated Care,ALLIANCE MEDICAL LTD,0001530157,2518.00,
Department of Health,East Sussex Hospitals NHS Trust,09/10/2013,CONTRACTED-OUT H.CARE SERVICES,Integrated Care,ALLIANCE MEDICAL LTD,0001530158,2518.00,
Department of Health,East Sussex Hospitals NHS Trust,09/10/2013,CONTRACTED-OUT H.CARE SERVICES,Integrated Care,ALLIANCE MEDICAL LTD,0001530159,1169.00,
Department of Health,East Sussex Hospitals NHS Trust,09/10/2013,CONTRACTED-OUT H.CARE SERVICES,Integrated Care,ALLIANCE MEDICAL LTD,0001530160,1169.00,
Department of Health,East Sussex Hospitals NHS Trust,09/10/2013,CONTRACTED-OUT H.CARE SERVICES,Integrated Care,ALLIANCE MEDICAL LTD,0001530161,1402.80,
Department of Health,East Sussex Hospitals NHS Trust,09/10/2013,CONTRACTED-OUT H.CARE SERVICES,Integrated Care,ALLIANCE MEDICAL LTD,0001530162,2518.00,
Department of Health,East Sussex Hospitals NHS Trust,09/10/2013,CONTRACTED-OUT H.CARE SERVICES,Integrated Care,ALLIANCE MEDICAL LTD,0001530163,2518.00,
Department of Health,East Sussex Hospitals NHS Trust,09/10/2013,CONTRACTED-OUT H.CARE SERVICES,Integrated Care,ALLIANCE MEDICAL LTD,0001530164,1402.80,
Department of Health,East Sussex Hospitals NHS Trust,09/10/2013,CONTRACTED-OUT H.CARE SERVICES,Integrated Care,ALLIANCE MEDICAL LTD,0001530165,1402.80,
Department of Health,East Sussex Hospitals NHS Trust,09/10/2013,LECTURE FEES,Corporate Services,MARY E BLAIN,0001530168,750.00,
Department of Health,East Sussex Hospitals NHS Trust,09/10/2013,CONTRACTED-OUT H.CARE SERVICES,Integrated Care,ALLIANCE MEDICAL LTD,0001530239,1169.00,
Department of Health,East Sussex Hospitals NHS Trust,09/10/2013,INTERNAL AUDIT - LCFS,Corporate Services,DELOITTE & TOUCHE PUB SEC INT AUDIT LTD,0001530249,11642.40,
Department of Health,East Sussex Hospitals NHS Trust,09/10/2013,GENERAL PRACTITIONERS,Urgent Care,GROOMBRIDGE & HARTFIELD MEDICAL GROUP,0001530275,1855.36,
Department of Health,East Sussex Hospitals NHS Trust,09/10/2013,CONTRACT-SCANNING SERVICE,Integrated Care,INHEALTH LIMITED,0001530291,2800.00,
Department of Health,East Sussex Hospitals NHS Trust,09/10/2013,CONTRACT-SCANNING SERVICE,Integrated Care,INHEALTH LIMITED,0001530292,2800.00,
Department of Health,East Sussex Hospitals NHS Trust,09/10/2013,CONTRACT-SCANNING SERVICE,Integrated Care,INHEALTH LIMITED,0001530293,2800.00,
Department of Health,East Sussex Hospitals NHS Trust,09/10/2013,PROFESSIONAL FEES,Planned Care,SYNERTEC LTD,0001530421,4331.89,
Department of Health,East Sussex Hospitals NHS Trust,09/10/2013,PROFESSIONAL FEES,Corporate Services,BRIAN DEVAL,0001530425,900.00,
Department of Health,East Sussex Hospitals NHS Trust,09/10/2013,TESTS SENT TO NON NHS LABS,Integrated Care,PREVENTX LIMITED,0001530429,5687.00,
Department of Health,East Sussex Hospitals NHS Trust,09/10/2013,TESTS SENT TO NON NHS LABS,Integrated Care,PREVENTX LIMITED,0001530430,2391.00,
Department of Health,East Sussex Hospitals NHS Trust,09/10/2013,AGENCY CONSULTANT,Integrated Care,UNIVERSITY OF SUSSEX,0001530442,2206.45,
Department of Health,East Sussex Hospitals NHS Trust,09/10/2013,LEGAL FEES(PERSONNEL ISSUES),Corporate Services,BEVAN BRITTAN,0001530462,18423.10,
Department of Health,East Sussex Hospitals NHS Trust,09/10/2013,LEGAL FEES(PERSONNEL ISSUES),Corporate Services,BEVAN BRITTAN,0001530463,1624.63,
Department of Health,East Sussex Hospitals NHS Trust,09/10/2013,GENERAL PRACTITIONERS,Urgent Care,PARK PRACTICE EASTBOURNE,0001530588,2989.59,
Department of Health,East Sussex Hospitals NHS Trust,09/10/2013,CAPITAL EXPENDITURE,Other Central,CATCHPOLE PROJECT MANAGEMENT SERVS LTD,0001530597,1200.00,
Department of Health,East Sussex Hospitals NHS Trust,09/10/2013,POSTAGE,Commercial,PURCHASE POWER,0001530606,861.78,
Department of Health,East Sussex Hospitals NHS Trust,09/10/2013,CONTRACTED-OUT H.CARE SERVICES,Integrated Care,INHEALTH LIMITED,0001530607,2800.00,
Department of Health,East Sussex Hospitals NHS Trust,09/10/2013,CAP EXPEND INTANGIBLES,Other Central,CATCHPOLE PROJECT MANAGEMENT SERVS LTD,0001530617,3375.00,
Department of Health,East Sussex Hospitals NHS Trust,09/10/2013,PHOTOCOPIER HIRE,Integrated Care,THE FELLOWSHIP OF ST NICHOLAS (FSN),0001530621,687.25,
Department of Health,East Sussex Hospitals NHS Trust,09/10/2013,CONTINENCE PRODUCTS,Integrated Care,PAUL HARTMANN LTD,0001530626,9456.17,
Department of Health,East Sussex Hospitals NHS Trust,09/10/2013,PATIENTLINE RENTAL,Commercial,HOSPEDIA LIMITED,0001530647,2000.00,
Department of Health,East Sussex Hospitals NHS Trust,09/10/2013,DRUGS-OTHER,Integrated Care,AAH PHARMACEUTICALS LTD,0001530690,-567.00,
Department of Health,East Sussex Hospitals NHS Trust,09/10/2013,DRUGS-OTHER,Commercial,GILEAD SCIENCES LTD,0001615005,10179.46,
Department of Health,East Sussex Hospitals NHS Trust,09/10/2013,DRUGS-OTHER,Commercial,B BRAUN MEDICAL LTD,0001615008,661.21,
Department of Health,East Sussex Hospitals NHS Trust,09/10/2013,OTHER MEDIA,Commercial,CHERWELL LABORATORIES,0001615009,627.42,
Department of Health,East Sussex Hospitals NHS Trust,09/10/2013,DRUGS-OTHER,Commercial,FAGRON UK LTD,0001615041,526.44,
Department of Health,East Sussex Hospitals NHS Trust,09/10/2013,DRUGS-OTHER,Commercial,R & L SLAUGHTER LTD,0001615061,1320.60,
Department of Health,East Sussex Hospitals NHS Trust,09/10/2013,DRUGS-OTHER,Commercial,JANSSEN-CILAG LTD,0001615079,9148.56,
Department of Health,East Sussex Hospitals NHS Trust,09/10/2013,LAB-CONTAINERS/BOTTLES & CAPS,Commercial,NEVILLE & MORE LTD,0001615147,3045.06,
Department of Health,East Sussex Hospitals NHS Trust,09/10/2013,CONTRACT-PHARMACY TESTING,Commercial,ATP INSTRUMENTATION LTD,0001615165,770.64,
Department of Health,East Sussex Hospitals NHS Trust,09/10/2013,DRUGS-OTHER,Commercial,ABBVIE LTD,0001615175,6849.84,
Department of Health,East Sussex Hospitals NHS Trust,09/10/2013,DRUGS-OTHER,Commercial,ALLIANCE HEALTHCARE (DISTRIBUTION) LTD,0001615178,1267.20,
Department of Health,East Sussex Hospitals NHS Trust,09/10/2013,DRUGS-OTHER,Commercial,ALLIANCE HEALTHCARE (DISTRIBUTION) LTD,0001615218,1050.00,
Department of Health,East Sussex Hospitals NHS Trust,09/10/2013,DRUGS-OTHER,Commercial,ALLIANCE HEALTHCARE (DISTRIBUTION) LTD,0001615220,1923.74,
Department of Health,East Sussex Hospitals NHS Trust,09/10/2013,CONTRACT-PHARMACY TESTING,Commercial,CHERWELL LABORATORIES,0001615237,627.42,
Department of Health,East Sussex Hospitals NHS Trust,09/10/2013,DRUGS-OTHER,Commercial,AAH PHARMACEUTICALS LTD,0001615240,646.80,
Department of Health,East Sussex Hospitals NHS Trust,09/10/2013,DRUGS-OTHER,Commercial,AAH PHARMACEUTICALS LTD,0001615242,646.14,
Department of Health,East Sussex Hospitals NHS Trust,09/10/2013,DRUGS-OTHER,Commercial,AAH PHARMACEUTICALS LTD,0001615245,2414.88,
Department of Health,East Sussex Hospitals NHS Trust,09/10/2013,DRUGS-OTHER,Commercial,AAH PHARMACEUTICALS LTD,0001615258,532.18,
Department of Health,East Sussex Hospitals NHS Trust,09/10/2013,DRUGS-OTHER,Commercial,AAH PHARMACEUTICALS LTD,0001615268,1654.85,
Department of Health,East Sussex Hospitals NHS Trust,09/10/2013,DRUGS-OTHER,Commercial,AAH PHARMACEUTICALS LTD,0001615270,1407.60,
Department of Health,East Sussex Hospitals NHS Trust,09/10/2013,DRUGS-OTHER,Commercial,AAH PHARMACEUTICALS LTD,0001615275,532.18,
Department of Health,East Sussex Hospitals NHS Trust,09/10/2013,DRUGS-OTHER,Commercial,AAH PHARMACEUTICALS LTD,0001615277,1714.49,
Department of Health,East Sussex Hospitals NHS Trust,09/10/2013,DRUGS-OTHER,Commercial,AAH PHARMACEUTICALS LTD,0001615302,-703.80,
Department of Health,East Sussex Hospitals NHS Trust,09/10/2013,DRUGS-OTHER,Commercial,ABBVIE LTD,0001615310,4109.90,
Department of Health,East Sussex Hospitals NHS Trust,09/10/2013,DRUGS-OTHER,Commercial,AAH PHARMACEUTICALS LTD,0001615331,532.18,
Department of Health,East Sussex Hospitals NHS Trust,09/10/2013,DRUGS-OTHER,Commercial,AAH PHARMACEUTICALS LTD,0001615332,1064.35,
Department of Health,East Sussex Hospitals NHS Trust,09/10/2013,DRUGS-OTHER,Commercial,AAH PHARMACEUTICALS LTD,0001615334,1330.44,
Department of Health,East Sussex Hospitals NHS Trust,09/10/2013,DRUGS-OTHER,Commercial,AAH PHARMACEUTICALS LTD,0001615336,959.52,
Department of Health,East Sussex Hospitals NHS Trust,09/10/2013,DRUGS-OTHER,Commercial,AAH PHARMACEUTICALS LTD,0001615339,798.27,
Department of Health,East Sussex Hospitals NHS Trust,09/10/2013,DRUGS-OTHER,Commercial,ABBVIE LTD,0001615344,4109.90,
Department of Health,East Sussex Hospitals NHS Trust,09/10/2013,DRUGS-OTHER,Commercial,AAH PHARMACEUTICALS LTD,0001615346,-1064.34,
Department of Health,East Sussex Hospitals NHS Trust,09/10/2013,TELEPHONES-RENTAL&CALLS,Urgent Care,CLOUDXL NETWORKS LTD,0001705451,838.52,
Department of Health,East Sussex Hospitals NHS Trust,09/10/2013,TELEPHONES-RENTAL&CALLS,Commercial,EDGE TELECOM,0001705462,3309.27,
Department of Health,East Sussex Hospitals NHS Trust,09/10/2013,TELEPHONES-RENTAL&CALLS,Commercial,BRITISH TELECOM,0001705463,610.32,
Department of Health,East Sussex Hospitals NHS Trust,09/10/2013,PHONE WORK / EXTENTIONS,Commercial,BRITISH TELECOM,0001705464,2400.00,
Department of Health,East Sussex Hospitals NHS Trust,09/10/2013,PHOTOCOPIER HIRE,Commercial,RICOH UK LTD,0001705495,425.12,
Department of Health,East Sussex Hospitals NHS Trust,09/10/2013,PHOTOCOPIER HIRE,Commercial,RICOH UK LTD,0001705497,613.28,
Department of Health,East Sussex Hospitals NHS Trust,09/10/2013,ARTHROSCOPY INSTRUMENTS,Planned Care,SMITH & NEPHEW ADVANCED SURGICAL DEVICES,0001815338,1370.09,
Department of Health,East Sussex Hospitals NHS Trust,09/10/2013,SURGICAL INSTRUMENTS,Planned Care,SMITH & NEPHEW ADVANCED SURGICAL DEVICES,0001815339,1235.64,
Department of Health,East Sussex Hospitals NHS Trust,09/10/2013,WHEELCHAIR REPAIRS,Integrated Care,THE HELPING HAND COMPANY (LEDBURY) LTD,0001815349,551.88,
Department of Health,East Sussex Hospitals NHS Trust,09/10/2013,STAPLING DEVICES,Planned Care,JOHNSON & JOHNSON MEDICAL LTD,0001815391,524.73,
Department of Health,East Sussex Hospitals NHS Trust,09/10/2013,SURGICAL INSTRUMENTS,Planned Care,B BRAUN MEDICAL LTD,0001815529,518.88,
Department of Health,East Sussex Hospitals NHS Trust,09/10/2013,ARTHROSCOPY INSTRUMENTS,Planned Care,SMITH & NEPHEW ADVANCED SURGICAL DEVICES,0001815617,1370.09,
Department of Health,East Sussex Hospitals NHS Trust,09/10/2013,WHEELCHAIR REPAIRS,Integrated Care,AJ MOBILITY LTD,0001815887,799.12,
Department of Health,East Sussex Hospitals NHS Trust,09/10/2013,WHEELCHAIR REPAIRS,Integrated Care,AJ MOBILITY LTD,0001815888,1775.82,
Department of Health,East Sussex Hospitals NHS Trust,09/10/2013,ENTERAL FEEDING,Integrated Care,NUTRICIA CLINICAL CARE,0001815892,6477.12,
Department of Health,East Sussex Hospitals NHS Trust,09/10/2013,ENTERAL FEEDING,Integrated Care,NUTRICIA CLINICAL CARE,0001815893,5768.08,
Department of Health,East Sussex Hospitals NHS Trust,09/10/2013,ENTERAL FEEDING,Integrated Care,NUTRICIA CLINICAL CARE,0001815894,5006.23,
Department of Health,East Sussex Hospitals NHS Trust,09/10/2013,ENTERAL FEEDING,Integrated Care,NUTRICIA CLINICAL CARE,0001815895,637.93,
Department of Health,East Sussex Hospitals NHS Trust,09/10/2013,WHEELCHAIR REPAIRS,Integrated Care,AJ MOBILITY LTD,0001815896,2022.50,
Department of Health,East Sussex Hospitals NHS Trust,09/10/2013,WHEELCHAIR REPAIRS,Integrated Care,AJ MOBILITY LTD,0001815897,2158.42,
Department of Health,East Sussex Hospitals NHS Trust,09/10/2013,WHEELCHAIR REPAIRS,Integrated Care,AJ MOBILITY LTD,0001815918,3520.30,
Department of Health,East Sussex Hospitals NHS Trust,09/10/2013,PROVISIONS,Commercial,N H CASE LTD,0001907060,674.64,
Department of Health,East Sussex Hospitals NHS Trust,09/10/2013,PROVISIONS,Commercial,N H CASE LTD,0001907086,1125.66,
Department of Health,East Sussex Hospitals NHS Trust,09/10/2013,PROVISIONS,Commercial,J R WHOLESALE,0001907276,543.33,
Department of Health,East Sussex Hospitals NHS Trust,09/10/2013,PROVISIONS,Commercial,J R WHOLESALE,0001907286,747.07,
Department of Health,East Sussex Hospitals NHS Trust,09/10/2013,PROVISIONS,Commercial,BRAKE BROS (FROZEN FOODS) LTD,0001907298,742.50,
Department of Health,East Sussex Hospitals NHS Trust,09/10/2013,PROVISIONS,Commercial,BRAKE BROS (FROZEN FOODS) LTD,0001907300,544.42,
Department of Health,East Sussex Hospitals NHS Trust,09/10/2013,LAB MATERIALS - BECTON,Integrated Care,BECTON DICKINSON U.K. LTD,0002117053,713.76,
Department of Health,East Sussex Hospitals NHS Trust,09/10/2013,M&S EQUIPMENT - OTHER,Integrated Care,MEDTRONIC LTD,0002118705,259.20,
Department of Health,East Sussex Hospitals NHS Trust,09/10/2013,M&S GENERAL SUPPLIES-OTHER,Integrated Care,MEDTRONIC LTD,0002118705,372.00,
Department of Health,East Sussex Hospitals NHS Trust,09/10/2013,X-RAY - EQUIPMENT,Integrated Care,MEDTRONIC LTD,0002118705,4278.60,
Department of Health,East Sussex Hospitals NHS Trust,09/10/2013,M&S GENERAL SUPPLIES-OTHER,Planned Care,MEDTRONIC LTD,0002118857,591.60,
Department of Health,East Sussex Hospitals NHS Trust,09/10/2013,CARDIOLOGY CATHETERS,Urgent Care,BOSTON SCIENTIFIC LTD,0002119559,2538.00,
Department of Health,East Sussex Hospitals NHS Trust,09/10/2013,CARDIOLOGY STENTS,Urgent Care,BOSTON SCIENTIFIC LTD,0002119559,420.00,
Department of Health,East Sussex Hospitals NHS Trust,09/10/2013,PROSTHESIS - GRAFTS,Planned Care,COOK (UK) LTD,0002119927,1755.00,
Department of Health,East Sussex Hospitals NHS Trust,09/10/2013,LAB MATERIALS - PRO-LAB,Integrated Care,PRO-LAB DIAGNOSTICS,0002120092,1005.78,
Department of Health,East Sussex Hospitals NHS Trust,09/10/2013,PROSTHESES-HIP,Planned Care,JOHNSON & JOHNSON MEDICAL LTD,0002120184,2559.09,
Department of Health,East Sussex Hospitals NHS Trust,09/10/2013,NATIONAL JOINT REGISTRY LEVY,Planned Care,JOHNSON & JOHNSON MEDICAL LTD,0002120184,40.02,
Department of Health,East Sussex Hospitals NHS Trust,09/10/2013,LAPARASCOPIC EQUIP-UROLOGICAL,Planned Care,PURPLE SURGICAL UK LTD,0002120198,2592.00,
Department of Health,East Sussex Hospitals NHS Trust,09/10/2013,LAB MATS - SYSMEX HAEM CONS,Integrated Care,SYSMEX UK LTD,0002120388,5718.09,
Department of Health,East Sussex Hospitals NHS Trust,09/10/2013,M&S EQUIPMENT - OTHER,Planned Care,JOHNSON & JOHNSON MEDICAL LTD,0002120451,309.34,
Department of Health,East Sussex Hospitals NHS Trust,09/10/2013,PROSTHESES-HIP,Planned Care,JOHNSON & JOHNSON MEDICAL LTD,0002120451,1566.20,
Department of Health,East Sussex Hospitals NHS Trust,09/10/2013,PROSTHESES-OTHER,Planned Care,JOHNSON & JOHNSON MEDICAL LTD,0002120451,123.60,
Department of Health,East Sussex Hospitals NHS Trust,09/10/2013,NATIONAL JOINT REGISTRY LEVY,Planned Care,JOHNSON & JOHNSON MEDICAL LTD,0002120451,40.01,
Department of Health,East Sussex Hospitals NHS Trust,09/10/2013,LAPARASCOPIC EQUIP-UROLOGICAL,Planned Care,PURPLE SURGICAL UK LTD,0002120489,1728.00,
Department of Health,East Sussex Hospitals NHS Trust,09/10/2013,COMPUTER HARDWARE,Planned Care,HEWLETT-PACKARD LTD,0002120525,520.04,
Department of Health,East Sussex Hospitals NHS Trust,09/10/2013,COMPUTER HARDWARE,Planned Care,HEWLETT-PACKARD LTD,0002120608,647.98,
Department of Health,East Sussex Hospitals NHS Trust,09/10/2013,COMPUTER MAINTENANCE-HARDWARE,Planned Care,HEWLETT-PACKARD LTD,0002120608,120.96,
Department of Health,East Sussex Hospitals NHS Trust,09/10/2013,COMPUTER HARDWARE,Corporate Services,NOVATECH DIRECT LTD,0002120630,1207.02,
Department of Health,East Sussex Hospitals NHS Trust,09/10/2013,LEASE CARS,Cross Site,VOLKSWAGEN GROUP LEASING,0002120692,2338.32,
Department of Health,East Sussex Hospitals NHS Trust,09/10/2013,LEASE CARS,Cross Site,VOLKSWAGEN GROUP LEASING,0002120692,2109.22,
Department of Health,East Sussex Hospitals NHS Trust,09/10/2013,COMPUTER HARDWARE,Corporate Services,HEWLETT-PACKARD LTD,0002120748,1009.01,
Department of Health,East Sussex Hospitals NHS Trust,09/10/2013,LAPARASCOPIC EQUIP-UROLOGICAL,Planned Care,PURPLE SURGICAL UK LTD,0002120957,6912.00,
Department of Health,East Sussex Hospitals NHS Trust,09/10/2013,LAPARASCOPIC EQUIP-UROLOGICAL,Planned Care,PURPLE SURGICAL UK LTD,0002120958,1728.00,
Department of Health,East Sussex Hospitals NHS Trust,09/10/2013,SURGICAL INSTRUMENTS,Planned Care,PURPLE SURGICAL UK LTD,0002120959,1290.00,
Department of Health,East Sussex Hospitals NHS Trust,09/10/2013,DCA REAGENTS,Integrated Care,SIEMENS HEALTHCARE DIAGNOSTICS LTD,0002120985,2263.30,
Department of Health,East Sussex Hospitals NHS Trust,09/10/2013,LAPARASCOPIC EQUIP-GYNAECOLOGY,Planned Care,PURPLE SURGICAL UK LTD,0002121124,960.00,
Department of Health,East Sussex Hospitals NHS Trust,09/10/2013,M&S GENERAL SUPPLIES-OTHER,Planned Care,SMITH & NEPHEW ADVANCED SURGICAL DEVICES,0002121143,49.46,
Department of Health,East Sussex Hospitals NHS Trust,09/10/2013,SURGICAL INSTRUMENTS,Planned Care,SMITH & NEPHEW ADVANCED SURGICAL DEVICES,0002121143,68.62,
Department of Health,East Sussex Hospitals NHS Trust,09/10/2013,PROSTHESES-OTHER,Planned Care,SMITH & NEPHEW ADVANCED SURGICAL DEVICES,0002121143,2037.80,
Department of Health,East Sussex Hospitals NHS Trust,09/10/2013,ACL LIGAMENT REPAIR INSTRUMENT,Planned Care,SMITH & NEPHEW ADVANCED SURGICAL DEVICES,0002121144,131.26,
Department of Health,East Sussex Hospitals NHS Trust,09/10/2013,ARTHROSCOPY INSTRUMENTS,Planned Care,SMITH & NEPHEW ADVANCED SURGICAL DEVICES,0002121144,610.62,
Department of Health,East Sussex Hospitals NHS Trust,09/10/2013,M&S GENERAL SUPPLIES-OTHER,Planned Care,SMITH & NEPHEW ADVANCED SURGICAL DEVICES,0002121145,66.40,
Department of Health,East Sussex Hospitals NHS Trust,09/10/2013,PROSTHESES-OTHER,Planned Care,SMITH & NEPHEW ADVANCED SURGICAL DEVICES,0002121145,707.92,
Department of Health,East Sussex Hospitals NHS Trust,09/10/2013,CARDIOLOGY CATHETERS,Urgent Care,BOSTON SCIENTIFIC LTD,0002121152,60.00,
Department of Health,East Sussex Hospitals NHS Trust,09/10/2013,CARDIOLOGY STENTS,Urgent Care,BOSTON SCIENTIFIC LTD,0002121152,576.00,
Department of Health,East Sussex Hospitals NHS Trust,09/10/2013,CARDIOLOGY CATHETERS,Urgent Care,BOSTON SCIENTIFIC LTD,0002121153,810.00,
